Workbook

Sheet Plate Theory
A1: ChromSimLSS_2.2 | D1: Simulation of chromatography and plate theory | K1: Author: Bo Svensmark, svensmark@plen.ku.dk, Analytcal Chemistry, PLEN, University of Copenhagen, 2020 - 2025 | X1: Manual: | AG1: *
A3: k | B3: 1 | D3: t, min | E3: =B111 -> 0 | O3: Enter values | Y3: 1) Enter or change parameters for the analyte:
A4: conc | B4: 100 | O4: Click on the graph | U4: Gauss | Z4: Cell B3: Retention factor k (best range 0.2- 4)
D5: Nth = 50 | I5: N runs | J5: Delay, ms | O5: Then click Zoom | U5: x | V5: 52.96945073 | Z5: Cell B4: Concentration (arbitrary units)
D6: tM = 0.5 min | I6: 1 | J6: 1000 | M6: Max | N6: 10 | U6: W(B) | V6: 21.03664392
I7: N runs | J7: Delay, ms | M7: Loops | U7: h | V7: 0 | Y7: 2) Enter or correct run parameters:
I8: 20 | J8: 20 | M8: 5 | U8: RMSE | V8: =SQRT((SUM((B11:B60-E11:E60)^2)+SUM((D61:D110-E61:E110)^2))/100) -> 0 | Z8: Nruns: number of timesteps when the button is pressed
Z9: Delay: a delay to be added to the execution time for each timestep (best range 5-1000 ms)
A10: i | B10: Cm | C10: Cs | D10: Detector | E10: Gauss | F10: tM | U10: X | V10: Y | Z10: Loop: number of loops between update of the graph (high values for fast simulations)
A11: 1 | B11: 0 | C11: 0 | D11: 0 | E11: =V$7*NORMDIST(A11,V$5,V$6/4,FALSE)*SQRT(2*PI())*V$6/4 -> 0 | F11: =IF(ABS(A11-100*$E$3)>0.01,0,10/SQRT(A11)) -> 0 | U11: 50.5 | V11: 100
A12: 2 | B12: 0 | C12: 0 | D12: 0 | E12: 0 | F12: =IF(ABS(A12-100*$E$3)>0.01,0,10/SQRT(A12)) -> 0 | U12: 50.5 | V12: -100 | Y12: 3) Run the macros: Live simulation of elution
A13: 3 | B13: 0 | C13: 0 | D13: 0 | E13: 0 | F13: 0 | Z13: Reset: MUST BE PRESSED before any run. Resets and initialises all variables
A14: 4 | B14: 0 | C14: 0 | D14: 0 | E14: 0 | F14: 0 | Z14: Run 1&2: Run a number of timesteps
A15: 5 | B15: 0 | C15: 0 | D15: 0 | E15: 0 | F15: 0 | Z15: (Use Run 1 for slow runs and Run 2 for fast runs - but they work identical)
A16: 6 | B16: 0 | C16: 0 | D16: 0 | E16: 0 | F16: 0
A17: 7 | B17: 0 | C17: 0 | D17: 0 | E17: 0 | F17: 0 | Y17: 4) Gauss: Fit a Gaussian profile to the concentration profile in the mobile phase
A18: 8 | B18: 0 | C18: 0 | D18: 0 | E18: 0 | F18: 0
A19: 9 | B19: 0 | C19: 0 | D19: 0 | E19: 0 | F19: 0 | Z19: a) If solver do not find a solution, correct the parameters in the table to near the peak position
A20: 10 | B20: 0 | C20: 0 | D20: 0 | E20: 0 | F20: 0 | AA20: x: Center of peak
A21: 11 | B21: 0 | C21: 0 | D21: 0 | E21: 0 | F21: 0 | AA21: W(B): Peak width at the baseline
A22: 12 | B22: 0 | C22: 0 | D22: 0 | E22: 0 | F22: 0 | AA22: h: Peak hight
A23: 13 | B23: 0 | C23: 0 | D23: 0 | E23: 0 | F23: 0 | AA23: RMSE: Root Mean Square Error
A24: 14 | B24: 0 | C24: 0 | D24: 0 | E24: 0 | F24: 0
A25: 15 | B25: 0 | C25: 0 | D25: 0 | E25: 0 | F25: 0 | Y25: Zoom Y: | Z25: Set the scale for Y in the graph
A26: 16 | B26: 0 | C26: 0 | D26: 0 | E26: 0 | F26: 0 | AA26: Enter parameters in cell N6:N8
A27: 17 | B27: 0 | C27: 0 | D27: 0 | E27: 0 | F27: 0 | AA27: CLICK ON THE GRAPH - IMPORTANT!
A28: 18 | B28: 0 | C28: 0 | D28: 0 | E28: 0 | F28: 0 | AA28: Click the Zoom Y button
A29: 19 | B29: 0 | C29: 0 | D29: 0 | E29: 0 | F29: 0
A30: 20 | B30: 0 | C30: 0 | D30: 0 | E30: 0 | F30: 0 | Y30: Fixed parameters:
A31: 21 | B31: 0 | C31: 0 | D31: 0 | E31: 0 | F31: 0 | Z31: Number of theoretic plates Nth = 100
A32: 22 | B32: 0 | C32: 0 | D32: 0 | E32: 0 | F32: 0 | Z32: Dead time tM = 1.00 min
A33: 23 | B33: 0 | C33: 0 | D33: 0 | E33: 0 | F33: 0 | Z33: Chromatogram length = 5.00 min
A34: 24 | B34: 0 | C34: 0 | D34: 0 | E34: 0 | F34: 0
A35: 25 | B35: 0 | C35: 0 | D35: 0 | E35: 0 | F35: 0 | Y35: Run time Errors:
A36: 26 | B36: 0 | C36: 0 | D36: 0 | E36: 0 | F36: 0 | Z36: You'll get a run time error if you use the macros in the wrong order
A37: 27 | B37: 0 | C37: 0 | D37: 0 | E37: 0 | F37: 0 | Z37: To fix it:
A38: 28 | B38: 0 | C38: 0 | D38: 0 | E38: 0 | F38: 0 | AA38: Click on "Debug" in the message window
A39: 29 | B39: 0 | C39: 0 | D39: 0 | E39: 0 | F39: 0 | AA39: In the window showing the macros click on the "Reset" icon (a blue square)
A40: 30 | B40: 0 | C40: 0 | D40: 0 | E40: 0 | F40: 0 | AA40: (or click on "Run" and then "Reset")
A41: 31 | B41: 0 | C41: 0 | D41: 0 | E41: 0 | F41: 0 | AA41: Go back to the sheet and use the macros correctly
A42: 32 | B42: 0 | C42: 0 | D42: 0 | E42: 0 | F42: 0
A43: 33 | B43: 0 | C43: 0 | D43: 0 | E43: =V$7*NORMDIST(A43,V$5,V$6/4,FALSE)*SQRT(2*PI())*V$6/4 -> 0 | F43: 0
A44: 34 | B44: 0 | C44: 0 | D44: 0 | E44: 0 | F44: 0
A45: 35 | B45: 0 | C45: 0 | D45: 0 | E45: 0 | F45: 0
A46: 36 | B46: 0 | C46: 0 | D46: 0 | E46: 0 | F46: 0
A47: 37 | B47: 0 | C47: 0 | D47: 0 | E47: 0 | F47: 0
A48: 38 | B48: 0 | C48: 0 | D48: 0 | E48: 0 | F48: 0
A49: 39 | B49: 0 | C49: 0 | D49: 0 | E49: 0 | F49: 0
A50: 40 | B50: 0 | C50: 0 | D50: 0 | E50: 0 | F50: 0 | H50: 1 | I50: =B11-C11 -> 0
A51: 41 | B51: 0 | C51: 0 | D51: 0 | E51: 0 | F51: 0 | H51: 2 | I51: =B12-C12 -> 0
A52: 42 | B52: 0 | C52: 0 | D52: 0 | E52: 0 | F52: 0 | H52: 3 | I52: 0
A53: 43 | B53: 0 | C53: 0 | D53: 0 | E53: 0 | F53: 0 | H53: 4 | I53: 0
A54: 44 | B54: 0 | C54: 0 | D54: 0 | E54: 0 | F54: 0 | H54: 5 | I54: 0
A55: 45 | B55: 0 | C55: 0 | D55: 0 | E55: 0 | F55: 0 | H55: 6 | I55: 0
A56: 46 | B56: 0 | C56: 0 | D56: 0 | E56: 0 | F56: 0 | H56: 7 | I56: 0
A57: 47 | B57: 0 | C57: 0 | D57: 0 | E57: 0 | F57: 0 | H57: 8 | I57: 0
A58: 48 | B58: 0 | C58: 0 | D58: 0 | E58: 0 | F58: 0 | H58: 9 | I58: 0
A59: 49 | B59: 0 | C59: 0 | D59: 0 | E59: 0 | F59: 0 | H59: 10 | I59: 0
A60: 50 | B60: 0 | C60: 0 | D60: 0 | E60: 0 | F60: 0 | H60: 11 | I60: 0
A61: 51 | B61: 0 | C61: 0 | D61: 0 | E61: 0 | F61: 0 | H61: 12 | I61: 0
A62: 52 | B62: 0 | C62: 0 | D62: 0 | E62: 0 | F62: 0 | H62: 13 | I62: 0
A63: 53 | B63: 0 | C63: 0 | D63: 0 | E63: 0 | F63: 0 | H63: 14 | I63: 0
A64: 54 | B64: 0 | C64: 0 | D64: 0 | E64: 0 | F64: 0 | H64: 15 | I64: 0
A65: 55 | B65: 0 | C65: 0 | D65: 0 | E65: 0 | F65: 0 | H65: 16 | I65: 0
A66: 56 | B66: 0 | C66: 0 | D66: 0 | E66: 0 | F66: 0 | H66: 17 | I66: 0
A67: 57 | B67: 0 | C67: 0 | D67: 0 | E67: 0 | F67: 0 | H67: 18 | I67: 0
A68: 58 | B68: 0 | C68: 0 | D68: 0 | E68: 0 | F68: 0 | H68: 19 | I68: 0
A69: 59 | B69: 0 | C69: 0 | D69: 0 | E69: 0 | F69: 0 | H69: 20 | I69: 0
A70: 60 | B70: 0 | C70: 0 | D70: 0 | E70: 0 | F70: 0 | H70: 21 | I70: 0
A71: 61 | B71: 0 | C71: 0 | D71: 0 | E71: 0 | F71: 0 | H71: 22 | I71: 0
A72: 62 | B72: 0 | C72: 0 | D72: 0 | E72: 0 | F72: 0 | H72: 23 | I72: 0
A73: 63 | B73: 0 | C73: 0 | D73: 0 | E73: 0 | F73: 0 | H73: 24 | I73: 0
A74: 64 | B74: 0 | C74: 0 | D74: 0 | E74: 0 | F74: 0 | H74: 25 | I74: 0
A75: 65 | B75: 0 | C75: 0 | D75: 0 | E75: =V$7*NORMDIST(A75,V$5,V$6/4,FALSE)*SQRT(2*PI())*V$6/4 -> 0 | F75: 0 | H75: 26 | I75: 0
A76: 66 | B76: 0 | C76: 0 | D76: 0 | E76: 0 | F76: =IF(ABS(A76-100*$E$3)>0.01,0,10/SQRT(A76)) -> 0 | H76: 27 | I76: 0
A77: 67 | B77: 0 | C77: 0 | D77: 0 | E77: 0 | F77: 0 | H77: 28 | I77: 0
A78: 68 | B78: 0 | C78: 0 | D78: 0 | E78: 0 | F78: 0 | H78: 29 | I78: 0
A79: 69 | B79: 0 | C79: 0 | D79: 0 | E79: 0 | F79: 0 | H79: 30 | I79: 0
A80: 70 | B80: 0 | C80: 0 | D80: 0 | E80: 0 | F80: 0 | H80: 31 | I80: 0
A81: 71 | B81: 0 | C81: 0 | D81: 0 | E81: 0 | F81: 0 | H81: 32 | I81: 0
A82: 72 | B82: 0 | C82: 0 | D82: 0 | E82: 0 | F82: 0 | H82: 33 | I82: 0
A83: 73 | B83: 0 | C83: 0 | D83: 0 | E83: 0 | F83: 0 | H83: 34 | I83: 0
A84: 74 | B84: 0 | C84: 0 | D84: 0 | E84: 0 | F84: 0 | H84: 35 | I84: 0
A85: 75 | B85: 0 | C85: 0 | D85: 0 | E85: 0 | F85: 0 | H85: 36 | I85: 0
A86: 76 | B86: 0 | C86: 0 | D86: 0 | E86: 0 | F86: 0 | H86: 37 | I86: 0
A87: 77 | B87: 0 | C87: 0 | D87: 0 | E87: 0 | F87: 0 | H87: 38 | I87: 0
A88: 78 | B88: 0 | C88: 0 | D88: 0 | E88: 0 | F88: 0 | H88: 39 | I88: 0
A89: 79 | B89: 0 | C89: 0 | D89: 0 | E89: 0 | F89: 0 | H89: 40 | I89: 0
A90: 80 | B90: 0 | C90: 0 | D90: 0 | E90: 0 | F90: 0 | H90: 41 | I90: 0
A91: 81 | B91: 0 | C91: 0 | D91: 0 | E91: 0 | F91: 0 | H91: 42 | I91: 0
A92: 82 | B92: 0 | C92: 0 | D92: 0 | E92: 0 | F92: 0 | H92: 43 | I92: 0
A93: 83 | B93: 0 | C93: 0 | D93: 0 | E93: 0 | F93: 0 | H93: 44 | I93: 0
A94: 84 | B94: 0 | C94: 0 | D94: 0 | E94: 0 | F94: 0 | H94: 45 | I94: 0
A95: 85 | B95: 0 | C95: 0 | D95: 0 | E95: 0 | F95: 0 | H95: 46 | I95: 0
A96: 86 | B96: 0 | C96: 0 | D96: 0 | E96: 0 | F96: 0 | H96: 47 | I96: 0
A97: 87 | B97: 0 | C97: 0 | D97: 0 | E97: 0 | F97: 0 | H97: 48 | I97: 0
A98: 88 | B98: 0 | C98: 0 | D98: 0 | E98: 0 | F98: 0 | H98: 49 | I98: 0
A99: 89 | B99: 0 | C99: 0 | D99: 0 | E99: 0 | F99: 0 | H99: 50 | I99: 0
A100: 90 | B100: 0 | C100: 0 | D100: 0 | E100: 0 | F100: 0 | H100: 51 | I100: 0
A101: 91 | B101: 0 | C101: 0 | D101: 0 | E101: 0 | F101: 0 | H101: 52 | I101: 0
A102: 92 | B102: 0 | C102: 0 | D102: 0 | E102: 0 | F102: 0 | H102: 53 | I102: 0
A103: 93 | B103: 0 | C103: 0 | D103: 0 | E103: 0 | F103: 0 | H103: 54 | I103: 0
A104: 94 | B104: 0 | C104: 0 | D104: 0 | E104: 0 | F104: 0 | H104: 55 | I104: 0
A105: 95 | B105: 0 | C105: 0 | D105: 0 | E105: 0 | F105: 0 | H105: 56 | I105: 0
A106: 96 | B106: 0 | C106: 0 | D106: 0 | E106: 0 | F106: 0 | H106: 57 | I106: 0
A107: 97 | B107: 0 | C107: 0 | D107: 0 | E107: 0 | F107: 0 | H107: 58 | I107: 0
A108: 98 | B108: 0 | C108: 0 | D108: 0 | E108: 0 | F108: 0 | H108: 59 | I108: 0
A109: 99 | B109: 0 | C109: 0 | D109: 0 | E109: 0 | F109: 0 | H109: 60 | I109: 0
A110: 100 | B110: 0 | C110: 0 | D110: 0 | E110: 0 | F110: 0 | H110: 61 | I110: 0
A111: t | B111: 0 | C111: 0 | D111: 0 | E111: 0 | F111: 0 | H111: 62 | I111: 0
B112: 0 | C112: 0 | D112: 0 | E112: 0 | F112: 0 | H112: 63 | I112: 0
H113: 64 | I113: 0
H114: 65 | I114: 0
H115: 66 | I115: =B76-C76 -> 0
H116: 67 | I116: 0
H117: 68 | I117: 0
H118: 69 | I118: 0
H119: 70 | I119: 0
H120: 71 | I120: 0
H121: 72 | I121: 0
H122: 73 | I122: 0
H123: 74 | I123: 0
H124: 75 | I124: 0
H125: 76 | I125: 0
H126: 77 | I126: 0
H127: 78 | I127: 0
H128: 79 | I128: 0
H129: 80 | I129: 0
H130: 81 | I130: 0
H131: 82 | I131: 0
H132: 83 | I132: 0
H133: 84 | I133: 0
H134: 85 | I134: 0
H135: 86 | I135: 0
H136: 87 | I136: 0
H137: 88 | I137: 0
H138: 89 | I138: 0
H139: 90 | I139: 0
H140: 91 | I140: 0
H141: 92 | I141: 0
H142: 93 | I142: 0
H143: 94 | I143: 0
H144: 95 | I144: 0
H145: 96 | I145: 0
H146: 97 | I146: 0
H147: 98 | I147: 0
H148: 99 | I148: 0
H149: 100 | I149: 0
H150: 101 | I150: 0
I151: 0
I152: 0

Sheet ChromSim (50)
A1: ='Plate Theory'!A1 -> ChromSimLSS_2.2 | D1: Simulation of chromatography and plate theory | K1: ='Plate Theory'!K1 -> Author: Bo Svensmark, svensmark@plen.ku.dk, Analytcal Chemistry, PLEN, University of Copenhagen, 2020 - 2025 | AF1: Manual: | AO1: *
AG2: Works essentially as the simulation in Sheet "Plate Theory"
B3: Analyte LSS parameters | G3: Results | J3: Gradient | L3: Runtime | T3: Click on the graph | AH3: Try the simulation in "Plate Theosy" first - and see the manual in cell X1+
J4: b(1) | K4: =M7*(K6-K5)*C6/K7 -> 0 | T4: Then click Zoom
A5: Analyte | B5: Logkw | C5: S | D5: Conc | E5: ko | F5: =IF(K4=0,"k","k*") -> k | G5: =IF(K4=0,"k(obs)","k*(obs)") -> k(obs) | H5: tR | I5: h | J5: φstart | K5: 0.6 | L5: Time, min | M5: =I111 -> 0 | P5: N runs | Q5: Delay, ms | AG5: Analyte LSS parameters:
A6: #1 | B6: 2.3 | C6: 4 | D6: 100 | E6: =10^(B6-C6*$K$5) -> 0.7943282347 | F6: =IF(K$4=0,E6,1/(1.15*K$4)) -> 0.7943282347 | G6: =C111 -> 0 | H6: =C112 -> 0 | I6: =D112 -> 0 | J6: φend | K6: 0.6 | L6: φ(t) | M6: =I112 -> 0.6 | P6: 2 | Q6: 1000 | R6: Max | S6: 10 | AH6: Linear Solvent Strengths parameters for 3 analytes
A7: #2 | B7: 2.8 | C7: 4 | D7: 100 | E7: =10^(B7-C7*$K$5) -> 2.511886432 | F7: =IF(K$4=0,E7,1/(1.15*K$4)) -> 2.511886432 | G7: =E111 -> 0 | H7: =E112 -> 0 | I7: =F112 -> 0 | J7: t(G), min | K7: 8 | L7: tM, min | M7: 1 | P7: N runs | Q7: Delay, ms | R7: Loops
A8: #3 | B8: 3.2 | C8: 4 | D8: 100 | E8: =10^(B8-C8*$K$5) -> 6.309573445 | F8: =IF(K$4=0,E8,1/(1.15*K$4)) -> 6.309573445 | G8: =G111 -> 0 | H8: =G112 -> 0 | I8: =H112 -> 0 | J8: t(D), min | K8: 0.5 | L8: Nth | M8: 100 | P8: 200 | Q8: 10 | R8: 10 | AG8: Gradient: Parameters for the eluent strength
AH9: φstart | AI9: Eluent strenght at injection (0-1)
A10: i | B10: Cm | C10: Cs | D10: Cm2 | E10: Cs2 | F10: Cm3 | G10: Cs3 | H10: Trace1m | I10: Trace1s | J10: Trace2m | K10: Trace2s | L10: Trace 3m | M10: Trace3s | N10: φ(x) | O10: SUM | Q10: k* 1m | R10: k* 1s | S10: k* 2m | T10: k* 2s | U10: k* 3m | V10: k* 3s | W10: Chrom1 | X10: Chrom2 | Y10: i | AH10: φend | AI10: Eleuent strength at end of gradient
A11: 1 | B11: 0 | C11: 0 | D11: 0 | E11: 0 | F11: 0 | G11: 0 | H11: 0 | I11: 0 | J11: 0 | K11: 0 | L11: 0 | M11: 0 | N11: 0.6 | O11: =B11+D11+F11 -> 0 | Q11: 0 | R11: 0 | S11: 0 | T11: 0 | U11: 0 | V11: 0 | W11: 0 | X11: 0 | Y11: 0.01 | AH11: t(G), min | AI11: Gradient time
A12: 2 | B12: 0 | C12: 0 | D12: 0 | E12: 0 | F12: 0 | G12: 0 | H12: 0 | I12: 0 | J12: 0 | K12: 0 | L12: 0 | M12: 0 | N12: 0.6 | O12: =B12+D12+F12 -> 0 | Q12: 0 | R12: 0 | S12: 0 | T12: 0 | U12: 0 | V12: 0 | W12: 0 | X12: 0 | Y12: 0.02 | AH12: t(D), min | AI12: Dwel time or time for an initial isochratic part of a gradient
A13: 3 | B13: 0 | C13: 0 | D13: 0 | E13: 0 | F13: 0 | G13: 0 | H13: 0 | I13: 0 | J13: 0 | K13: 0 | L13: 0 | M13: 0 | N13: 0.6 | O13: 0 | Q13: 0 | R13: 0 | S13: 0 | T13: 0 | U13: 0 | V13: 0 | W13: 0 | X13: 0 | Y13: 0.03
A14: 4 | B14: 0 | C14: 0 | D14: 0 | E14: 0 | F14: 0 | G14: 0 | H14: 0 | I14: 0 | J14: 0 | K14: 0 | L14: 0 | M14: 0 | N14: 0.6 | O14: 0 | Q14: 0 | R14: 0 | S14: 0 | T14: 0 | U14: 0 | V14: 0 | W14: 0 | X14: 0 | Y14: 0.04 | AH14: If φstart = φend isocratic elution will be simulated
A15: 5 | B15: 0 | C15: 0 | D15: 0 | E15: 0 | F15: 0 | G15: 0 | H15: 0 | I15: 0 | J15: 0 | K15: 0 | L15: 0 | M15: 0 | N15: 0.6 | O15: 0 | Q15: 0 | R15: 0 | S15: 0 | T15: 0 | U15: 0 | V15: 0 | W15: 0 | X15: 0 | Y15: 0.05
A16: 6 | B16: 0 | C16: 0 | D16: 0 | E16: 0 | F16: 0 | G16: 0 | H16: 0 | I16: 0 | J16: 0 | K16: 0 | L16: 0 | M16: 0 | N16: 0.6 | O16: 0 | Q16: 0 | R16: 0 | S16: 0 | T16: 0 | U16: 0 | V16: 0 | W16: 0 | X16: 0 | Y16: 0.06 | AG16: Zoom Y:
A17: 7 | B17: 0 | C17: 0 | D17: 0 | E17: 0 | F17: 0 | G17: 0 | H17: 0 | I17: 0 | J17: 0 | K17: 0 | L17: 0 | M17: 0 | N17: 0.6 | O17: 0 | Q17: 0 | R17: 0 | S17: 0 | T17: 0 | U17: 0 | V17: 0 | W17: 0 | X17: 0 | Y17: 0.07 | AH17: All 4 graphs can be scaled individually
A18: 8 | B18: 0 | C18: 0 | D18: 0 | E18: 0 | F18: 0 | G18: 0 | H18: 0 | I18: 0 | J18: 0 | K18: 0 | L18: 0 | M18: 0 | N18: 0.6 | O18: 0 | Q18: 0 | R18: 0 | S18: 0 | T18: 0 | U18: 0 | V18: 0 | W18: 0 | X18: 0 | Y18: 0.08 | AH18: REMEMBER to select the graph before clicking the button
A19: 9 | B19: 0 | C19: 0 | D19: 0 | E19: 0 | F19: 0 | G19: 0 | H19: 0 | I19: 0 | J19: 0 | K19: 0 | L19: 0 | M19: 0 | N19: 0.6 | O19: 0 | Q19: 0 | R19: 0 | S19: 0 | T19: 0 | U19: 0 | V19: 0 | W19: 0 | X19: 0 | Y19: 0.09
A20: 10 | B20: 0 | C20: 0 | D20: 0 | E20: 0 | F20: 0 | G20: 0 | H20: 0 | I20: 0 | J20: 0 | K20: 0 | L20: 0 | M20: 0 | N20: 0.6 | O20: 0 | Q20: 0 | R20: 0 | S20: 0 | T20: 0 | U20: 0 | V20: 0 | W20: 0 | X20: 0 | Y20: 0.1 | AG20: Sorption isotherms:
A21: 11 | B21: 0 | C21: 0 | D21: 0 | E21: 0 | F21: 0 | G21: 0 | H21: 0 | I21: 0 | J21: 0 | K21: 0 | L21: 0 | M21: 0 | N21: 0.6 | O21: 0 | Q21: 0 | R21: 0 | S21: 0 | T21: 0 | U21: 0 | V21: 0 | W21: 0 | X21: 0 | Y21: 0.11 | AH21: Uses the isotherm in the table in cells AG42:AJ58
A22: 12 | B22: 0 | C22: 0 | D22: 0 | E22: 0 | F22: 0 | G22: 0 | H22: 0 | I22: 0 | J22: 0 | K22: 0 | L22: 0 | M22: 0 | N22: 0.6 | O22: 0 | Q22: 0 | R22: 0 | S22: 0 | T22: 0 | U22: 0 | V22: 0 | W22: 0 | X22: 0 | Y22: 0.12 | AH22: C0-C1 and C2: polynomial coefficients
A23: 13 | B23: 0 | C23: 0 | D23: 0 | E23: 0 | F23: 0 | G23: 0 | H23: 0 | I23: 0 | J23: 0 | K23: 0 | L23: 0 | M23: 0 | N23: 0.6 | O23: 0 | Q23: 0 | R23: 0 | S23: 0 | T23: 0 | U23: 0 | V23: 0 | W23: 0 | X23: 0 | Y23: 0.13
A24: 14 | B24: 0 | C24: 0 | D24: 0 | E24: 0 | F24: 0 | G24: 0 | H24: 0 | I24: 0 | J24: 0 | K24: 0 | L24: 0 | M24: 0 | N24: 0.6 | O24: 0 | Q24: 0 | R24: 0 | S24: 0 | T24: 0 | U24: 0 | V24: 0 | W24: 0 | X24: 0 | Y24: 0.14 | AG24: Complex gradient:
A25: 15 | B25: 0 | C25: 0 | D25: 0 | E25: 0 | F25: 0 | G25: 0 | H25: 0 | I25: 0 | J25: 0 | K25: 0 | L25: 0 | M25: 0 | N25: 0.6 | O25: 0 | Q25: 0 | R25: 0 | S25: 0 | T25: 0 | U25: 0 | V25: 0 | W25: 0 | X25: 0 | Y25: 0.15 | AH25: Uses the gradient in the table in cells AG61:AJ566
A26: 16 | B26: 0 | C26: 0 | D26: 0 | E26: 0 | F26: 0 | G26: 0 | H26: 0 | I26: 0 | J26: 0 | K26: 0 | L26: 0 | M26: 0 | N26: 0.6 | O26: 0 | Q26: 0 | R26: 0 | S26: 0 | T26: 0 | U26: 0 | V26: 0 | W26: 0 | X26: 0 | Y26: 0.16 | AH26: The pulsed gradient in the table uses tD (cell K8) for pulse length
A27: 17 | B27: 0 | C27: 0 | D27: 0 | E27: 0 | F27: 0 | G27: 0 | H27: 0 | I27: 0 | J27: 0 | K27: 0 | L27: 0 | M27: 0 | N27: 0.6 | O27: 0 | Q27: 0 | R27: 0 | S27: 0 | T27: 0 | U27: 0 | V27: 0 | W27: 0 | X27: 0 | Y27: 0.17 | AH27: Use the buttons Reset complex and Continue Complex for use of the complex gradient
A28: 18 | B28: 0 | C28: 0 | D28: 0 | E28: 0 | F28: 0 | G28: 0 | H28: 0 | I28: 0 | J28: 0 | K28: 0 | L28: 0 | M28: 0 | N28: 0.6 | O28: 0 | Q28: 0 | R28: 0 | S28: 0 | T28: 0 | U28: 0 | V28: 0 | W28: 0 | X28: 0 | Y28: 0.18
A29: 19 | B29: 0 | C29: 0 | D29: 0 | E29: 0 | F29: 0 | G29: 0 | H29: 0 | I29: 0 | J29: 0 | K29: 0 | L29: 0 | M29: 0 | N29: 0.6 | O29: 0 | Q29: 0 | R29: 0 | S29: 0 | T29: 0 | U29: 0 | V29: 0 | W29: 0 | X29: 0 | Y29: 0.19 | AG29: Fixed parameters:
A30: 20 | B30: 0 | C30: 0 | D30: 0 | E30: 0 | F30: 0 | G30: 0 | H30: 0 | I30: 0 | J30: 0 | K30: 0 | L30: 0 | M30: 0 | N30: 0.6 | O30: 0 | Q30: 0 | R30: 0 | S30: 0 | T30: 0 | U30: 0 | V30: 0 | W30: 0 | X30: 0 | Y30: 0.2 | AH30: Number of theoretic plates Nth = 100
A31: 21 | B31: 0 | C31: 0 | D31: 0 | E31: 0 | F31: 0 | G31: 0 | H31: 0 | I31: 0 | J31: 0 | K31: 0 | L31: 0 | M31: 0 | N31: 0.6 | O31: 0 | Q31: 0 | R31: 0 | S31: 0 | T31: 0 | U31: 0 | V31: 0 | W31: 0 | X31: 0 | Y31: 0.21 | AH31: Dead time tM = 1.00 min
A32: 22 | B32: 0 | C32: 0 | D32: 0 | E32: 0 | F32: 0 | G32: 0 | H32: 0 | I32: 0 | J32: 0 | K32: 0 | L32: 0 | M32: 0 | N32: 0.6 | O32: 0 | Q32: 0 | R32: 0 | S32: 0 | T32: 0 | U32: 0 | V32: 0 | W32: 0 | X32: 0 | Y32: 0.22 | AH32: Chromatogram length = 5.00 min
A33: 23 | B33: 0 | C33: 0 | D33: 0 | E33: 0 | F33: 0 | G33: 0 | H33: 0 | I33: 0 | J33: 0 | K33: 0 | L33: 0 | M33: 0 | N33: 0.6 | O33: 0 | Q33: 0 | R33: 0 | S33: 0 | T33: 0 | U33: 0 | V33: 0 | W33: 0 | X33: 0 | Y33: 0.23
A34: 24 | B34: 0 | C34: 0 | D34: 0 | E34: 0 | F34: 0 | G34: 0 | H34: 0 | I34: 0 | J34: 0 | K34: 0 | L34: 0 | M34: 0 | N34: 0.6 | O34: 0 | Q34: 0 | R34: 0 | S34: 0 | T34: 0 | U34: 0 | V34: 0 | W34: 0 | X34: 0 | Y34: 0.24 | AG34: Run time Errors:
A35: 25 | B35: 0 | C35: 0 | D35: 0 | E35: 0 | F35: 0 | G35: 0 | H35: 0 | I35: 0 | J35: 0 | K35: 0 | L35: 0 | M35: 0 | N35: 0.6 | O35: 0 | Q35: 0 | R35: 0 | S35: 0 | T35: 0 | U35: 0 | V35: 0 | W35: 0 | X35: 0 | Y35: 0.25 | AH35: You'll get a run time error if you use the macros in the wrong order
A36: 26 | B36: 0 | C36: 0 | D36: 0 | E36: 0 | F36: 0 | G36: 0 | H36: 0 | I36: 0 | J36: 0 | K36: 0 | L36: 0 | M36: 0 | N36: 0.6 | O36: 0 | Q36: 0 | R36: 0 | S36: 0 | T36: 0 | U36: 0 | V36: 0 | W36: 0 | X36: 0 | Y36: 0.26 | AH36: To fix it:
A37: 27 | B37: 0 | C37: 0 | D37: 0 | E37: 0 | F37: 0 | G37: 0 | H37: 0 | I37: 0 | J37: 0 | K37: 0 | L37: 0 | M37: 0 | N37: 0.6 | O37: 0 | Q37: 0 | R37: 0 | S37: 0 | T37: 0 | U37: 0 | V37: 0 | W37: 0 | X37: 0 | Y37: 0.27 | AI37: Click on "Debug" in the message window
A38: 28 | B38: 0 | C38: 0 | D38: 0 | E38: 0 | F38: 0 | G38: 0 | H38: 0 | I38: 0 | J38: 0 | K38: 0 | L38: 0 | M38: 0 | N38: 0.6 | O38: 0 | Q38: 0 | R38: 0 | S38: 0 | T38: 0 | U38: 0 | V38: 0 | W38: 0 | X38: 0 | Y38: 0.28 | AI38: In the window showing the macros click on the "Reset" icon (a blue square)
A39: 29 | B39: 0 | C39: 0 | D39: 0 | E39: 0 | F39: 0 | G39: 0 | H39: 0 | I39: 0 | J39: 0 | K39: 0 | L39: 0 | M39: 0 | N39: 0.6 | O39: 0 | Q39: 0 | R39: 0 | S39: 0 | T39: 0 | U39: 0 | V39: 0 | W39: 0 | X39: 0 | Y39: 0.29 | AI39: (or click on "Run" and then "Reset")
A40: 30 | B40: 0 | C40: 0 | D40: 0 | E40: 0 | F40: 0 | G40: 0 | H40: 0 | I40: 0 | J40: 0 | K40: 0 | L40: 0 | M40: 0 | N40: 0.6 | O40: 0 | Q40: 0 | R40: 0 | S40: 0 | T40: 0 | U40: 0 | V40: 0 | W40: 0 | X40: 0 | Y40: 0.3 | AI40: Go back to the sheet and use the macros correctly
A41: 31 | B41: 0 | C41: 0 | D41: 0 | E41: 0 | F41: 0 | G41: 0 | H41: 0 | I41: 0 | J41: 0 | K41: 0 | L41: 0 | M41: 0 | N41: 0.6 | O41: 0 | Q41: 0 | R41: 0 | S41: 0 | T41: 0 | U41: 0 | V41: 0 | W41: 0 | X41: 0 | Y41: 0.31
A42: 32 | B42: 0 | C42: 0 | D42: 0 | E42: 0 | F42: 0 | G42: 0 | H42: 0 | I42: 0 | J42: 0 | K42: 0 | L42: 0 | M42: 0 | N42: 0.6 | O42: 0 | Q42: 0 | R42: 0 | S42: 0 | T42: 0 | U42: 0 | V42: 0 | W42: 0 | X42: 0 | Y42: 0.32 | AG42: Sorption Isotherms
A43: 33 | B43: 0 | C43: 0 | D43: 0 | E43: 0 | F43: 0 | G43: 0 | H43: 0 | I43: 0 | J43: 0 | K43: 0 | L43: 0 | M43: 0 | N43: 0.6 | O43: 0 | Q43: 0 | R43: 0 | S43: 0 | T43: 0 | U43: 0 | V43: 0 | W43: 0 | X43: 0 | Y43: 0.33 | AG43: analyte # | AH43: 1 | AI43: 2 | AJ43: 3 | AM43: Alternative isotherms
A44: 34 | B44: 0 | C44: 0 | D44: 0 | E44: 0 | F44: 0 | G44: 0 | H44: 0 | I44: 0 | J44: 0 | K44: 0 | L44: 0 | M44: 0 | N44: 0.6 | O44: 0 | Q44: 0 | R44: 0 | S44: 0 | T44: 0 | U44: 0 | V44: 0 | W44: 0 | X44: 0 | Y44: 0.34 | AG44: C0 | AH44: 1 | AI44: 1 | AJ44: 1 | AM44: 1 | AN44: 1 | AO44: 1
A45: 35 | B45: 0 | C45: 0 | D45: 0 | E45: 0 | F45: 0 | G45: 0 | H45: 0 | I45: 0 | J45: 0 | K45: 0 | L45: 0 | M45: 0 | N45: 0.6 | O45: 0 | Q45: 0 | R45: 0 | S45: 0 | T45: 0 | U45: 0 | V45: 0 | W45: 0 | X45: 0 | Y45: 0.35 | AG45: C1 | AH45: 0 | AI45: 0 | AJ45: 0 | AM45: 1 | AN45: 0 | AO45: -0.5
A46: 36 | B46: 0 | C46: 0 | D46: 0 | E46: 0 | F46: 0 | G46: 0 | H46: 0 | I46: 0 | J46: 0 | K46: 0 | L46: 0 | M46: 0 | N46: 0.6 | O46: 0 | Q46: 0 | R46: 0 | S46: 0 | T46: 0 | U46: 0 | V46: 0 | W46: 0 | X46: 0 | Y46: 0.36 | AG46: C2 | AH46: 0 | AI46: 0 | AJ46: 0 | AM46: 0.1 | AN46: 0 | AO46: -0.1
A47: 37 | B47: 0 | C47: 0 | D47: 0 | E47: 0 | F47: 0 | G47: 0 | H47: 0 | I47: 0 | J47: 0 | K47: 0 | L47: 0 | M47: 0 | N47: 0.6 | O47: 0 | Q47: 0 | R47: 0 | S47: 0 | T47: 0 | U47: 0 | V47: 0 | W47: 0 | X47: 0 | Y47: 0.37 | AG47: n(m) | AH47: n(S) | AI47: n(S) | AJ47: n(S)
A48: 38 | B48: 0 | C48: 0 | D48: 0 | E48: 0 | F48: 0 | G48: 0 | H48: 0 | I48: 0 | J48: 0 | K48: 0 | L48: 0 | M48: 0 | N48: 0.6 | O48: 0 | Q48: 0 | R48: 0 | S48: 0 | T48: 0 | U48: 0 | V48: 0 | W48: 0 | X48: 0 | Y48: 0.38 | AG48: 0 | AH48: =$AG48*(AH$44+$AG48*(AH$45+$AG48*AH$46)) -> 0 | AI48: =$AG48*(AI$44+$AG48*(AI$45+$AG48*AI$46)) -> 0 | AJ48: 0
A49: 39 | B49: 0 | C49: 0 | D49: 0 | E49: 0 | F49: 0 | G49: 0 | H49: 0 | I49: 0 | J49: 0 | K49: 0 | L49: 0 | M49: 0 | N49: 0.6 | O49: 0 | Q49: 0 | R49: 0 | S49: 0 | T49: 0 | U49: 0 | V49: 0 | W49: 0 | X49: 0 | Y49: 0.39 | AG49: 0.1 | AH49: =$AG49*(AH$44+$AG49*(AH$45+$AG49*AH$46)) -> 0.1 | AI49: 0.1 | AJ49: 0.1
A50: 40 | B50: 0 | C50: 0 | D50: 0 | E50: 0 | F50: 0 | G50: 0 | H50: 0 | I50: 0 | J50: 0 | K50: 0 | L50: 0 | M50: 0 | N50: 0.6 | O50: 0 | Q50: 0 | R50: 0 | S50: 0 | T50: 0 | U50: 0 | V50: 0 | W50: 0 | X50: 0 | Y50: 0.4 | AG50: 0.2 | AH50: 0.2 | AI50: 0.2 | AJ50: 0.2
A51: 41 | B51: 0 | C51: 0 | D51: 0 | E51: 0 | F51: 0 | G51: 0 | H51: 0 | I51: 0 | J51: 0 | K51: 0 | L51: 0 | M51: 0 | N51: 0.6 | O51: 0 | Q51: 0 | R51: 0 | S51: 0 | T51: 0 | U51: 0 | V51: 0 | W51: 0 | X51: 0 | Y51: 0.41 | AG51: 0.3 | AH51: 0.3 | AI51: 0.3 | AJ51: 0.3
A52: 42 | B52: 0 | C52: 0 | D52: 0 | E52: 0 | F52: 0 | G52: 0 | H52: 0 | I52: 0 | J52: 0 | K52: 0 | L52: 0 | M52: 0 | N52: 0.6 | O52: 0 | Q52: 0 | R52: 0 | S52: 0 | T52: 0 | U52: 0 | V52: 0 | W52: 0 | X52: 0 | Y52: 0.42 | AG52: 0.4 | AH52: 0.4 | AI52: 0.4 | AJ52: 0.4
A53: 43 | B53: 0 | C53: 0 | D53: 0 | E53: 0 | F53: 0 | G53: 0 | H53: 0 | I53: 0 | J53: 0 | K53: 0 | L53: 0 | M53: 0 | N53: 0.6 | O53: 0 | Q53: 0 | R53: 0 | S53: 0 | T53: 0 | U53: 0 | V53: 0 | W53: 0 | X53: 0 | Y53: 0.43 | AG53: 0.5 | AH53: 0.5 | AI53: 0.5 | AJ53: 0.5
A54: 44 | B54: 0 | C54: 0 | D54: 0 | E54: 0 | F54: 0 | G54: 0 | H54: 0 | I54: 0 | J54: 0 | K54: 0 | L54: 0 | M54: 0 | N54: 0.6 | O54: 0 | Q54: 0 | R54: 0 | S54: 0 | T54: 0 | U54: 0 | V54: 0 | W54: 0 | X54: 0 | Y54: 0.44 | AG54: 0.6 | AH54: 0.6 | AI54: 0.6 | AJ54: 0.6
A55: 45 | B55: 0 | C55: 0 | D55: 0 | E55: 0 | F55: 0 | G55: 0 | H55: 0 | I55: 0 | J55: 0 | K55: 0 | L55: 0 | M55: 0 | N55: 0.6 | O55: 0 | Q55: 0 | R55: 0 | S55: 0 | T55: 0 | U55: 0 | V55: 0 | W55: 0 | X55: 0 | Y55: 0.45 | AG55: 0.7 | AH55: 0.7 | AI55: 0.7 | AJ55: 0.7
A56: 46 | B56: 0 | C56: 0 | D56: 0 | E56: 0 | F56: 0 | G56: 0 | H56: 0 | I56: 0 | J56: 0 | K56: 0 | L56: 0 | M56: 0 | N56: 0.6 | O56: 0 | Q56: 0 | R56: 0 | S56: 0 | T56: 0 | U56: 0 | V56: 0 | W56: 0 | X56: 0 | Y56: 0.46 | AG56: 0.8 | AH56: 0.8 | AI56: 0.8 | AJ56: 0.8
A57: 47 | B57: 0 | C57: 0 | D57: 0 | E57: 0 | F57: 0 | G57: 0 | H57: 0 | I57: 0 | J57: 0 | K57: 0 | L57: 0 | M57: 0 | N57: 0.6 | O57: 0 | Q57: 0 | R57: 0 | S57: 0 | T57: 0 | U57: 0 | V57: 0 | W57: 0 | X57: 0 | Y57: 0.47 | AG57: 0.9 | AH57: 0.9 | AI57: 0.9 | AJ57: 0.9
A58: 48 | B58: 0 | C58: 0 | D58: 0 | E58: 0 | F58: 0 | G58: 0 | H58: 0 | I58: 0 | J58: 0 | K58: 0 | L58: 0 | M58: 0 | N58: 0.6 | O58: 0 | Q58: 0 | R58: 0 | S58: 0 | T58: 0 | U58: 0 | V58: 0 | W58: 0 | X58: 0 | Y58: 0.48 | AG58: 1 | AH58: 1 | AI58: 1 | AJ58: 1
A59: 49 | B59: 0 | C59: 0 | D59: 0 | E59: 0 | F59: 0 | G59: 0 | H59: 0 | I59: 0 | J59: 0 | K59: 0 | L59: 0 | M59: 0 | N59: 0.6 | O59: 0 | Q59: 0 | R59: 0 | S59: 0 | T59: 0 | U59: 0 | V59: 0 | W59: 0 | X59: 0 | Y59: 0.49
A60: 50 | B60: 0 | C60: 0 | D60: 0 | E60: 0 | F60: 0 | G60: 0 | H60: 0 | I60: 0 | J60: 0 | K60: 0 | L60: 0 | M60: 0 | N60: 0.6 | O60: 0 | Q60: 0 | R60: 0 | S60: 0 | T60: 0 | U60: 0 | V60: 0 | W60: 0 | X60: 0 | Y60: 0.5
A61: 51 | B61: 0 | C61: 0 | D61: 0 | E61: 0 | F61: 0 | G61: 0 | H61: 0 | I61: 0 | J61: 0 | K61: 0 | L61: 0 | M61: 0 | N61: 0.6 | O61: 0 | Q61: 0 | R61: 0 | S61: 0 | T61: 0 | U61: 0 | V61: 0 | W61: 0 | X61: 0 | Y61: 0.51 | AG61: phid | AH61: =(K6-K5)/AJ62 -> 0 | AI61: =0.01*(K6-K5)/K7 -> 0
A62: 52 | B62: 0 | C62: 0 | D62: 0 | E62: 0 | F62: 0 | G62: 0 | H62: 0 | I62: 0 | J62: 0 | K62: 0 | L62: 0 | M62: 0 | N62: 0.6 | O62: 0 | Q62: 0 | R62: 0 | S62: 0 | T62: 0 | U62: 0 | V62: 0 | W62: 0 | X62: 0 | Y62: 0.52 | AG62: Period | AH62: =K8 -> 0.5 | AJ62: =QUOTIENT(K7,AH62) -> 16
A63: 53 | B63: 0 | C63: 0 | D63: 0 | E63: 0 | F63: 0 | G63: 0 | H63: 0 | I63: 0 | J63: 0 | K63: 0 | L63: 0 | M63: 0 | N63: 0.6 | O63: 0 | Q63: 0 | R63: 0 | S63: 0 | T63: 0 | U63: 0 | V63: 0 | W63: 0 | X63: 0 | Y63: 0.53 | AG63: Ampl | AH63: 0
A64: 54 | B64: 0 | C64: 0 | D64: 0 | E64: 0 | F64: 0 | G64: 0 | H64: 0 | I64: 0 | J64: 0 | K64: 0 | L64: 0 | M64: 0 | N64: 0.6 | O64: 0 | Q64: 0 | R64: 0 | S64: 0 | T64: 0 | U64: 0 | V64: 0 | W64: 0 | X64: 0 | Y64: 0.54
A65: 55 | B65: 0 | C65: 0 | D65: 0 | E65: 0 | F65: 0 | G65: 0 | H65: 0 | I65: 0 | J65: 0 | K65: 0 | L65: 0 | M65: 0 | N65: 0.6 | O65: 0 | Q65: 0 | R65: 0 | S65: 0 | T65: 0 | U65: 0 | V65: 0 | W65: 0 | X65: 0 | Y65: 0.55 | AG65: Time | AH65: Complex | AI65: Simple | AJ65: Pulse
A66: 56 | B66: 0 | C66: 0 | D66: 0 | E66: 0 | F66: 0 | G66: 0 | H66: 0 | I66: 0 | J66: 0 | K66: 0 | L66: 0 | M66: 0 | N66: 0.6 | O66: 0 | Q66: 0 | R66: 0 | S66: 0 | T66: 0 | U66: 0 | V66: 0 | W66: 0 | X66: 0 | Y66: 0.56 | AG66: 0 | AH66: =IF(AG66<$K$7,IF(MOD(AJ66,2)=0,$K$5,$K$5+AJ66*AH$61),$K$6) -> 0.6 | AI66: =$K$5 -> 0.6 | AJ66: =QUOTIENT(AG66,AH$62) -> 0
A67: 57 | B67: 0 | C67: 0 | D67: 0 | E67: 0 | F67: 0 | G67: 0 | H67: 0 | I67: 0 | J67: 0 | K67: 0 | L67: 0 | M67: 0 | N67: 0.6 | O67: 0 | Q67: 0 | R67: 0 | S67: 0 | T67: 0 | U67: 0 | V67: 0 | W67: 0 | X67: 0 | Y67: 0.57 | AG67: 0.01 | AH67: =IF(AG67<$K$7,IF(MOD(AJ67,2)=0,$K$5,$K$5+AJ67*AH$61),$K$6) -> 0.6 | AI67: =IF(AG67<=$K$8,AI66,IF(AG67<=($K$7+$K$8),AI66+$AI$61,$K$6)) -> 0.6 | AJ67: =QUOTIENT(AG67,AH$62) -> 0
A68: 58 | B68: 0 | C68: 0 | D68: 0 | E68: 0 | F68: 0 | G68: 0 | H68: 0 | I68: 0 | J68: 0 | K68: 0 | L68: 0 | M68: 0 | N68: 0.6 | O68: 0 | Q68: 0 | R68: 0 | S68: 0 | T68: 0 | U68: 0 | V68: 0 | W68: 0 | X68: 0 | Y68: 0.58 | AG68: 0.02 | AH68: =IF(AG68<$K$7,IF(MOD(AJ68,2)=0,$K$5,$K$5+AJ68*AH$61),$K$6) -> 0.6 | AI68: =IF(AG68<=$K$8,AI67,IF(AG68<=($K$7+$K$8),AI67+$AI$61,$K$6)) -> 0.6 | AJ68: =QUOTIENT(AG68,AH$62) -> 0
A69: 59 | B69: 0 | C69: 0 | D69: 0 | E69: 0 | F69: 0 | G69: 0 | H69: 0 | I69: 0 | J69: 0 | K69: 0 | L69: 0 | M69: 0 | N69: 0.6 | O69: 0 | Q69: 0 | R69: 0 | S69: 0 | T69: 0 | U69: 0 | V69: 0 | W69: 0 | X69: 0 | Y69: 0.59 | AG69: 0.03 | AH69: 0.6 | AI69: 0.6 | AJ69: 0
A70: 60 | B70: 0 | C70: 0 | D70: 0 | E70: 0 | F70: 0 | G70: 0 | H70: 0 | I70: 0 | J70: 0 | K70: 0 | L70: 0 | M70: 0 | N70: 0.6 | O70: 0 | Q70: 0 | R70: 0 | S70: 0 | T70: 0 | U70: 0 | V70: 0 | W70: 0 | X70: 0 | Y70: 0.6 | AG70: 0.04 | AH70: 0.6 | AI70: 0.6 | AJ70: 0
A71: 61 | B71: 0 | C71: 0 | D71: 0 | E71: 0 | F71: 0 | G71: 0 | H71: 0 | I71: 0 | J71: 0 | K71: 0 | L71: 0 | M71: 0 | N71: 0.6 | O71: 0 | Q71: 0 | R71: 0 | S71: 0 | T71: 0 | U71: 0 | V71: 0 | W71: 0 | X71: 0 | Y71: 0.61 | AG71: 0.05 | AH71: 0.6 | AI71: 0.6 | AJ71: 0
A72: 62 | B72: 0 | C72: 0 | D72: 0 | E72: 0 | F72: 0 | G72: 0 | H72: 0 | I72: 0 | J72: 0 | K72: 0 | L72: 0 | M72: 0 | N72: 0.6 | O72: 0 | Q72: 0 | R72: 0 | S72: 0 | T72: 0 | U72: 0 | V72: 0 | W72: 0 | X72: 0 | Y72: 0.62 | AG72: 0.06 | AH72: 0.6 | AI72: 0.6 | AJ72: 0
A73: 63 | B73: 0 | C73: 0 | D73: 0 | E73: 0 | F73: 0 | G73: 0 | H73: 0 | I73: 0 | J73: 0 | K73: 0 | L73: 0 | M73: 0 | N73: 0.6 | O73: 0 | Q73: 0 | R73: 0 | S73: 0 | T73: 0 | U73: 0 | V73: 0 | W73: 0 | X73: 0 | Y73: 0.63 | AG73: 0.07 | AH73: 0.6 | AI73: 0.6 | AJ73: 0
A74: 64 | B74: 0 | C74: 0 | D74: 0 | E74: 0 | F74: 0 | G74: 0 | H74: 0 | I74: 0 | J74: 0 | K74: 0 | L74: 0 | M74: 0 | N74: 0.6 | O74: 0 | Q74: 0 | R74: 0 | S74: 0 | T74: 0 | U74: 0 | V74: 0 | W74: 0 | X74: 0 | Y74: 0.64 | AG74: 0.08 | AH74: 0.6 | AI74: 0.6 | AJ74: 0
A75: 65 | B75: 0 | C75: 0 | D75: 0 | E75: 0 | F75: 0 | G75: 0 | H75: 0 | I75: 0 | J75: 0 | K75: 0 | L75: 0 | M75: 0 | N75: 0.6 | O75: 0 | Q75: 0 | R75: 0 | S75: 0 | T75: 0 | U75: 0 | V75: 0 | W75: 0 | X75: 0 | Y75: 0.65 | AG75: 0.09 | AH75: 0.6 | AI75: 0.6 | AJ75: 0
A76: 66 | B76: 0 | C76: 0 | D76: 0 | E76: 0 | F76: 0 | G76: 0 | H76: 0 | I76: 0 | J76: 0 | K76: 0 | L76: 0 | M76: 0 | N76: 0.6 | O76: =B76+D76+F76 -> 0 | Q76: 0 | R76: 0 | S76: 0 | T76: 0 | U76: 0 | V76: 0 | W76: 0 | X76: 0 | Y76: 0.66 | AG76: 0.1 | AH76: 0.6 | AI76: 0.6 | AJ76: 0
A77: 67 | B77: 0 | C77: 0 | D77: 0 | E77: 0 | F77: 0 | G77: 0 | H77: 0 | I77: 0 | J77: 0 | K77: 0 | L77: 0 | M77: 0 | N77: 0.6 | O77: 0 | Q77: 0 | R77: 0 | S77: 0 | T77: 0 | U77: 0 | V77: 0 | W77: 0 | X77: 0 | Y77: 0.67 | AG77: 0.11 | AH77: 0.6 | AI77: 0.6 | AJ77: 0
A78: 68 | B78: 0 | C78: 0 | D78: 0 | E78: 0 | F78: 0 | G78: 0 | H78: 0 | I78: 0 | J78: 0 | K78: 0 | L78: 0 | M78: 0 | N78: 0.6 | O78: 0 | Q78: 0 | R78: 0 | S78: 0 | T78: 0 | U78: 0 | V78: 0 | W78: 0 | X78: 0 | Y78: 0.68 | AG78: 0.12 | AH78: 0.6 | AI78: 0.6 | AJ78: 0
A79: 69 | B79: 0 | C79: 0 | D79: 0 | E79: 0 | F79: 0 | G79: 0 | H79: 0 | I79: 0 | J79: 0 | K79: 0 | L79: 0 | M79: 0 | N79: 0.6 | O79: 0 | Q79: 0 | R79: 0 | S79: 0 | T79: 0 | U79: 0 | V79: 0 | W79: 0 | X79: 0 | Y79: 0.69 | AG79: 0.13 | AH79: 0.6 | AI79: 0.6 | AJ79: 0
A80: 70 | B80: 0 | C80: 0 | D80: 0 | E80: 0 | F80: 0 | G80: 0 | H80: 0 | I80: 0 | J80: 0 | K80: 0 | L80: 0 | M80: 0 | N80: 0.6 | O80: 0 | Q80: 0 | R80: 0 | S80: 0 | T80: 0 | U80: 0 | V80: 0 | W80: 0 | X80: 0 | Y80: 0.7 | AG80: 0.14 | AH80: 0.6 | AI80: 0.6 | AJ80: 0
A81: 71 | B81: 0 | C81: 0 | D81: 0 | E81: 0 | F81: 0 | G81: 0 | H81: 0 | I81: 0 | J81: 0 | K81: 0 | L81: 0 | M81: 0 | N81: 0.6 | O81: 0 | Q81: 0 | R81: 0 | S81: 0 | T81: 0 | U81: 0 | V81: 0 | W81: 0 | X81: 0 | Y81: 0.71 | AG81: 0.15 | AH81: 0.6 | AI81: 0.6 | AJ81: 0
A82: 72 | B82: 0 | C82: 0 | D82: 0 | E82: 0 | F82: 0 | G82: 0 | H82: 0 | I82: 0 | J82: 0 | K82: 0 | L82: 0 | M82: 0 | N82: 0.6 | O82: 0 | Q82: 0 | R82: 0 | S82: 0 | T82: 0 | U82: 0 | V82: 0 | W82: 0 | X82: 0 | Y82: 0.72 | AG82: 0.16 | AH82: 0.6 | AI82: 0.6 | AJ82: 0
A83: 73 | B83: 0 | C83: 0 | D83: 0 | E83: 0 | F83: 0 | G83: 0 | H83: 0 | I83: 0 | J83: 0 | K83: 0 | L83: 0 | M83: 0 | N83: 0.6 | O83: 0 | Q83: 0 | R83: 0 | S83: 0 | T83: 0 | U83: 0 | V83: 0 | W83: 0 | X83: 0 | Y83: 0.73 | AG83: 0.17 | AH83: 0.6 | AI83: 0.6 | AJ83: 0
A84: 74 | B84: 0 | C84: 0 | D84: 0 | E84: 0 | F84: 0 | G84: 0 | H84: 0 | I84: 0 | J84: 0 | K84: 0 | L84: 0 | M84: 0 | N84: 0.6 | O84: 0 | Q84: 0 | R84: 0 | S84: 0 | T84: 0 | U84: 0 | V84: 0 | W84: 0 | X84: 0 | Y84: 0.74 | AG84: 0.18 | AH84: 0.6 | AI84: 0.6 | AJ84: 0
A85: 75 | B85: 0 | C85: 0 | D85: 0 | E85: 0 | F85: 0 | G85: 0 | H85: 0 | I85: 0 | J85: 0 | K85: 0 | L85: 0 | M85: 0 | N85: 0.6 | O85: 0 | Q85: 0 | R85: 0 | S85: 0 | T85: 0 | U85: 0 | V85: 0 | W85: 0 | X85: 0 | Y85: 0.75 | AG85: 0.19 | AH85: 0.6 | AI85: 0.6 | AJ85: 0
A86: 76 | B86: 0 | C86: 0 | D86: 0 | E86: 0 | F86: 0 | G86: 0 | H86: 0 | I86: 0 | J86: 0 | K86: 0 | L86: 0 | M86: 0 | N86: 0.6 | O86: 0 | Q86: 0 | R86: 0 | S86: 0 | T86: 0 | U86: 0 | V86: 0 | W86: 0 | X86: 0 | Y86: 0.76 | AG86: 0.2 | AH86: 0.6 | AI86: 0.6 | AJ86: 0
A87: 77 | B87: 0 | C87: 0 | D87: 0 | E87: 0 | F87: 0 | G87: 0 | H87: 0 | I87: 0 | J87: 0 | K87: 0 | L87: 0 | M87: 0 | N87: 0.6 | O87: 0 | Q87: 0 | R87: 0 | S87: 0 | T87: 0 | U87: 0 | V87: 0 | W87: 0 | X87: 0 | Y87: 0.77 | AG87: 0.21 | AH87: 0.6 | AI87: 0.6 | AJ87: 0
A88: 78 | B88: 0 | C88: 0 | D88: 0 | E88: 0 | F88: 0 | G88: 0 | H88: 0 | I88: 0 | J88: 0 | K88: 0 | L88: 0 | M88: 0 | N88: 0.6 | O88: 0 | Q88: 0 | R88: 0 | S88: 0 | T88: 0 | U88: 0 | V88: 0 | W88: 0 | X88: 0 | Y88: 0.78 | AG88: 0.22 | AH88: 0.6 | AI88: 0.6 | AJ88: 0
A89: 79 | B89: 0 | C89: 0 | D89: 0 | E89: 0 | F89: 0 | G89: 0 | H89: 0 | I89: 0 | J89: 0 | K89: 0 | L89: 0 | M89: 0 | N89: 0.6 | O89: 0 | Q89: 0 | R89: 0 | S89: 0 | T89: 0 | U89: 0 | V89: 0 | W89: 0 | X89: 0 | Y89: 0.79 | AG89: 0.23 | AH89: 0.6 | AI89: 0.6 | AJ89: 0
A90: 80 | B90: 0 | C90: 0 | D90: 0 | E90: 0 | F90: 0 | G90: 0 | H90: 0 | I90: 0 | J90: 0 | K90: 0 | L90: 0 | M90: 0 | N90: 0.6 | O90: 0 | Q90: 0 | R90: 0 | S90: 0 | T90: 0 | U90: 0 | V90: 0 | W90: 0 | X90: 0 | Y90: 0.8 | AG90: 0.24 | AH90: 0.6 | AI90: 0.6 | AJ90: 0
A91: 81 | B91: 0 | C91: 0 | D91: 0 | E91: 0 | F91: 0 | G91: 0 | H91: 0 | I91: 0 | J91: 0 | K91: 0 | L91: 0 | M91: 0 | N91: 0.6 | O91: 0 | Q91: 0 | R91: 0 | S91: 0 | T91: 0 | U91: 0 | V91: 0 | W91: 0 | X91: 0 | Y91: 0.81 | AG91: 0.25 | AH91: 0.6 | AI91: 0.6 | AJ91: 0
A92: 82 | B92: 0 | C92: 0 | D92: 0 | E92: 0 | F92: 0 | G92: 0 | H92: 0 | I92: 0 | J92: 0 | K92: 0 | L92: 0 | M92: 0 | N92: 0.6 | O92: 0 | Q92: 0 | R92: 0 | S92: 0 | T92: 0 | U92: 0 | V92: 0 | W92: 0 | X92: 0 | Y92: 0.82 | AG92: 0.26 | AH92: 0.6 | AI92: 0.6 | AJ92: 0
A93: 83 | B93: 0 | C93: 0 | D93: 0 | E93: 0 | F93: 0 | G93: 0 | H93: 0 | I93: 0 | J93: 0 | K93: 0 | L93: 0 | M93: 0 | N93: 0.6 | O93: 0 | Q93: 0 | R93: 0 | S93: 0 | T93: 0 | U93: 0 | V93: 0 | W93: 0 | X93: 0 | Y93: 0.83 | AG93: 0.27 | AH93: 0.6 | AI93: 0.6 | AJ93: 0
A94: 84 | B94: 0 | C94: 0 | D94: 0 | E94: 0 | F94: 0 | G94: 0 | H94: 0 | I94: 0 | J94: 0 | K94: 0 | L94: 0 | M94: 0 | N94: 0.6 | O94: 0 | Q94: 0 | R94: 0 | S94: 0 | T94: 0 | U94: 0 | V94: 0 | W94: 0 | X94: 0 | Y94: 0.84 | AG94: 0.28 | AH94: 0.6 | AI94: 0.6 | AJ94: 0
A95: 85 | B95: 0 | C95: 0 | D95: 0 | E95: 0 | F95: 0 | G95: 0 | H95: 0 | I95: 0 | J95: 0 | K95: 0 | L95: 0 | M95: 0 | N95: 0.6 | O95: 0 | Q95: 0 | R95: 0 | S95: 0 | T95: 0 | U95: 0 | V95: 0 | W95: 0 | X95: 0 | Y95: 0.85 | AG95: 0.29 | AH95: 0.6 | AI95: 0.6 | AJ95: 0
A96: 86 | B96: 0 | C96: 0 | D96: 0 | E96: 0 | F96: 0 | G96: 0 | H96: 0 | I96: 0 | J96: 0 | K96: 0 | L96: 0 | M96: 0 | N96: 0.6 | O96: 0 | Q96: 0 | R96: 0 | S96: 0 | T96: 0 | U96: 0 | V96: 0 | W96: 0 | X96: 0 | Y96: 0.86 | AG96: 0.3 | AH96: 0.6 | AI96: 0.6 | AJ96: 0
A97: 87 | B97: 0 | C97: 0 | D97: 0 | E97: 0 | F97: 0 | G97: 0 | H97: 0 | I97: 0 | J97: 0 | K97: 0 | L97: 0 | M97: 0 | N97: 0.6 | O97: 0 | Q97: 0 | R97: 0 | S97: 0 | T97: 0 | U97: 0 | V97: 0 | W97: 0 | X97: 0 | Y97: 0.87 | AG97: 0.31 | AH97: 0.6 | AI97: 0.6 | AJ97: 0
A98: 88 | B98: 0 | C98: 0 | D98: 0 | E98: 0 | F98: 0 | G98: 0 | H98: 0 | I98: 0 | J98: 0 | K98: 0 | L98: 0 | M98: 0 | N98: 0.6 | O98: 0 | Q98: 0 | R98: 0 | S98: 0 | T98: 0 | U98: 0 | V98: 0 | W98: 0 | X98: 0 | Y98: 0.88 | AG98: 0.32 | AH98: 0.6 | AI98: 0.6 | AJ98: 0
A99: 89 | B99: 0 | C99: 0 | D99: 0 | E99: 0 | F99: 0 | G99: 0 | H99: 0 | I99: 0 | J99: 0 | K99: 0 | L99: 0 | M99: 0 | N99: 0.6 | O99: 0 | Q99: 0 | R99: 0 | S99: 0 | T99: 0 | U99: 0 | V99: 0 | W99: 0 | X99: 0 | Y99: 0.89 | AG99: 0.33 | AH99: 0.6 | AI99: 0.6 | AJ99: 0
A100: 90 | B100: 0 | C100: 0 | D100: 0 | E100: 0 | F100: 0 | G100: 0 | H100: 0 | I100: 0 | J100: 0 | K100: 0 | L100: 0 | M100: 0 | N100: 0.6 | O100: 0 | Q100: 0 | R100: 0 | S100: 0 | T100: 0 | U100: 0 | V100: 0 | W100: 0 | X100: 0 | Y100: 0.9 | AG100: 0.34 | AH100: 0.6 | AI100: 0.6 | AJ100: 0
A101: 91 | B101: 0 | C101: 0 | D101: 0 | E101: 0 | F101: 0 | G101: 0 | H101: 0 | I101: 0 | J101: 0 | K101: 0 | L101: 0 | M101: 0 | N101: 0.6 | O101: 0 | Q101: 0 | R101: 0 | S101: 0 | T101: 0 | U101: 0 | V101: 0 | W101: 0 | X101: 0 | Y101: 0.91 | AG101: 0.35 | AH101: 0.6 | AI101: 0.6 | AJ101: 0
A102: 92 | B102: 0 | C102: 0 | D102: 0 | E102: 0 | F102: 0 | G102: 0 | H102: 0 | I102: 0 | J102: 0 | K102: 0 | L102: 0 | M102: 0 | N102: 0.6 | O102: 0 | Q102: 0 | R102: 0 | S102: 0 | T102: 0 | U102: 0 | V102: 0 | W102: 0 | X102: 0 | Y102: 0.92 | AG102: 0.36 | AH102: 0.6 | AI102: 0.6 | AJ102: 0
A103: 93 | B103: 0 | C103: 0 | D103: 0 | E103: 0 | F103: 0 | G103: 0 | H103: 0 | I103: 0 | J103: 0 | K103: 0 | L103: 0 | M103: 0 | N103: 0.6 | O103: 0 | Q103: 0 | R103: 0 | S103: 0 | T103: 0 | U103: 0 | V103: 0 | W103: 0 | X103: 0 | Y103: 0.93 | AG103: 0.37 | AH103: 0.6 | AI103: 0.6 | AJ103: 0
A104: 94 | B104: 0 | C104: 0 | D104: 0 | E104: 0 | F104: 0 | G104: 0 | H104: 0 | I104: 0 | J104: 0 | K104: 0 | L104: 0 | M104: 0 | N104: 0.6 | O104: 0 | Q104: 0 | R104: 0 | S104: 0 | T104: 0 | U104: 0 | V104: 0 | W104: 0 | X104: 0 | Y104: 0.94 | AG104: 0.38 | AH104: 0.6 | AI104: 0.6 | AJ104: 0
A105: 95 | B105: 0 | C105: 0 | D105: 0 | E105: 0 | F105: 0 | G105: 0 | H105: 0 | I105: 0 | J105: 0 | K105: 0 | L105: 0 | M105: 0 | N105: 0.6 | O105: 0 | Q105: 0 | R105: 0 | S105: 0 | T105: 0 | U105: 0 | V105: 0 | W105: 0 | X105: 0 | Y105: 0.95 | AG105: 0.39 | AH105: 0.6 | AI105: 0.6 | AJ105: 0
A106: 96 | B106: 0 | C106: 0 | D106: 0 | E106: 0 | F106: 0 | G106: 0 | H106: 0 | I106: 0 | J106: 0 | K106: 0 | L106: 0 | M106: 0 | N106: 0.6 | O106: 0 | Q106: 0 | R106: 0 | S106: 0 | T106: 0 | U106: 0 | V106: 0 | W106: 0 | X106: 0 | Y106: 0.96 | AG106: 0.4 | AH106: 0.6 | AI106: 0.6 | AJ106: 0
A107: 97 | B107: 0 | C107: 0 | D107: 0 | E107: 0 | F107: 0 | G107: 0 | H107: 0 | I107: 0 | J107: 0 | K107: 0 | L107: 0 | M107: 0 | N107: 0.6 | O107: 0 | Q107: 0 | R107: 0 | S107: 0 | T107: 0 | U107: 0 | V107: 0 | W107: 0 | X107: 0 | Y107: 0.97 | AG107: 0.41 | AH107: 0.6 | AI107: 0.6 | AJ107: 0
A108: 98 | B108: 0 | C108: 0 | D108: 0 | E108: 0 | F108: 0 | G108: 0 | H108: 0 | I108: 0 | J108: 0 | K108: 0 | L108: 0 | M108: 0 | N108: 0.6 | O108: 0 | Q108: 0 | R108: 0 | S108: 0 | T108: 0 | U108: 0 | V108: 0 | W108: 0 | X108: 0 | Y108: 0.98 | AG108: 0.42 | AH108: 0.6 | AI108: 0.6 | AJ108: 0
A109: 99 | B109: 0 | C109: 0 | D109: 0 | E109: 0 | F109: 0 | G109: 0 | H109: 0 | I109: 0 | J109: 0 | K109: 0 | L109: 0 | M109: 0 | N109: 0.6 | O109: 0 | Q109: 0 | R109: 0 | S109: 0 | T109: 0 | U109: 0 | V109: 0 | W109: 0 | X109: 0 | Y109: 0.99 | AG109: 0.43 | AH109: 0.6 | AI109: 0.6 | AJ109: 0
A110: 100 | B110: 0 | C110: 0 | D110: 0 | E110: 0 | F110: 0 | G110: 0 | H110: 0 | I110: 0 | J110: 0 | K110: 0 | L110: 0 | M110: 0 | N110: 0.6 | O110: 0 | Q110: 0 | R110: 0 | S110: 0 | T110: 0 | U110: 0 | V110: 0 | W110: 0 | X110: 0 | Y110: 1 | AG110: 0.44 | AH110: 0.6 | AI110: 0.6 | AJ110: 0
A111: k* | B111: 0 | C111: 0 | D111: 0 | E111: 0 | F111: 0 | G111: 0 | H111: 0 | I111: 0 | J111: 0 | K111: 0 | L111: 0 | M111: 0 | N111: 0 | O111: 0 | Q111: 0 | R111: 0 | S111: 0 | T111: 0 | U111: 0 | V111: 0 | W111: 0 | X111: 0 | Y111: 1.01 | AG111: 0.45 | AH111: 0.6 | AI111: 0.6 | AJ111: 0
A112: tR,h | B112: 0 | C112: 0 | D112: 0 | E112: 0 | F112: 0 | G112: 0 | H112: 0 | I112: 0.6 | J112: 0 | K112: 0 | L112: 0 | M112: 0 | N112: 0 | O112: 0 | Q112: 0 | R112: 0 | S112: 0 | T112: 0 | U112: 0 | V112: 0 | W112: 0 | X112: 0 | Y112: 1.02 | AG112: 0.46 | AH112: 0.6 | AI112: 0.6 | AJ112: 0
W113: 0 | X113: 0 | Y113: 1.03 | AG113: 0.47 | AH113: 0.6 | AI113: 0.6 | AJ113: 0
W114: 0 | X114: 0 | Y114: 1.04 | AG114: 0.48 | AH114: 0.6 | AI114: 0.6 | AJ114: 0
W115: 0 | X115: 0 | Y115: 1.05 | AG115: 0.49 | AH115: 0.6 | AI115: 0.6 | AJ115: 0
W116: 0 | X116: 0 | Y116: 1.06 | AG116: 0.5 | AH116: 0.6 | AI116: 0.6 | AJ116: 1
W117: 0 | X117: 0 | Y117: 1.07 | AG117: 0.51 | AH117: 0.6 | AI117: 0.6 | AJ117: 1
W118: 0 | X118: 0 | Y118: 1.08 | AG118: 0.52 | AH118: 0.6 | AI118: 0.6 | AJ118: 1
W119: 0 | X119: 0 | Y119: 1.09 | AG119: 0.53 | AH119: 0.6 | AI119: 0.6 | AJ119: 1
W120: 0 | X120: 0 | Y120: 1.1 | AG120: 0.54 | AH120: 0.6 | AI120: 0.6 | AJ120: 1
W121: 0 | X121: 0 | Y121: 1.11 | AG121: 0.55 | AH121: 0.6 | AI121: 0.6 | AJ121: 1
W122: 0 | X122: 0 | Y122: 1.12 | AG122: 0.56 | AH122: 0.6 | AI122: 0.6 | AJ122: 1
W123: 0 | X123: 0 | Y123: 1.13 | AG123: 0.57 | AH123: 0.6 | AI123: 0.6 | AJ123: 1
W124: 0 | X124: 0 | Y124: 1.14 | AG124: 0.58 | AH124: 0.6 | AI124: 0.6 | AJ124: 1
W125: 0 | X125: 0 | Y125: 1.15 | AG125: 0.59 | AH125: 0.6 | AI125: 0.6 | AJ125: 1
W126: 0 | X126: 0 | Y126: 1.16 | AG126: 0.6 | AH126: 0.6 | AI126: 0.6 | AJ126: 1
W127: 0 | X127: 0 | Y127: 1.17 | AG127: 0.61 | AH127: 0.6 | AI127: 0.6 | AJ127: 1
W128: 0 | X128: 0 | Y128: 1.18 | AG128: 0.62 | AH128: 0.6 | AI128: 0.6 | AJ128: 1
W129: 0 | X129: 0 | Y129: 1.19 | AG129: 0.63 | AH129: 0.6 | AI129: 0.6 | AJ129: 1
W130: 0 | X130: 0 | Y130: 1.2 | AG130: 0.64 | AH130: 0.6 | AI130: 0.6 | AJ130: 1
W131: 0 | X131: 0 | Y131: 1.21 | AG131: 0.65 | AH131: =IF(AG131<$K$7,IF(MOD(AJ131,2)=0,$K$5,$K$5+AJ131*AH$61),$K$6) -> 0.6 | AI131: 0.6 | AJ131: =QUOTIENT(AG131,AH$62) -> 1
W132: 0 | X132: 0 | Y132: 1.22 | AG132: 0.66 | AH132: 0.6 | AI132: =IF(AG132<=$K$8,AI131,IF(AG132<=($K$7+$K$8),AI131+$AI$61,$K$6)) -> 0.6 | AJ132: 1
W133: 0 | X133: 0 | Y133: 1.23 | AG133: 0.67 | AH133: 0.6 | AI133: 0.6 | AJ133: 1
W134: 0 | X134: 0 | Y134: 1.24 | AG134: 0.68 | AH134: 0.6 | AI134: 0.6 | AJ134: 1
W135: 0 | X135: 0 | Y135: 1.25 | AG135: 0.69 | AH135: 0.6 | AI135: 0.6 | AJ135: 1
W136: 0 | X136: 0 | Y136: 1.26 | AG136: 0.7 | AH136: 0.6 | AI136: 0.6 | AJ136: 1
W137: 0 | X137: 0 | Y137: 1.27 | AG137: 0.71 | AH137: 0.6 | AI137: 0.6 | AJ137: 1
W138: 0 | X138: 0 | Y138: 1.28 | AG138: 0.72 | AH138: 0.6 | AI138: 0.6 | AJ138: 1
W139: 0 | X139: 0 | Y139: 1.29 | AG139: 0.73 | AH139: 0.6 | AI139: 0.6 | AJ139: 1
W140: 0 | X140: 0 | Y140: 1.3 | AG140: 0.74 | AH140: 0.6 | AI140: 0.6 | AJ140: 1
W141: 0 | X141: 0 | Y141: 1.31 | AG141: 0.75 | AH141: 0.6 | AI141: 0.6 | AJ141: 1
W142: 0 | X142: 0 | Y142: 1.32 | AG142: 0.76 | AH142: 0.6 | AI142: 0.6 | AJ142: 1
W143: 0 | X143: 0 | Y143: 1.33 | AG143: 0.77 | AH143: 0.6 | AI143: 0.6 | AJ143: 1
W144: 0 | X144: 0 | Y144: 1.34 | AG144: 0.78 | AH144: 0.6 | AI144: 0.6 | AJ144: 1
W145: 0 | X145: 0 | Y145: 1.35 | AG145: 0.79 | AH145: 0.6 | AI145: 0.6 | AJ145: 1
W146: 0 | X146: 0 | Y146: 1.36 | AG146: 0.8 | AH146: 0.6 | AI146: 0.6 | AJ146: 1
W147: 0 | X147: 0 | Y147: 1.37 | AG147: 0.81 | AH147: 0.6 | AI147: 0.6 | AJ147: 1
W148: 0 | X148: 0 | Y148: 1.38 | AG148: 0.82 | AH148: 0.6 | AI148: 0.6 | AJ148: 1
W149: 0 | X149: 0 | Y149: 1.39 | AG149: 0.83 | AH149: 0.6 | AI149: 0.6 | AJ149: 1
W150: 0 | X150: 0 | Y150: 1.4 | AG150: 0.84 | AH150: 0.6 | AI150: 0.6 | AJ150: 1
W151: 0 | X151: 0 | Y151: 1.41 | AG151: 0.85 | AH151: 0.6 | AI151: 0.6 | AJ151: 1
W152: 0 | X152: 0 | Y152: 1.42 | AG152: 0.86 | AH152: 0.6 | AI152: 0.6 | AJ152: 1
W153: 0 | X153: 0 | Y153: 1.43 | AG153: 0.87 | AH153: 0.6 | AI153: 0.6 | AJ153: 1
W154: 0 | X154: 0 | Y154: 1.44 | AG154: 0.88 | AH154: 0.6 | AI154: 0.6 | AJ154: 1
W155: 0 | X155: 0 | Y155: 1.45 | AG155: 0.89 | AH155: 0.6 | AI155: 0.6 | AJ155: 1
W156: 0 | X156: 0 | Y156: 1.46 | AG156: 0.9 | AH156: 0.6 | AI156: 0.6 | AJ156: 1
W157: 0 | X157: 0 | Y157: 1.47 | AG157: 0.91 | AH157: 0.6 | AI157: 0.6 | AJ157: 1
W158: 0 | X158: 0 | Y158: 1.48 | AG158: 0.92 | AH158: 0.6 | AI158: 0.6 | AJ158: 1
W159: 0 | X159: 0 | Y159: 1.49 | AG159: 0.93 | AH159: 0.6 | AI159: 0.6 | AJ159: 1
W160: 0 | X160: 0 | Y160: 1.5 | AG160: 0.94 | AH160: 0.6 | AI160: 0.6 | AJ160: 1
W161: 0 | X161: 0 | Y161: 1.51 | AG161: 0.95 | AH161: 0.6 | AI161: 0.6 | AJ161: 1
W162: 0 | X162: 0 | Y162: 1.52 | AG162: 0.96 | AH162: 0.6 | AI162: 0.6 | AJ162: 1
W163: 0 | X163: 0 | Y163: 1.53 | AG163: 0.97 | AH163: 0.6 | AI163: 0.6 | AJ163: 1
W164: 0 | X164: 0 | Y164: 1.54 | AG164: 0.98 | AH164: 0.6 | AI164: 0.6 | AJ164: 1
W165: 0 | X165: 0 | Y165: 1.55 | AG165: 0.99 | AH165: 0.6 | AI165: 0.6 | AJ165: 1
W166: 0 | X166: 0 | Y166: 1.56 | AG166: 1 | AH166: 0.6 | AI166: 0.6 | AJ166: 2
W167: 0 | X167: 0 | Y167: 1.57 | AG167: 1.01 | AH167: 0.6 | AI167: 0.6 | AJ167: 2
W168: 0 | X168: 0 | Y168: 1.58 | AG168: 1.02 | AH168: 0.6 | AI168: 0.6 | AJ168: 2
W169: 0 | X169: 0 | Y169: 1.59 | AG169: 1.03 | AH169: 0.6 | AI169: 0.6 | AJ169: 2
W170: 0 | X170: 0 | Y170: 1.6 | AG170: 1.04 | AH170: 0.6 | AI170: 0.6 | AJ170: 2
W171: 0 | X171: 0 | Y171: 1.61 | AG171: 1.05 | AH171: 0.6 | AI171: 0.6 | AJ171: 2
W172: 0 | X172: 0 | Y172: 1.62 | AG172: 1.06 | AH172: 0.6 | AI172: 0.6 | AJ172: 2
W173: 0 | X173: 0 | Y173: 1.63 | AG173: 1.07 | AH173: 0.6 | AI173: 0.6 | AJ173: 2
W174: 0 | X174: 0 | Y174: 1.64 | AG174: 1.08 | AH174: 0.6 | AI174: 0.6 | AJ174: 2
W175: 0 | X175: 0 | Y175: 1.65 | AG175: 1.09 | AH175: 0.6 | AI175: 0.6 | AJ175: 2
W176: 0 | X176: 0 | Y176: 1.66 | AG176: 1.1 | AH176: 0.6 | AI176: 0.6 | AJ176: 2
W177: 0 | X177: 0 | Y177: 1.67 | AG177: 1.11 | AH177: 0.6 | AI177: 0.6 | AJ177: 2
W178: 0 | X178: 0 | Y178: 1.68 | AG178: 1.12 | AH178: 0.6 | AI178: 0.6 | AJ178: 2
W179: 0 | X179: 0 | Y179: 1.69 | AG179: 1.13 | AH179: 0.6 | AI179: 0.6 | AJ179: 2
W180: 0 | X180: 0 | Y180: 1.7 | AG180: 1.14 | AH180: 0.6 | AI180: 0.6 | AJ180: 2
W181: 0 | X181: 0 | Y181: 1.71 | AG181: 1.15 | AH181: 0.6 | AI181: 0.6 | AJ181: 2
W182: 0 | X182: 0 | Y182: 1.72 | AG182: 1.16 | AH182: 0.6 | AI182: 0.6 | AJ182: 2
W183: 0 | X183: 0 | Y183: 1.73 | AG183: 1.17 | AH183: 0.6 | AI183: 0.6 | AJ183: 2
W184: 0 | X184: 0 | Y184: 1.74 | AG184: 1.18 | AH184: 0.6 | AI184: 0.6 | AJ184: 2
W185: 0 | X185: 0 | Y185: 1.75 | AG185: 1.19 | AH185: 0.6 | AI185: 0.6 | AJ185: 2
W186: 0 | X186: 0 | Y186: 1.76 | AG186: 1.2 | AH186: 0.6 | AI186: 0.6 | AJ186: 2
W187: 0 | X187: 0 | Y187: 1.77 | AG187: 1.21 | AH187: 0.6 | AI187: 0.6 | AJ187: 2
W188: 0 | X188: 0 | Y188: 1.78 | AG188: 1.22 | AH188: 0.6 | AI188: 0.6 | AJ188: 2
W189: 0 | X189: 0 | Y189: 1.79 | AG189: 1.23 | AH189: 0.6 | AI189: 0.6 | AJ189: 2
W190: 0 | X190: 0 | Y190: 1.8 | AG190: 1.24 | AH190: 0.6 | AI190: 0.6 | AJ190: 2
W191: 0 | X191: 0 | Y191: 1.81 | AG191: 1.25 | AH191: 0.6 | AI191: 0.6 | AJ191: 2
W192: 0 | X192: 0 | Y192: 1.82 | AG192: 1.26 | AH192: 0.6 | AI192: 0.6 | AJ192: 2
W193: 0 | X193: 0 | Y193: 1.83 | AG193: 1.27 | AH193: 0.6 | AI193: 0.6 | AJ193: 2
W194: 0 | X194: 0 | Y194: 1.84 | AG194: 1.28 | AH194: 0.6 | AI194: 0.6 | AJ194: 2
W195: 0 | X195: 0 | Y195: 1.85 | AG195: 1.29 | AH195: =IF(AG195<$K$7,IF(MOD(AJ195,2)=0,$K$5,$K$5+AJ195*AH$61),$K$6) -> 0.6 | AI195: 0.6 | AJ195: =QUOTIENT(AG195,AH$62) -> 2
W196: 0 | X196: 0 | Y196: 1.86 | AG196: 1.3 | AH196: 0.6 | AI196: =IF(AG196<=$K$8,AI195,IF(AG196<=($K$7+$K$8),AI195+$AI$61,$K$6)) -> 0.6 | AJ196: 2
W197: 0 | X197: 0 | Y197: 1.87 | AG197: 1.31 | AH197: 0.6 | AI197: 0.6 | AJ197: 2
W198: 0 | X198: 0 | Y198: 1.88 | AG198: 1.32 | AH198: 0.6 | AI198: 0.6 | AJ198: 2
W199: 0 | X199: 0 | Y199: 1.89 | AG199: 1.33 | AH199: 0.6 | AI199: 0.6 | AJ199: 2
W200: 0 | X200: 0 | Y200: 1.9 | AG200: 1.34 | AH200: 0.6 | AI200: 0.6 | AJ200: 2
... 810 more rows

Sheet ChromSim (51)
A1: ='Plate Theory'!A1 -> ChromSimLSS_2.2 | D1: Simulation of chromatography and plate theory | K1: ='Plate Theory'!K1 -> Author: Bo Svensmark, svensmark@plen.ku.dk, Analytcal Chemistry, PLEN, University of Copenhagen, 2020 - 2025 | AF1: Manual: | AO1: *
AG2: Works essentially as the simulation in Sheet "Plate Theory"
B3: Analyte LSS parameters | G3: Results | J3: Gradient | L3: Runtime | T3: Click on the graph | AH3: Try the simulation in "Plate Theosy" first - and see the manual in cell X1+
J4: b(1) | K4: =M7*(K6-K5)*C6/K7 -> 0.4 | T4: Then click Zoom
A5: Analyte | B5: Logkw | C5: S | D5: Conc | E5: ko | F5: =IF(K4=0,"k","k*") -> k* | G5: =IF(K4=0,"k(obs)","k*(obs)") -> k*(obs) | H5: tR | I5: h | J5: φstart | K5: 0.2 | L5: Time, min | M5: =I111 -> 0 | P5: N runs | Q5: Delay, ms | AG5: Analyte LSS parameters:
A6: #1 | B6: 2.3 | C6: 4 | D6: 100 | E6: =10^(B6-C6*$K$5) -> 31.6227766 | F6: =IF(K$4=0,E6,1/(1.15*K$4)) -> 2.173913043 | G6: =C111 -> 0 | H6: =C112 -> 0 | I6: =D112 -> 0 | J6: φend | K6: 1 | L6: φ(t) | M6: =I112 -> 0.2 | P6: 1 | Q6: 1000 | R6: Max | S6: 10 | AH6: Linear Solvent Strengths parameters for 3 analytes
A7: #2 | B7: 2.8 | C7: 4 | D7: 100 | E7: =10^(B7-C7*$K$5) -> 100 | F7: =IF(K$4=0,E7,1/(1.15*K$4)) -> 2.173913043 | G7: =E111 -> 0 | H7: =E112 -> 0 | I7: =F112 -> 0 | J7: t(G), min | K7: 8 | L7: tM, min | M7: 1 | P7: N runs | Q7: Delay, ms | R7: Loops
A8: #3 | B8: 3.2 | C8: 4 | D8: 100 | E8: =10^(B8-C8*$K$5) -> 251.1886432 | F8: =IF(K$4=0,E8,1/(1.15*K$4)) -> 2.173913043 | G8: =G111 -> 0 | H8: =G112 -> 0 | I8: =H112 -> 0 | J8: t(D), min | K8: 0.1 | L8: Nth | M8: 100 | P8: 100 | Q8: 10 | R8: 10 | AG8: Gradient: Parameters for the eluent strength
AH9: φstart | AI9: Eluent strenght at injection (0-1)
A10: i | B10: Cm | C10: Cs | D10: Cm2 | E10: Cs2 | F10: Cm3 | G10: Cs3 | H10: Trace1m | I10: Trace1s | J10: Trace2m | K10: Trace2s | L10: Trace 3m | M10: Trace3s | N10: φ(x) | O10: SUM | Q10: k* 1m | R10: k* 1s | S10: k* 2m | T10: k* 2s | U10: k* 3m | V10: k* 3s | W10: Chrom1 | X10: Chrom2 | Y10: i | AH10: φend | AI10: Eleuent strength at end of gradient
A11: 1 | B11: 0 | C11: 0 | D11: 0 | E11: 0 | F11: 0 | G11: 0 | H11: 0 | I11: 0 | J11: 0 | K11: 0 | L11: 0 | M11: 0 | N11: 0.2 | O11: =B11+D11+F11 -> 0 | Q11: 0 | R11: 0 | S11: 0 | T11: 0 | U11: 0 | V11: 0 | W11: 0 | X11: 0 | Y11: 0.01 | AH11: t(G), min | AI11: Gradient time
A12: 2 | B12: 0 | C12: 0 | D12: 0 | E12: 0 | F12: 0 | G12: 0 | H12: 0 | I12: 0 | J12: 0 | K12: 0 | L12: 0 | M12: 0 | N12: 0.2 | O12: =B12+D12+F12 -> 0 | Q12: 0 | R12: 0 | S12: 0 | T12: 0 | U12: 0 | V12: 0 | W12: 0 | X12: 0 | Y12: 0.02 | AH12: t(D), min | AI12: Dwel time or time for an initial isochratic part of a gradient
A13: 3 | B13: 0 | C13: 0 | D13: 0 | E13: 0 | F13: 0 | G13: 0 | H13: 0 | I13: 0 | J13: 0 | K13: 0 | L13: 0 | M13: 0 | N13: 0.2 | O13: 0 | Q13: 0 | R13: 0 | S13: 0 | T13: 0 | U13: 0 | V13: 0 | W13: 0 | X13: 0 | Y13: 0.03
A14: 4 | B14: 0 | C14: 0 | D14: 0 | E14: 0 | F14: 0 | G14: 0 | H14: 0 | I14: 0 | J14: 0 | K14: 0 | L14: 0 | M14: 0 | N14: 0.2 | O14: 0 | Q14: 0 | R14: 0 | S14: 0 | T14: 0 | U14: 0 | V14: 0 | W14: 0 | X14: 0 | Y14: 0.04 | AH14: If φstart = φend isocratic elution will be simulated
A15: 5 | B15: 0 | C15: 0 | D15: 0 | E15: 0 | F15: 0 | G15: 0 | H15: 0 | I15: 0 | J15: 0 | K15: 0 | L15: 0 | M15: 0 | N15: 0.2 | O15: 0 | Q15: 0 | R15: 0 | S15: 0 | T15: 0 | U15: 0 | V15: 0 | W15: 0 | X15: 0 | Y15: 0.05
A16: 6 | B16: 0 | C16: 0 | D16: 0 | E16: 0 | F16: 0 | G16: 0 | H16: 0 | I16: 0 | J16: 0 | K16: 0 | L16: 0 | M16: 0 | N16: 0.2 | O16: 0 | Q16: 0 | R16: 0 | S16: 0 | T16: 0 | U16: 0 | V16: 0 | W16: 0 | X16: 0 | Y16: 0.06 | AG16: Zoom Y:
A17: 7 | B17: 0 | C17: 0 | D17: 0 | E17: 0 | F17: 0 | G17: 0 | H17: 0 | I17: 0 | J17: 0 | K17: 0 | L17: 0 | M17: 0 | N17: 0.2 | O17: 0 | Q17: 0 | R17: 0 | S17: 0 | T17: 0 | U17: 0 | V17: 0 | W17: 0 | X17: 0 | Y17: 0.07 | AH17: All 4 graphs can be scaled individually
A18: 8 | B18: 0 | C18: 0 | D18: 0 | E18: 0 | F18: 0 | G18: 0 | H18: 0 | I18: 0 | J18: 0 | K18: 0 | L18: 0 | M18: 0 | N18: 0.2 | O18: 0 | Q18: 0 | R18: 0 | S18: 0 | T18: 0 | U18: 0 | V18: 0 | W18: 0 | X18: 0 | Y18: 0.08 | AH18: REMEMBER to select the graph before clicking the button
A19: 9 | B19: 0 | C19: 0 | D19: 0 | E19: 0 | F19: 0 | G19: 0 | H19: 0 | I19: 0 | J19: 0 | K19: 0 | L19: 0 | M19: 0 | N19: 0.2 | O19: 0 | Q19: 0 | R19: 0 | S19: 0 | T19: 0 | U19: 0 | V19: 0 | W19: 0 | X19: 0 | Y19: 0.09
A20: 10 | B20: 0 | C20: 0 | D20: 0 | E20: 0 | F20: 0 | G20: 0 | H20: 0 | I20: 0 | J20: 0 | K20: 0 | L20: 0 | M20: 0 | N20: 0.2 | O20: 0 | Q20: 0 | R20: 0 | S20: 0 | T20: 0 | U20: 0 | V20: 0 | W20: 0 | X20: 0 | Y20: 0.1 | AG20: Sorption isotherms:
A21: 11 | B21: 0 | C21: 0 | D21: 0 | E21: 0 | F21: 0 | G21: 0 | H21: 0 | I21: 0 | J21: 0 | K21: 0 | L21: 0 | M21: 0 | N21: 0.2 | O21: 0 | Q21: 0 | R21: 0 | S21: 0 | T21: 0 | U21: 0 | V21: 0 | W21: 0 | X21: 0 | Y21: 0.11 | AH21: Uses the isotherm in the table in cells AG42:AJ58
A22: 12 | B22: 0 | C22: 0 | D22: 0 | E22: 0 | F22: 0 | G22: 0 | H22: 0 | I22: 0 | J22: 0 | K22: 0 | L22: 0 | M22: 0 | N22: 0.2 | O22: 0 | Q22: 0 | R22: 0 | S22: 0 | T22: 0 | U22: 0 | V22: 0 | W22: 0 | X22: 0 | Y22: 0.12 | AH22: C0-C1 and C2: polynomial coefficients
A23: 13 | B23: 0 | C23: 0 | D23: 0 | E23: 0 | F23: 0 | G23: 0 | H23: 0 | I23: 0 | J23: 0 | K23: 0 | L23: 0 | M23: 0 | N23: 0.2 | O23: 0 | Q23: 0 | R23: 0 | S23: 0 | T23: 0 | U23: 0 | V23: 0 | W23: 0 | X23: 0 | Y23: 0.13
A24: 14 | B24: 0 | C24: 0 | D24: 0 | E24: 0 | F24: 0 | G24: 0 | H24: 0 | I24: 0 | J24: 0 | K24: 0 | L24: 0 | M24: 0 | N24: 0.2 | O24: 0 | Q24: 0 | R24: 0 | S24: 0 | T24: 0 | U24: 0 | V24: 0 | W24: 0 | X24: 0 | Y24: 0.14 | AG24: Complex gradient:
A25: 15 | B25: 0 | C25: 0 | D25: 0 | E25: 0 | F25: 0 | G25: 0 | H25: 0 | I25: 0 | J25: 0 | K25: 0 | L25: 0 | M25: 0 | N25: 0.2 | O25: 0 | Q25: 0 | R25: 0 | S25: 0 | T25: 0 | U25: 0 | V25: 0 | W25: 0 | X25: 0 | Y25: 0.15 | AH25: Uses the gradient in the table in cells AG61:AJ566
A26: 16 | B26: 0 | C26: 0 | D26: 0 | E26: 0 | F26: 0 | G26: 0 | H26: 0 | I26: 0 | J26: 0 | K26: 0 | L26: 0 | M26: 0 | N26: 0.2 | O26: 0 | Q26: 0 | R26: 0 | S26: 0 | T26: 0 | U26: 0 | V26: 0 | W26: 0 | X26: 0 | Y26: 0.16 | AH26: The pulsed gradient in the table uses tD (cell K8) for pulse length
A27: 17 | B27: 0 | C27: 0 | D27: 0 | E27: 0 | F27: 0 | G27: 0 | H27: 0 | I27: 0 | J27: 0 | K27: 0 | L27: 0 | M27: 0 | N27: 0.2 | O27: 0 | Q27: 0 | R27: 0 | S27: 0 | T27: 0 | U27: 0 | V27: 0 | W27: 0 | X27: 0 | Y27: 0.17 | AH27: Use the buttons Reset complex and Continue Complex for use of the complex gradient
A28: 18 | B28: 0 | C28: 0 | D28: 0 | E28: 0 | F28: 0 | G28: 0 | H28: 0 | I28: 0 | J28: 0 | K28: 0 | L28: 0 | M28: 0 | N28: 0.2 | O28: 0 | Q28: 0 | R28: 0 | S28: 0 | T28: 0 | U28: 0 | V28: 0 | W28: 0 | X28: 0 | Y28: 0.18
A29: 19 | B29: 0 | C29: 0 | D29: 0 | E29: 0 | F29: 0 | G29: 0 | H29: 0 | I29: 0 | J29: 0 | K29: 0 | L29: 0 | M29: 0 | N29: 0.2 | O29: 0 | Q29: 0 | R29: 0 | S29: 0 | T29: 0 | U29: 0 | V29: 0 | W29: 0 | X29: 0 | Y29: 0.19 | AG29: Fixed parameters:
A30: 20 | B30: 0 | C30: 0 | D30: 0 | E30: 0 | F30: 0 | G30: 0 | H30: 0 | I30: 0 | J30: 0 | K30: 0 | L30: 0 | M30: 0 | N30: 0.2 | O30: 0 | Q30: 0 | R30: 0 | S30: 0 | T30: 0 | U30: 0 | V30: 0 | W30: 0 | X30: 0 | Y30: 0.2 | AH30: Number of theoretic plates Nth = 100
A31: 21 | B31: 0 | C31: 0 | D31: 0 | E31: 0 | F31: 0 | G31: 0 | H31: 0 | I31: 0 | J31: 0 | K31: 0 | L31: 0 | M31: 0 | N31: 0.2 | O31: 0 | Q31: 0 | R31: 0 | S31: 0 | T31: 0 | U31: 0 | V31: 0 | W31: 0 | X31: 0 | Y31: 0.21 | AH31: Dead time tM = 1.00 min
A32: 22 | B32: 0 | C32: 0 | D32: 0 | E32: 0 | F32: 0 | G32: 0 | H32: 0 | I32: 0 | J32: 0 | K32: 0 | L32: 0 | M32: 0 | N32: 0.2 | O32: 0 | Q32: 0 | R32: 0 | S32: 0 | T32: 0 | U32: 0 | V32: 0 | W32: 0 | X32: 0 | Y32: 0.22 | AH32: Chromatogram length = 5.00 min
A33: 23 | B33: 0 | C33: 0 | D33: 0 | E33: 0 | F33: 0 | G33: 0 | H33: 0 | I33: 0 | J33: 0 | K33: 0 | L33: 0 | M33: 0 | N33: 0.2 | O33: 0 | Q33: 0 | R33: 0 | S33: 0 | T33: 0 | U33: 0 | V33: 0 | W33: 0 | X33: 0 | Y33: 0.23
A34: 24 | B34: 0 | C34: 0 | D34: 0 | E34: 0 | F34: 0 | G34: 0 | H34: 0 | I34: 0 | J34: 0 | K34: 0 | L34: 0 | M34: 0 | N34: 0.2 | O34: 0 | Q34: 0 | R34: 0 | S34: 0 | T34: 0 | U34: 0 | V34: 0 | W34: 0 | X34: 0 | Y34: 0.24 | AG34: Run time Errors:
A35: 25 | B35: 0 | C35: 0 | D35: 0 | E35: 0 | F35: 0 | G35: 0 | H35: 0 | I35: 0 | J35: 0 | K35: 0 | L35: 0 | M35: 0 | N35: 0.2 | O35: 0 | Q35: 0 | R35: 0 | S35: 0 | T35: 0 | U35: 0 | V35: 0 | W35: 0 | X35: 0 | Y35: 0.25 | AH35: You'll get a run time error if you use the macros in the wrong order
A36: 26 | B36: 0 | C36: 0 | D36: 0 | E36: 0 | F36: 0 | G36: 0 | H36: 0 | I36: 0 | J36: 0 | K36: 0 | L36: 0 | M36: 0 | N36: 0.2 | O36: 0 | Q36: 0 | R36: 0 | S36: 0 | T36: 0 | U36: 0 | V36: 0 | W36: 0 | X36: 0 | Y36: 0.26 | AH36: To fix it:
A37: 27 | B37: 0 | C37: 0 | D37: 0 | E37: 0 | F37: 0 | G37: 0 | H37: 0 | I37: 0 | J37: 0 | K37: 0 | L37: 0 | M37: 0 | N37: 0.2 | O37: 0 | Q37: 0 | R37: 0 | S37: 0 | T37: 0 | U37: 0 | V37: 0 | W37: 0 | X37: 0 | Y37: 0.27 | AI37: Click on "Debug" in the message window
A38: 28 | B38: 0 | C38: 0 | D38: 0 | E38: 0 | F38: 0 | G38: 0 | H38: 0 | I38: 0 | J38: 0 | K38: 0 | L38: 0 | M38: 0 | N38: 0.2 | O38: 0 | Q38: 0 | R38: 0 | S38: 0 | T38: 0 | U38: 0 | V38: 0 | W38: 0 | X38: 0 | Y38: 0.28 | AI38: In the window showing the macros click on the "Reset" icon (a blue square)
A39: 29 | B39: 0 | C39: 0 | D39: 0 | E39: 0 | F39: 0 | G39: 0 | H39: 0 | I39: 0 | J39: 0 | K39: 0 | L39: 0 | M39: 0 | N39: 0.2 | O39: 0 | Q39: 0 | R39: 0 | S39: 0 | T39: 0 | U39: 0 | V39: 0 | W39: 0 | X39: 0 | Y39: 0.29 | AI39: (or click on "Run" and then "Reset")
A40: 30 | B40: 0 | C40: 0 | D40: 0 | E40: 0 | F40: 0 | G40: 0 | H40: 0 | I40: 0 | J40: 0 | K40: 0 | L40: 0 | M40: 0 | N40: 0.2 | O40: 0 | Q40: 0 | R40: 0 | S40: 0 | T40: 0 | U40: 0 | V40: 0 | W40: 0 | X40: 0 | Y40: 0.3 | AI40: Go back to the sheet and use the macros correctly
A41: 31 | B41: 0 | C41: 0 | D41: 0 | E41: 0 | F41: 0 | G41: 0 | H41: 0 | I41: 0 | J41: 0 | K41: 0 | L41: 0 | M41: 0 | N41: 0.2 | O41: 0 | Q41: 0 | R41: 0 | S41: 0 | T41: 0 | U41: 0 | V41: 0 | W41: 0 | X41: 0 | Y41: 0.31
A42: 32 | B42: 0 | C42: 0 | D42: 0 | E42: 0 | F42: 0 | G42: 0 | H42: 0 | I42: 0 | J42: 0 | K42: 0 | L42: 0 | M42: 0 | N42: 0.2 | O42: 0 | Q42: 0 | R42: 0 | S42: 0 | T42: 0 | U42: 0 | V42: 0 | W42: 0 | X42: 0 | Y42: 0.32 | AG42: Sorption Isotherms
A43: 33 | B43: 0 | C43: 0 | D43: 0 | E43: 0 | F43: 0 | G43: 0 | H43: 0 | I43: 0 | J43: 0 | K43: 0 | L43: 0 | M43: 0 | N43: 0.2 | O43: 0 | Q43: 0 | R43: 0 | S43: 0 | T43: 0 | U43: 0 | V43: 0 | W43: 0 | X43: 0 | Y43: 0.33 | AG43: analyte # | AH43: 1 | AI43: 2 | AJ43: 3 | AM43: Alternative isotherms
A44: 34 | B44: 0 | C44: 0 | D44: 0 | E44: 0 | F44: 0 | G44: 0 | H44: 0 | I44: 0 | J44: 0 | K44: 0 | L44: 0 | M44: 0 | N44: 0.2 | O44: 0 | Q44: 0 | R44: 0 | S44: 0 | T44: 0 | U44: 0 | V44: 0 | W44: 0 | X44: 0 | Y44: 0.34 | AG44: C0 | AH44: 1 | AI44: 1 | AJ44: 1 | AM44: 1 | AN44: 1 | AO44: 1
A45: 35 | B45: 0 | C45: 0 | D45: 0 | E45: 0 | F45: 0 | G45: 0 | H45: 0 | I45: 0 | J45: 0 | K45: 0 | L45: 0 | M45: 0 | N45: 0.2 | O45: 0 | Q45: 0 | R45: 0 | S45: 0 | T45: 0 | U45: 0 | V45: 0 | W45: 0 | X45: 0 | Y45: 0.35 | AG45: C1 | AH45: 0 | AI45: 0 | AJ45: 0 | AM45: -0.6 | AN45: 0 | AO45: 0.6
A46: 36 | B46: 0 | C46: 0 | D46: 0 | E46: 0 | F46: 0 | G46: 0 | H46: 0 | I46: 0 | J46: 0 | K46: 0 | L46: 0 | M46: 0 | N46: 0.2 | O46: 0 | Q46: 0 | R46: 0 | S46: 0 | T46: 0 | U46: 0 | V46: 0 | W46: 0 | X46: 0 | Y46: 0.36 | AG46: C2 | AH46: 0 | AI46: 0 | AJ46: 0 | AM46: 0 | AN46: 0 | AO46: 0
A47: 37 | B47: 0 | C47: 0 | D47: 0 | E47: 0 | F47: 0 | G47: 0 | H47: 0 | I47: 0 | J47: 0 | K47: 0 | L47: 0 | M47: 0 | N47: 0.2 | O47: 0 | Q47: 0 | R47: 0 | S47: 0 | T47: 0 | U47: 0 | V47: 0 | W47: 0 | X47: 0 | Y47: 0.37 | AG47: n(m) | AH47: n(S) | AI47: n(S) | AJ47: n(S)
A48: 38 | B48: 0 | C48: 0 | D48: 0 | E48: 0 | F48: 0 | G48: 0 | H48: 0 | I48: 0 | J48: 0 | K48: 0 | L48: 0 | M48: 0 | N48: 0.2 | O48: 0 | Q48: 0 | R48: 0 | S48: 0 | T48: 0 | U48: 0 | V48: 0 | W48: 0 | X48: 0 | Y48: 0.38 | AG48: 0 | AH48: =$AG48*(AH$44+$AG48*(AH$45+$AG48*AH$46)) -> 0 | AI48: =$AG48*(AI$44+$AG48*(AI$45+$AG48*AI$46)) -> 0 | AJ48: 0
A49: 39 | B49: 0 | C49: 0 | D49: 0 | E49: 0 | F49: 0 | G49: 0 | H49: 0 | I49: 0 | J49: 0 | K49: 0 | L49: 0 | M49: 0 | N49: 0.2 | O49: 0 | Q49: 0 | R49: 0 | S49: 0 | T49: 0 | U49: 0 | V49: 0 | W49: 0 | X49: 0 | Y49: 0.39 | AG49: 0.1 | AH49: =$AG49*(AH$44+$AG49*(AH$45+$AG49*AH$46)) -> 0.1 | AI49: 0.1 | AJ49: 0.1
A50: 40 | B50: 0 | C50: 0 | D50: 0 | E50: 0 | F50: 0 | G50: 0 | H50: 0 | I50: 0 | J50: 0 | K50: 0 | L50: 0 | M50: 0 | N50: 0.2 | O50: 0 | Q50: 0 | R50: 0 | S50: 0 | T50: 0 | U50: 0 | V50: 0 | W50: 0 | X50: 0 | Y50: 0.4 | AG50: 0.2 | AH50: 0.2 | AI50: 0.2 | AJ50: 0.2
A51: 41 | B51: 0 | C51: 0 | D51: 0 | E51: 0 | F51: 0 | G51: 0 | H51: 0 | I51: 0 | J51: 0 | K51: 0 | L51: 0 | M51: 0 | N51: 0.2 | O51: 0 | Q51: 0 | R51: 0 | S51: 0 | T51: 0 | U51: 0 | V51: 0 | W51: 0 | X51: 0 | Y51: 0.41 | AG51: 0.3 | AH51: 0.3 | AI51: 0.3 | AJ51: 0.3
A52: 42 | B52: 0 | C52: 0 | D52: 0 | E52: 0 | F52: 0 | G52: 0 | H52: 0 | I52: 0 | J52: 0 | K52: 0 | L52: 0 | M52: 0 | N52: 0.2 | O52: 0 | Q52: 0 | R52: 0 | S52: 0 | T52: 0 | U52: 0 | V52: 0 | W52: 0 | X52: 0 | Y52: 0.42 | AG52: 0.4 | AH52: 0.4 | AI52: 0.4 | AJ52: 0.4
A53: 43 | B53: 0 | C53: 0 | D53: 0 | E53: 0 | F53: 0 | G53: 0 | H53: 0 | I53: 0 | J53: 0 | K53: 0 | L53: 0 | M53: 0 | N53: 0.2 | O53: 0 | Q53: 0 | R53: 0 | S53: 0 | T53: 0 | U53: 0 | V53: 0 | W53: 0 | X53: 0 | Y53: 0.43 | AG53: 0.5 | AH53: 0.5 | AI53: 0.5 | AJ53: 0.5
A54: 44 | B54: 0 | C54: 0 | D54: 0 | E54: 0 | F54: 0 | G54: 0 | H54: 0 | I54: 0 | J54: 0 | K54: 0 | L54: 0 | M54: 0 | N54: 0.2 | O54: 0 | Q54: 0 | R54: 0 | S54: 0 | T54: 0 | U54: 0 | V54: 0 | W54: 0 | X54: 0 | Y54: 0.44 | AG54: 0.6 | AH54: 0.6 | AI54: 0.6 | AJ54: 0.6
A55: 45 | B55: 0 | C55: 0 | D55: 0 | E55: 0 | F55: 0 | G55: 0 | H55: 0 | I55: 0 | J55: 0 | K55: 0 | L55: 0 | M55: 0 | N55: 0.2 | O55: 0 | Q55: 0 | R55: 0 | S55: 0 | T55: 0 | U55: 0 | V55: 0 | W55: 0 | X55: 0 | Y55: 0.45 | AG55: 0.7 | AH55: 0.7 | AI55: 0.7 | AJ55: 0.7
A56: 46 | B56: 0 | C56: 0 | D56: 0 | E56: 0 | F56: 0 | G56: 0 | H56: 0 | I56: 0 | J56: 0 | K56: 0 | L56: 0 | M56: 0 | N56: 0.2 | O56: 0 | Q56: 0 | R56: 0 | S56: 0 | T56: 0 | U56: 0 | V56: 0 | W56: 0 | X56: 0 | Y56: 0.46 | AG56: 0.8 | AH56: 0.8 | AI56: 0.8 | AJ56: 0.8
A57: 47 | B57: 0 | C57: 0 | D57: 0 | E57: 0 | F57: 0 | G57: 0 | H57: 0 | I57: 0 | J57: 0 | K57: 0 | L57: 0 | M57: 0 | N57: 0.2 | O57: 0 | Q57: 0 | R57: 0 | S57: 0 | T57: 0 | U57: 0 | V57: 0 | W57: 0 | X57: 0 | Y57: 0.47 | AG57: 0.9 | AH57: 0.9 | AI57: 0.9 | AJ57: 0.9
A58: 48 | B58: 0 | C58: 0 | D58: 0 | E58: 0 | F58: 0 | G58: 0 | H58: 0 | I58: 0 | J58: 0 | K58: 0 | L58: 0 | M58: 0 | N58: 0.2 | O58: 0 | Q58: 0 | R58: 0 | S58: 0 | T58: 0 | U58: 0 | V58: 0 | W58: 0 | X58: 0 | Y58: 0.48 | AG58: 1 | AH58: 1 | AI58: 1 | AJ58: 1
A59: 49 | B59: 0 | C59: 0 | D59: 0 | E59: 0 | F59: 0 | G59: 0 | H59: 0 | I59: 0 | J59: 0 | K59: 0 | L59: 0 | M59: 0 | N59: 0.2 | O59: 0 | Q59: 0 | R59: 0 | S59: 0 | T59: 0 | U59: 0 | V59: 0 | W59: 0 | X59: 0 | Y59: 0.49
A60: 50 | B60: 0 | C60: 0 | D60: 0 | E60: 0 | F60: 0 | G60: 0 | H60: 0 | I60: 0 | J60: 0 | K60: 0 | L60: 0 | M60: 0 | N60: 0.2 | O60: 0 | Q60: 0 | R60: 0 | S60: 0 | T60: 0 | U60: 0 | V60: 0 | W60: 0 | X60: 0 | Y60: 0.5
A61: 51 | B61: 0 | C61: 0 | D61: 0 | E61: 0 | F61: 0 | G61: 0 | H61: 0 | I61: 0 | J61: 0 | K61: 0 | L61: 0 | M61: 0 | N61: 0.2 | O61: 0 | Q61: 0 | R61: 0 | S61: 0 | T61: 0 | U61: 0 | V61: 0 | W61: 0 | X61: 0 | Y61: 0.51 | AG61: phid | AH61: =(K6-K5)/AJ62 -> 0.01 | AI61: =0.01*(K6-K5)/K7 -> 0.001
A62: 52 | B62: 0 | C62: 0 | D62: 0 | E62: 0 | F62: 0 | G62: 0 | H62: 0 | I62: 0 | J62: 0 | K62: 0 | L62: 0 | M62: 0 | N62: 0.2 | O62: 0 | Q62: 0 | R62: 0 | S62: 0 | T62: 0 | U62: 0 | V62: 0 | W62: 0 | X62: 0 | Y62: 0.52 | AG62: Period | AH62: =K8 -> 0.1 | AJ62: =QUOTIENT(K7,AH62) -> 80
A63: 53 | B63: 0 | C63: 0 | D63: 0 | E63: 0 | F63: 0 | G63: 0 | H63: 0 | I63: 0 | J63: 0 | K63: 0 | L63: 0 | M63: 0 | N63: 0.2 | O63: 0 | Q63: 0 | R63: 0 | S63: 0 | T63: 0 | U63: 0 | V63: 0 | W63: 0 | X63: 0 | Y63: 0.53 | AG63: Ampl | AH63: 0
A64: 54 | B64: 0 | C64: 0 | D64: 0 | E64: 0 | F64: 0 | G64: 0 | H64: 0 | I64: 0 | J64: 0 | K64: 0 | L64: 0 | M64: 0 | N64: 0.2 | O64: 0 | Q64: 0 | R64: 0 | S64: 0 | T64: 0 | U64: 0 | V64: 0 | W64: 0 | X64: 0 | Y64: 0.54
A65: 55 | B65: 0 | C65: 0 | D65: 0 | E65: 0 | F65: 0 | G65: 0 | H65: 0 | I65: 0 | J65: 0 | K65: 0 | L65: 0 | M65: 0 | N65: 0.2 | O65: 0 | Q65: 0 | R65: 0 | S65: 0 | T65: 0 | U65: 0 | V65: 0 | W65: 0 | X65: 0 | Y65: 0.55 | AG65: Time | AH65: Complex | AI65: Simple | AJ65: Pulse
A66: 56 | B66: 0 | C66: 0 | D66: 0 | E66: 0 | F66: 0 | G66: 0 | H66: 0 | I66: 0 | J66: 0 | K66: 0 | L66: 0 | M66: 0 | N66: 0.2 | O66: 0 | Q66: 0 | R66: 0 | S66: 0 | T66: 0 | U66: 0 | V66: 0 | W66: 0 | X66: 0 | Y66: 0.56 | AG66: 0 | AH66: =IF(AG66<$K$7,IF(MOD(AJ66,2)=0,$K$5,$K$5+AJ66*AH$61),$K$6) -> 0.2 | AI66: =$K$5 -> 0.2 | AJ66: =QUOTIENT(AG66,AH$62) -> 0
A67: 57 | B67: 0 | C67: 0 | D67: 0 | E67: 0 | F67: 0 | G67: 0 | H67: 0 | I67: 0 | J67: 0 | K67: 0 | L67: 0 | M67: 0 | N67: 0.2 | O67: 0 | Q67: 0 | R67: 0 | S67: 0 | T67: 0 | U67: 0 | V67: 0 | W67: 0 | X67: 0 | Y67: 0.57 | AG67: 0.01 | AH67: =IF(AG67<$K$7,IF(MOD(AJ67,2)=0,$K$5,$K$5+AJ67*AH$61),$K$6) -> 0.2 | AI67: =IF(AG67<=$K$8,AI66,IF(AG67<=($K$7+$K$8),AI66+$AI$61,$K$6)) -> 0.2 | AJ67: =QUOTIENT(AG67,AH$62) -> 0
A68: 58 | B68: 0 | C68: 0 | D68: 0 | E68: 0 | F68: 0 | G68: 0 | H68: 0 | I68: 0 | J68: 0 | K68: 0 | L68: 0 | M68: 0 | N68: 0.2 | O68: 0 | Q68: 0 | R68: 0 | S68: 0 | T68: 0 | U68: 0 | V68: 0 | W68: 0 | X68: 0 | Y68: 0.58 | AG68: 0.02 | AH68: 0.2 | AI68: =IF(AG68<=$K$8,AI67,IF(AG68<=($K$7+$K$8),AI67+$AI$61,$K$6)) -> 0.2 | AJ68: 0
A69: 59 | B69: 0 | C69: 0 | D69: 0 | E69: 0 | F69: 0 | G69: 0 | H69: 0 | I69: 0 | J69: 0 | K69: 0 | L69: 0 | M69: 0 | N69: 0.2 | O69: 0 | Q69: 0 | R69: 0 | S69: 0 | T69: 0 | U69: 0 | V69: 0 | W69: 0 | X69: 0 | Y69: 0.59 | AG69: 0.03 | AH69: 0.2 | AI69: 0.2 | AJ69: 0
A70: 60 | B70: 0 | C70: 0 | D70: 0 | E70: 0 | F70: 0 | G70: 0 | H70: 0 | I70: 0 | J70: 0 | K70: 0 | L70: 0 | M70: 0 | N70: 0.2 | O70: 0 | Q70: 0 | R70: 0 | S70: 0 | T70: 0 | U70: 0 | V70: 0 | W70: 0 | X70: 0 | Y70: 0.6 | AG70: 0.04 | AH70: 0.2 | AI70: 0.2 | AJ70: 0
A71: 61 | B71: 0 | C71: 0 | D71: 0 | E71: 0 | F71: 0 | G71: 0 | H71: 0 | I71: 0 | J71: 0 | K71: 0 | L71: 0 | M71: 0 | N71: 0.2 | O71: 0 | Q71: 0 | R71: 0 | S71: 0 | T71: 0 | U71: 0 | V71: 0 | W71: 0 | X71: 0 | Y71: 0.61 | AG71: 0.05 | AH71: 0.2 | AI71: 0.2 | AJ71: 0
A72: 62 | B72: 0 | C72: 0 | D72: 0 | E72: 0 | F72: 0 | G72: 0 | H72: 0 | I72: 0 | J72: 0 | K72: 0 | L72: 0 | M72: 0 | N72: 0.2 | O72: 0 | Q72: 0 | R72: 0 | S72: 0 | T72: 0 | U72: 0 | V72: 0 | W72: 0 | X72: 0 | Y72: 0.62 | AG72: 0.06 | AH72: 0.2 | AI72: 0.2 | AJ72: 0
A73: 63 | B73: 0 | C73: 0 | D73: 0 | E73: 0 | F73: 0 | G73: 0 | H73: 0 | I73: 0 | J73: 0 | K73: 0 | L73: 0 | M73: 0 | N73: 0.2 | O73: 0 | Q73: 0 | R73: 0 | S73: 0 | T73: 0 | U73: 0 | V73: 0 | W73: 0 | X73: 0 | Y73: 0.63 | AG73: 0.07 | AH73: 0.2 | AI73: 0.2 | AJ73: 0
A74: 64 | B74: 0 | C74: 0 | D74: 0 | E74: 0 | F74: 0 | G74: 0 | H74: 0 | I74: 0 | J74: 0 | K74: 0 | L74: 0 | M74: 0 | N74: 0.2 | O74: 0 | Q74: 0 | R74: 0 | S74: 0 | T74: 0 | U74: 0 | V74: 0 | W74: 0 | X74: 0 | Y74: 0.64 | AG74: 0.08 | AH74: 0.2 | AI74: 0.2 | AJ74: 0
A75: 65 | B75: 0 | C75: 0 | D75: 0 | E75: 0 | F75: 0 | G75: 0 | H75: 0 | I75: 0 | J75: 0 | K75: 0 | L75: 0 | M75: 0 | N75: 0.2 | O75: 0 | Q75: 0 | R75: 0 | S75: 0 | T75: 0 | U75: 0 | V75: 0 | W75: 0 | X75: 0 | Y75: 0.65 | AG75: 0.09 | AH75: 0.2 | AI75: 0.2 | AJ75: 0
A76: 66 | B76: 0 | C76: 0 | D76: 0 | E76: 0 | F76: 0 | G76: 0 | H76: 0 | I76: 0 | J76: 0 | K76: 0 | L76: 0 | M76: 0 | N76: 0.2 | O76: =B76+D76+F76 -> 0 | Q76: 0 | R76: 0 | S76: 0 | T76: 0 | U76: 0 | V76: 0 | W76: 0 | X76: 0 | Y76: 0.66 | AG76: 0.1 | AH76: 0.21 | AI76: 0.2 | AJ76: 1
A77: 67 | B77: 0 | C77: 0 | D77: 0 | E77: 0 | F77: 0 | G77: 0 | H77: 0 | I77: 0 | J77: 0 | K77: 0 | L77: 0 | M77: 0 | N77: 0.2 | O77: 0 | Q77: 0 | R77: 0 | S77: 0 | T77: 0 | U77: 0 | V77: 0 | W77: 0 | X77: 0 | Y77: 0.67 | AG77: 0.11 | AH77: 0.21 | AI77: 0.201 | AJ77: 1
A78: 68 | B78: 0 | C78: 0 | D78: 0 | E78: 0 | F78: 0 | G78: 0 | H78: 0 | I78: 0 | J78: 0 | K78: 0 | L78: 0 | M78: 0 | N78: 0.2 | O78: 0 | Q78: 0 | R78: 0 | S78: 0 | T78: 0 | U78: 0 | V78: 0 | W78: 0 | X78: 0 | Y78: 0.68 | AG78: 0.12 | AH78: 0.21 | AI78: 0.202 | AJ78: 1
A79: 69 | B79: 0 | C79: 0 | D79: 0 | E79: 0 | F79: 0 | G79: 0 | H79: 0 | I79: 0 | J79: 0 | K79: 0 | L79: 0 | M79: 0 | N79: 0.2 | O79: 0 | Q79: 0 | R79: 0 | S79: 0 | T79: 0 | U79: 0 | V79: 0 | W79: 0 | X79: 0 | Y79: 0.69 | AG79: 0.13 | AH79: 0.21 | AI79: 0.203 | AJ79: 1
A80: 70 | B80: 0 | C80: 0 | D80: 0 | E80: 0 | F80: 0 | G80: 0 | H80: 0 | I80: 0 | J80: 0 | K80: 0 | L80: 0 | M80: 0 | N80: 0.2 | O80: 0 | Q80: 0 | R80: 0 | S80: 0 | T80: 0 | U80: 0 | V80: 0 | W80: 0 | X80: 0 | Y80: 0.7 | AG80: 0.14 | AH80: 0.21 | AI80: 0.204 | AJ80: 1
A81: 71 | B81: 0 | C81: 0 | D81: 0 | E81: 0 | F81: 0 | G81: 0 | H81: 0 | I81: 0 | J81: 0 | K81: 0 | L81: 0 | M81: 0 | N81: 0.2 | O81: 0 | Q81: 0 | R81: 0 | S81: 0 | T81: 0 | U81: 0 | V81: 0 | W81: 0 | X81: 0 | Y81: 0.71 | AG81: 0.15 | AH81: 0.21 | AI81: 0.205 | AJ81: 1
A82: 72 | B82: 0 | C82: 0 | D82: 0 | E82: 0 | F82: 0 | G82: 0 | H82: 0 | I82: 0 | J82: 0 | K82: 0 | L82: 0 | M82: 0 | N82: 0.2 | O82: 0 | Q82: 0 | R82: 0 | S82: 0 | T82: 0 | U82: 0 | V82: 0 | W82: 0 | X82: 0 | Y82: 0.72 | AG82: 0.16 | AH82: 0.21 | AI82: 0.206 | AJ82: 1
A83: 73 | B83: 0 | C83: 0 | D83: 0 | E83: 0 | F83: 0 | G83: 0 | H83: 0 | I83: 0 | J83: 0 | K83: 0 | L83: 0 | M83: 0 | N83: 0.2 | O83: 0 | Q83: 0 | R83: 0 | S83: 0 | T83: 0 | U83: 0 | V83: 0 | W83: 0 | X83: 0 | Y83: 0.73 | AG83: 0.17 | AH83: 0.21 | AI83: 0.207 | AJ83: 1
A84: 74 | B84: 0 | C84: 0 | D84: 0 | E84: 0 | F84: 0 | G84: 0 | H84: 0 | I84: 0 | J84: 0 | K84: 0 | L84: 0 | M84: 0 | N84: 0.2 | O84: 0 | Q84: 0 | R84: 0 | S84: 0 | T84: 0 | U84: 0 | V84: 0 | W84: 0 | X84: 0 | Y84: 0.74 | AG84: 0.18 | AH84: 0.21 | AI84: 0.208 | AJ84: 1
A85: 75 | B85: 0 | C85: 0 | D85: 0 | E85: 0 | F85: 0 | G85: 0 | H85: 0 | I85: 0 | J85: 0 | K85: 0 | L85: 0 | M85: 0 | N85: 0.2 | O85: 0 | Q85: 0 | R85: 0 | S85: 0 | T85: 0 | U85: 0 | V85: 0 | W85: 0 | X85: 0 | Y85: 0.75 | AG85: 0.19 | AH85: 0.21 | AI85: 0.209 | AJ85: 1
A86: 76 | B86: 0 | C86: 0 | D86: 0 | E86: 0 | F86: 0 | G86: 0 | H86: 0 | I86: 0 | J86: 0 | K86: 0 | L86: 0 | M86: 0 | N86: 0.2 | O86: 0 | Q86: 0 | R86: 0 | S86: 0 | T86: 0 | U86: 0 | V86: 0 | W86: 0 | X86: 0 | Y86: 0.76 | AG86: 0.2 | AH86: 0.2 | AI86: 0.21 | AJ86: 2
A87: 77 | B87: 0 | C87: 0 | D87: 0 | E87: 0 | F87: 0 | G87: 0 | H87: 0 | I87: 0 | J87: 0 | K87: 0 | L87: 0 | M87: 0 | N87: 0.2 | O87: 0 | Q87: 0 | R87: 0 | S87: 0 | T87: 0 | U87: 0 | V87: 0 | W87: 0 | X87: 0 | Y87: 0.77 | AG87: 0.21 | AH87: 0.2 | AI87: 0.211 | AJ87: 2
A88: 78 | B88: 0 | C88: 0 | D88: 0 | E88: 0 | F88: 0 | G88: 0 | H88: 0 | I88: 0 | J88: 0 | K88: 0 | L88: 0 | M88: 0 | N88: 0.2 | O88: 0 | Q88: 0 | R88: 0 | S88: 0 | T88: 0 | U88: 0 | V88: 0 | W88: 0 | X88: 0 | Y88: 0.78 | AG88: 0.22 | AH88: 0.2 | AI88: 0.212 | AJ88: 2
A89: 79 | B89: 0 | C89: 0 | D89: 0 | E89: 0 | F89: 0 | G89: 0 | H89: 0 | I89: 0 | J89: 0 | K89: 0 | L89: 0 | M89: 0 | N89: 0.2 | O89: 0 | Q89: 0 | R89: 0 | S89: 0 | T89: 0 | U89: 0 | V89: 0 | W89: 0 | X89: 0 | Y89: 0.79 | AG89: 0.23 | AH89: 0.2 | AI89: 0.213 | AJ89: 2
A90: 80 | B90: 0 | C90: 0 | D90: 0 | E90: 0 | F90: 0 | G90: 0 | H90: 0 | I90: 0 | J90: 0 | K90: 0 | L90: 0 | M90: 0 | N90: 0.2 | O90: 0 | Q90: 0 | R90: 0 | S90: 0 | T90: 0 | U90: 0 | V90: 0 | W90: 0 | X90: 0 | Y90: 0.8 | AG90: 0.24 | AH90: 0.2 | AI90: 0.214 | AJ90: 2
A91: 81 | B91: 0 | C91: 0 | D91: 0 | E91: 0 | F91: 0 | G91: 0 | H91: 0 | I91: 0 | J91: 0 | K91: 0 | L91: 0 | M91: 0 | N91: 0.2 | O91: 0 | Q91: 0 | R91: 0 | S91: 0 | T91: 0 | U91: 0 | V91: 0 | W91: 0 | X91: 0 | Y91: 0.81 | AG91: 0.25 | AH91: 0.2 | AI91: 0.215 | AJ91: 2
A92: 82 | B92: 0 | C92: 0 | D92: 0 | E92: 0 | F92: 0 | G92: 0 | H92: 0 | I92: 0 | J92: 0 | K92: 0 | L92: 0 | M92: 0 | N92: 0.2 | O92: 0 | Q92: 0 | R92: 0 | S92: 0 | T92: 0 | U92: 0 | V92: 0 | W92: 0 | X92: 0 | Y92: 0.82 | AG92: 0.26 | AH92: 0.2 | AI92: 0.216 | AJ92: 2
A93: 83 | B93: 0 | C93: 0 | D93: 0 | E93: 0 | F93: 0 | G93: 0 | H93: 0 | I93: 0 | J93: 0 | K93: 0 | L93: 0 | M93: 0 | N93: 0.2 | O93: 0 | Q93: 0 | R93: 0 | S93: 0 | T93: 0 | U93: 0 | V93: 0 | W93: 0 | X93: 0 | Y93: 0.83 | AG93: 0.27 | AH93: 0.2 | AI93: 0.217 | AJ93: 2
A94: 84 | B94: 0 | C94: 0 | D94: 0 | E94: 0 | F94: 0 | G94: 0 | H94: 0 | I94: 0 | J94: 0 | K94: 0 | L94: 0 | M94: 0 | N94: 0.2 | O94: 0 | Q94: 0 | R94: 0 | S94: 0 | T94: 0 | U94: 0 | V94: 0 | W94: 0 | X94: 0 | Y94: 0.84 | AG94: 0.28 | AH94: 0.2 | AI94: 0.218 | AJ94: 2
A95: 85 | B95: 0 | C95: 0 | D95: 0 | E95: 0 | F95: 0 | G95: 0 | H95: 0 | I95: 0 | J95: 0 | K95: 0 | L95: 0 | M95: 0 | N95: 0.2 | O95: 0 | Q95: 0 | R95: 0 | S95: 0 | T95: 0 | U95: 0 | V95: 0 | W95: 0 | X95: 0 | Y95: 0.85 | AG95: 0.29 | AH95: 0.2 | AI95: 0.219 | AJ95: 2
A96: 86 | B96: 0 | C96: 0 | D96: 0 | E96: 0 | F96: 0 | G96: 0 | H96: 0 | I96: 0 | J96: 0 | K96: 0 | L96: 0 | M96: 0 | N96: 0.2 | O96: 0 | Q96: 0 | R96: 0 | S96: 0 | T96: 0 | U96: 0 | V96: 0 | W96: 0 | X96: 0 | Y96: 0.86 | AG96: 0.3 | AH96: 0.2 | AI96: 0.22 | AJ96: 2
A97: 87 | B97: 0 | C97: 0 | D97: 0 | E97: 0 | F97: 0 | G97: 0 | H97: 0 | I97: 0 | J97: 0 | K97: 0 | L97: 0 | M97: 0 | N97: 0.2 | O97: 0 | Q97: 0 | R97: 0 | S97: 0 | T97: 0 | U97: 0 | V97: 0 | W97: 0 | X97: 0 | Y97: 0.87 | AG97: 0.31 | AH97: 0.23 | AI97: 0.221 | AJ97: 3
A98: 88 | B98: 0 | C98: 0 | D98: 0 | E98: 0 | F98: 0 | G98: 0 | H98: 0 | I98: 0 | J98: 0 | K98: 0 | L98: 0 | M98: 0 | N98: 0.2 | O98: 0 | Q98: 0 | R98: 0 | S98: 0 | T98: 0 | U98: 0 | V98: 0 | W98: 0 | X98: 0 | Y98: 0.88 | AG98: 0.32 | AH98: 0.23 | AI98: 0.222 | AJ98: 3
A99: 89 | B99: 0 | C99: 0 | D99: 0 | E99: 0 | F99: 0 | G99: 0 | H99: 0 | I99: 0 | J99: 0 | K99: 0 | L99: 0 | M99: 0 | N99: 0.2 | O99: 0 | Q99: 0 | R99: 0 | S99: 0 | T99: 0 | U99: 0 | V99: 0 | W99: 0 | X99: 0 | Y99: 0.89 | AG99: 0.33 | AH99: 0.23 | AI99: 0.223 | AJ99: 3
A100: 90 | B100: 0 | C100: 0 | D100: 0 | E100: 0 | F100: 0 | G100: 0 | H100: 0 | I100: 0 | J100: 0 | K100: 0 | L100: 0 | M100: 0 | N100: 0.2 | O100: 0 | Q100: 0 | R100: 0 | S100: 0 | T100: 0 | U100: 0 | V100: 0 | W100: 0 | X100: 0 | Y100: 0.9 | AG100: 0.34 | AH100: 0.23 | AI100: 0.224 | AJ100: 3
A101: 91 | B101: 0 | C101: 0 | D101: 0 | E101: 0 | F101: 0 | G101: 0 | H101: 0 | I101: 0 | J101: 0 | K101: 0 | L101: 0 | M101: 0 | N101: 0.2 | O101: 0 | Q101: 0 | R101: 0 | S101: 0 | T101: 0 | U101: 0 | V101: 0 | W101: 0 | X101: 0 | Y101: 0.91 | AG101: 0.35 | AH101: 0.23 | AI101: 0.225 | AJ101: 3
A102: 92 | B102: 0 | C102: 0 | D102: 0 | E102: 0 | F102: 0 | G102: 0 | H102: 0 | I102: 0 | J102: 0 | K102: 0 | L102: 0 | M102: 0 | N102: 0.2 | O102: 0 | Q102: 0 | R102: 0 | S102: 0 | T102: 0 | U102: 0 | V102: 0 | W102: 0 | X102: 0 | Y102: 0.92 | AG102: 0.36 | AH102: 0.23 | AI102: 0.226 | AJ102: 3
A103: 93 | B103: 0 | C103: 0 | D103: 0 | E103: 0 | F103: 0 | G103: 0 | H103: 0 | I103: 0 | J103: 0 | K103: 0 | L103: 0 | M103: 0 | N103: 0.2 | O103: 0 | Q103: 0 | R103: 0 | S103: 0 | T103: 0 | U103: 0 | V103: 0 | W103: 0 | X103: 0 | Y103: 0.93 | AG103: 0.37 | AH103: 0.23 | AI103: 0.227 | AJ103: 3
A104: 94 | B104: 0 | C104: 0 | D104: 0 | E104: 0 | F104: 0 | G104: 0 | H104: 0 | I104: 0 | J104: 0 | K104: 0 | L104: 0 | M104: 0 | N104: 0.2 | O104: 0 | Q104: 0 | R104: 0 | S104: 0 | T104: 0 | U104: 0 | V104: 0 | W104: 0 | X104: 0 | Y104: 0.94 | AG104: 0.38 | AH104: 0.23 | AI104: 0.228 | AJ104: 3
A105: 95 | B105: 0 | C105: 0 | D105: 0 | E105: 0 | F105: 0 | G105: 0 | H105: 0 | I105: 0 | J105: 0 | K105: 0 | L105: 0 | M105: 0 | N105: 0.2 | O105: 0 | Q105: 0 | R105: 0 | S105: 0 | T105: 0 | U105: 0 | V105: 0 | W105: 0 | X105: 0 | Y105: 0.95 | AG105: 0.39 | AH105: 0.23 | AI105: 0.229 | AJ105: 3
A106: 96 | B106: 0 | C106: 0 | D106: 0 | E106: 0 | F106: 0 | G106: 0 | H106: 0 | I106: 0 | J106: 0 | K106: 0 | L106: 0 | M106: 0 | N106: 0.2 | O106: 0 | Q106: 0 | R106: 0 | S106: 0 | T106: 0 | U106: 0 | V106: 0 | W106: 0 | X106: 0 | Y106: 0.96 | AG106: 0.4 | AH106: 0.2 | AI106: 0.23 | AJ106: 4
A107: 97 | B107: 0 | C107: 0 | D107: 0 | E107: 0 | F107: 0 | G107: 0 | H107: 0 | I107: 0 | J107: 0 | K107: 0 | L107: 0 | M107: 0 | N107: 0.2 | O107: 0 | Q107: 0 | R107: 0 | S107: 0 | T107: 0 | U107: 0 | V107: 0 | W107: 0 | X107: 0 | Y107: 0.97 | AG107: 0.41 | AH107: 0.2 | AI107: 0.231 | AJ107: 4
A108: 98 | B108: 0 | C108: 0 | D108: 0 | E108: 0 | F108: 0 | G108: 0 | H108: 0 | I108: 0 | J108: 0 | K108: 0 | L108: 0 | M108: 0 | N108: 0.2 | O108: 0 | Q108: 0 | R108: 0 | S108: 0 | T108: 0 | U108: 0 | V108: 0 | W108: 0 | X108: 0 | Y108: 0.98 | AG108: 0.42 | AH108: 0.2 | AI108: 0.232 | AJ108: 4
A109: 99 | B109: 0 | C109: 0 | D109: 0 | E109: 0 | F109: 0 | G109: 0 | H109: 0 | I109: 0 | J109: 0 | K109: 0 | L109: 0 | M109: 0 | N109: 0.2 | O109: 0 | Q109: 0 | R109: 0 | S109: 0 | T109: 0 | U109: 0 | V109: 0 | W109: 0 | X109: 0 | Y109: 0.99 | AG109: 0.43 | AH109: 0.2 | AI109: 0.233 | AJ109: 4
A110: 100 | B110: 0 | C110: 0 | D110: 0 | E110: 0 | F110: 0 | G110: 0 | H110: 0 | I110: 0 | J110: 0 | K110: 0 | L110: 0 | M110: 0 | N110: 0.2 | O110: 0 | Q110: 0 | R110: 0 | S110: 0 | T110: 0 | U110: 0 | V110: 0 | W110: 0 | X110: 0 | Y110: 1 | AG110: 0.44 | AH110: 0.2 | AI110: 0.234 | AJ110: 4
A111: k* | B111: 0 | C111: 0 | D111: 0 | E111: 0 | F111: 0 | G111: 0 | H111: 0 | I111: 0 | J111: 0 | K111: 0 | L111: 0 | M111: 0 | N111: 0 | O111: 0 | Q111: 0 | R111: 0 | S111: 0 | T111: 0 | U111: 0 | V111: 0 | W111: 0 | X111: 0 | Y111: 1.01 | AG111: 0.45 | AH111: 0.2 | AI111: 0.235 | AJ111: 4
A112: tR,h | B112: 0 | C112: 0 | D112: 0 | E112: 0 | F112: 0 | G112: 0 | H112: 0 | I112: 0.2 | J112: 0 | K112: 0 | L112: 0 | M112: 0 | N112: 0 | O112: 0 | Q112: 0 | R112: 0 | S112: 0 | T112: 0 | U112: 0 | V112: 0 | W112: 0 | X112: 0 | Y112: 1.02 | AG112: 0.46 | AH112: 0.2 | AI112: 0.236 | AJ112: 4
W113: 0 | X113: 0 | Y113: 1.03 | AG113: 0.47 | AH113: 0.2 | AI113: 0.237 | AJ113: 4
W114: 0 | X114: 0 | Y114: 1.04 | AG114: 0.48 | AH114: 0.2 | AI114: 0.238 | AJ114: 4
W115: 0 | X115: 0 | Y115: 1.05 | AG115: 0.49 | AH115: 0.2 | AI115: 0.239 | AJ115: 4
W116: 0 | X116: 0 | Y116: 1.06 | AG116: 0.5 | AH116: 0.25 | AI116: 0.24 | AJ116: 5
W117: 0 | X117: 0 | Y117: 1.07 | AG117: 0.51 | AH117: 0.25 | AI117: 0.241 | AJ117: 5
W118: 0 | X118: 0 | Y118: 1.08 | AG118: 0.52 | AH118: 0.25 | AI118: 0.242 | AJ118: 5
W119: 0 | X119: 0 | Y119: 1.09 | AG119: 0.53 | AH119: 0.25 | AI119: 0.243 | AJ119: 5
W120: 0 | X120: 0 | Y120: 1.1 | AG120: 0.54 | AH120: 0.25 | AI120: 0.244 | AJ120: 5
W121: 0 | X121: 0 | Y121: 1.11 | AG121: 0.55 | AH121: 0.25 | AI121: 0.245 | AJ121: 5
W122: 0 | X122: 0 | Y122: 1.12 | AG122: 0.56 | AH122: 0.25 | AI122: 0.246 | AJ122: 5
W123: 0 | X123: 0 | Y123: 1.13 | AG123: 0.57 | AH123: 0.25 | AI123: 0.247 | AJ123: 5
W124: 0 | X124: 0 | Y124: 1.14 | AG124: 0.58 | AH124: 0.25 | AI124: 0.248 | AJ124: 5
W125: 0 | X125: 0 | Y125: 1.15 | AG125: 0.59 | AH125: 0.25 | AI125: 0.249 | AJ125: 5
W126: 0 | X126: 0 | Y126: 1.16 | AG126: 0.6 | AH126: 0.25 | AI126: 0.25 | AJ126: 5
W127: 0 | X127: 0 | Y127: 1.17 | AG127: 0.61 | AH127: 0.2 | AI127: 0.251 | AJ127: 6
W128: 0 | X128: 0 | Y128: 1.18 | AG128: 0.62 | AH128: 0.2 | AI128: 0.252 | AJ128: 6
W129: 0 | X129: 0 | Y129: 1.19 | AG129: 0.63 | AH129: 0.2 | AI129: 0.253 | AJ129: 6
W130: 0 | X130: 0 | Y130: 1.2 | AG130: 0.64 | AH130: 0.2 | AI130: 0.254 | AJ130: 6
W131: 0 | X131: 0 | Y131: 1.21 | AG131: 0.65 | AH131: =IF(AG131<$K$7,IF(MOD(AJ131,2)=0,$K$5,$K$5+AJ131*AH$61),$K$6) -> 0.2 | AI131: 0.255 | AJ131: =QUOTIENT(AG131,AH$62) -> 6
W132: 0 | X132: 0 | Y132: 1.22 | AG132: 0.66 | AH132: 0.2 | AI132: =IF(AG132<=$K$8,AI131,IF(AG132<=($K$7+$K$8),AI131+$AI$61,$K$6)) -> 0.256 | AJ132: 6
W133: 0 | X133: 0 | Y133: 1.23 | AG133: 0.67 | AH133: 0.2 | AI133: 0.257 | AJ133: 6
W134: 0 | X134: 0 | Y134: 1.24 | AG134: 0.68 | AH134: 0.2 | AI134: 0.258 | AJ134: 6
W135: 0 | X135: 0 | Y135: 1.25 | AG135: 0.69 | AH135: 0.2 | AI135: 0.259 | AJ135: 6
W136: 0 | X136: 0 | Y136: 1.26 | AG136: 0.7 | AH136: 0.2 | AI136: 0.26 | AJ136: 6
W137: 0 | X137: 0 | Y137: 1.27 | AG137: 0.71 | AH137: 0.27 | AI137: 0.261 | AJ137: 7
W138: 0 | X138: 0 | Y138: 1.28 | AG138: 0.72 | AH138: 0.27 | AI138: 0.262 | AJ138: 7
W139: 0 | X139: 0 | Y139: 1.29 | AG139: 0.73 | AH139: 0.27 | AI139: 0.263 | AJ139: 7
W140: 0 | X140: 0 | Y140: 1.3 | AG140: 0.74 | AH140: 0.27 | AI140: 0.264 | AJ140: 7
W141: 0 | X141: 0 | Y141: 1.31 | AG141: 0.75 | AH141: 0.27 | AI141: 0.265 | AJ141: 7
W142: 0 | X142: 0 | Y142: 1.32 | AG142: 0.76 | AH142: 0.27 | AI142: 0.266 | AJ142: 7
W143: 0 | X143: 0 | Y143: 1.33 | AG143: 0.77 | AH143: 0.27 | AI143: 0.267 | AJ143: 7
W144: 0 | X144: 0 | Y144: 1.34 | AG144: 0.78 | AH144: 0.27 | AI144: 0.268 | AJ144: 7
W145: 0 | X145: 0 | Y145: 1.35 | AG145: 0.79 | AH145: 0.27 | AI145: 0.269 | AJ145: 7
W146: 0 | X146: 0 | Y146: 1.36 | AG146: 0.8 | AH146: 0.2 | AI146: 0.27 | AJ146: 8
W147: 0 | X147: 0 | Y147: 1.37 | AG147: 0.81 | AH147: 0.2 | AI147: 0.271 | AJ147: 8
W148: 0 | X148: 0 | Y148: 1.38 | AG148: 0.82 | AH148: 0.2 | AI148: 0.272 | AJ148: 8
W149: 0 | X149: 0 | Y149: 1.39 | AG149: 0.83 | AH149: 0.2 | AI149: 0.273 | AJ149: 8
W150: 0 | X150: 0 | Y150: 1.4 | AG150: 0.84 | AH150: 0.2 | AI150: 0.274 | AJ150: 8
W151: 0 | X151: 0 | Y151: 1.41 | AG151: 0.85 | AH151: 0.2 | AI151: 0.275 | AJ151: 8
W152: 0 | X152: 0 | Y152: 1.42 | AG152: 0.86 | AH152: 0.2 | AI152: 0.276 | AJ152: 8
W153: 0 | X153: 0 | Y153: 1.43 | AG153: 0.87 | AH153: 0.2 | AI153: 0.277 | AJ153: 8
W154: 0 | X154: 0 | Y154: 1.44 | AG154: 0.88 | AH154: 0.2 | AI154: 0.278 | AJ154: 8
W155: 0 | X155: 0 | Y155: 1.45 | AG155: 0.89 | AH155: 0.2 | AI155: 0.279 | AJ155: 8
W156: 0 | X156: 0 | Y156: 1.46 | AG156: 0.9 | AH156: 0.29 | AI156: 0.28 | AJ156: 9
W157: 0 | X157: 0 | Y157: 1.47 | AG157: 0.91 | AH157: 0.29 | AI157: 0.281 | AJ157: 9
W158: 0 | X158: 0 | Y158: 1.48 | AG158: 0.92 | AH158: 0.29 | AI158: 0.282 | AJ158: 9
W159: 0 | X159: 0 | Y159: 1.49 | AG159: 0.93 | AH159: 0.29 | AI159: 0.283 | AJ159: 9
W160: 0 | X160: 0 | Y160: 1.5 | AG160: 0.94 | AH160: 0.29 | AI160: 0.284 | AJ160: 9
W161: 0 | X161: 0 | Y161: 1.51 | AG161: 0.95 | AH161: 0.29 | AI161: 0.285 | AJ161: 9
W162: 0 | X162: 0 | Y162: 1.52 | AG162: 0.96 | AH162: 0.29 | AI162: 0.286 | AJ162: 9
W163: 0 | X163: 0 | Y163: 1.53 | AG163: 0.97 | AH163: 0.29 | AI163: 0.287 | AJ163: 9
W164: 0 | X164: 0 | Y164: 1.54 | AG164: 0.98 | AH164: 0.29 | AI164: 0.288 | AJ164: 9
W165: 0 | X165: 0 | Y165: 1.55 | AG165: 0.99 | AH165: 0.29 | AI165: 0.289 | AJ165: 9
W166: 0 | X166: 0 | Y166: 1.56 | AG166: 1 | AH166: 0.2 | AI166: 0.29 | AJ166: 10
W167: 0 | X167: 0 | Y167: 1.57 | AG167: 1.01 | AH167: 0.2 | AI167: 0.291 | AJ167: 10
W168: 0 | X168: 0 | Y168: 1.58 | AG168: 1.02 | AH168: 0.2 | AI168: 0.292 | AJ168: 10
W169: 0 | X169: 0 | Y169: 1.59 | AG169: 1.03 | AH169: 0.2 | AI169: 0.293 | AJ169: 10
W170: 0 | X170: 0 | Y170: 1.6 | AG170: 1.04 | AH170: 0.2 | AI170: 0.294 | AJ170: 10
W171: 0 | X171: 0 | Y171: 1.61 | AG171: 1.05 | AH171: 0.2 | AI171: 0.295 | AJ171: 10
W172: 0 | X172: 0 | Y172: 1.62 | AG172: 1.06 | AH172: 0.2 | AI172: 0.296 | AJ172: 10
W173: 0 | X173: 0 | Y173: 1.63 | AG173: 1.07 | AH173: 0.2 | AI173: 0.297 | AJ173: 10
W174: 0 | X174: 0 | Y174: 1.64 | AG174: 1.08 | AH174: 0.2 | AI174: 0.298 | AJ174: 10
W175: 0 | X175: 0 | Y175: 1.65 | AG175: 1.09 | AH175: 0.2 | AI175: 0.299 | AJ175: 10
W176: 0 | X176: 0 | Y176: 1.66 | AG176: 1.1 | AH176: 0.31 | AI176: 0.3 | AJ176: 11
W177: 0 | X177: 0 | Y177: 1.67 | AG177: 1.11 | AH177: 0.31 | AI177: 0.301 | AJ177: 11
W178: 0 | X178: 0 | Y178: 1.68 | AG178: 1.12 | AH178: 0.31 | AI178: 0.302 | AJ178: 11
W179: 0 | X179: 0 | Y179: 1.69 | AG179: 1.13 | AH179: 0.31 | AI179: 0.303 | AJ179: 11
W180: 0 | X180: 0 | Y180: 1.7 | AG180: 1.14 | AH180: 0.31 | AI180: 0.304 | AJ180: 11
W181: 0 | X181: 0 | Y181: 1.71 | AG181: 1.15 | AH181: 0.31 | AI181: 0.305 | AJ181: 11
W182: 0 | X182: 0 | Y182: 1.72 | AG182: 1.16 | AH182: 0.31 | AI182: 0.306 | AJ182: 11
W183: 0 | X183: 0 | Y183: 1.73 | AG183: 1.17 | AH183: 0.31 | AI183: 0.307 | AJ183: 11
W184: 0 | X184: 0 | Y184: 1.74 | AG184: 1.18 | AH184: 0.31 | AI184: 0.308 | AJ184: 11
W185: 0 | X185: 0 | Y185: 1.75 | AG185: 1.19 | AH185: 0.31 | AI185: 0.309 | AJ185: 11
W186: 0 | X186: 0 | Y186: 1.76 | AG186: 1.2 | AH186: 0.31 | AI186: 0.31 | AJ186: 11
W187: 0 | X187: 0 | Y187: 1.77 | AG187: 1.21 | AH187: 0.2 | AI187: 0.311 | AJ187: 12
W188: 0 | X188: 0 | Y188: 1.78 | AG188: 1.22 | AH188: 0.2 | AI188: 0.312 | AJ188: 12
W189: 0 | X189: 0 | Y189: 1.79 | AG189: 1.23 | AH189: 0.2 | AI189: 0.313 | AJ189: 12
W190: 0 | X190: 0 | Y190: 1.8 | AG190: 1.24 | AH190: 0.2 | AI190: 0.314 | AJ190: 12
W191: 0 | X191: 0 | Y191: 1.81 | AG191: 1.25 | AH191: 0.2 | AI191: 0.315 | AJ191: 12
W192: 0 | X192: 0 | Y192: 1.82 | AG192: 1.26 | AH192: 0.2 | AI192: 0.316 | AJ192: 12
W193: 0 | X193: 0 | Y193: 1.83 | AG193: 1.27 | AH193: 0.2 | AI193: 0.317 | AJ193: 12
W194: 0 | X194: 0 | Y194: 1.84 | AG194: 1.28 | AH194: 0.2 | AI194: 0.318 | AJ194: 12
W195: 0 | X195: 0 | Y195: 1.85 | AG195: 1.29 | AH195: =IF(AG195<$K$7,IF(MOD(AJ195,2)=0,$K$5,$K$5+AJ195*AH$61),$K$6) -> 0.2 | AI195: 0.319 | AJ195: =QUOTIENT(AG195,AH$62) -> 12
W196: 0 | X196: 0 | Y196: 1.86 | AG196: 1.3 | AH196: 0.33 | AI196: =IF(AG196<=$K$8,AI195,IF(AG196<=($K$7+$K$8),AI195+$AI$61,$K$6)) -> 0.32 | AJ196: 13
W197: 0 | X197: 0 | Y197: 1.87 | AG197: 1.31 | AH197: 0.33 | AI197: 0.321 | AJ197: 13
W198: 0 | X198: 0 | Y198: 1.88 | AG198: 1.32 | AH198: 0.33 | AI198: 0.322 | AJ198: 13
W199: 0 | X199: 0 | Y199: 1.89 | AG199: 1.33 | AH199: 0.33 | AI199: 0.323 | AJ199: 13
W200: 0 | X200: 0 | Y200: 1.9 | AG200: 1.34 | AH200: 0.33 | AI200: 0.324 | AJ200: 13
... 810 more rows

Sheet ChromSim (100)
A1: ='Plate Theory'!A1 -> ChromSimLSS_2.2 | D1: Simulation of chromatography and plate theory | K1: ='Plate Theory'!K1 -> Author: Bo Svensmark, svensmark@plen.ku.dk, Analytcal Chemistry, PLEN, University of Copenhagen, 2020 - 2025 | AF1: Manual: | AO1: *
AG2: Works essentially as the simulation in Sheet "Plate Theory"
B3: Analyte LSS parameters | G3: Results | J3: Gradient | L3: Runtime | T3: Click on the graph | AH3: Try the simulation in "Plate Theosy" first - and see the manual in cell X1+
J4: b(1) | K4: =M7*(K6-K5)*C6/K7 -> 0.4 | T4: Then click Zoom
A5: Analyte | B5: Logkw | C5: S | D5: Conc | E5: ko | F5: =IF(K4=0,"k","k*") -> k* | G5: =IF(K4=0,"k(obs)","k*(obs)") -> k*(obs) | H5: tR | I5: h | J5: φstart | K5: 0.2 | L5: Time, min | M5: =I111 -> 0 | P5: N runs | Q5: Delay, ms | AG5: Analyte LSS parameters:
A6: #1 | B6: 2.3 | C6: 4 | D6: 100 | E6: =10^(B6-C6*$K$5) -> 31.6227766 | F6: =IF(K$4=0,E6,1/(1.15*K$4)) -> 2.173913043 | G6: =C111 -> 0 | H6: =C112 -> 0 | I6: =D112 -> 0 | J6: φend | K6: 1 | L6: φ(t) | M6: =I112 -> 0.2 | P6: 1 | Q6: 1000 | R6: Max | S6: 10 | AH6: Linear Solvent Strengths parameters for 3 analytes
A7: #2 | B7: 2.8 | C7: 4 | D7: 100 | E7: =10^(B7-C7*$K$5) -> 100 | F7: =IF(K$4=0,E7,1/(1.15*K$4)) -> 2.173913043 | G7: =E111 -> 0 | H7: =E112 -> 0 | I7: =F112 -> 0 | J7: t(G), min | K7: 8 | L7: tM, min | M7: 1 | P7: N runs | Q7: Delay, ms | R7: Loops
A8: #3 | B8: 3.2 | C8: 4 | D8: 100 | E8: =10^(B8-C8*$K$5) -> 251.1886432 | F8: =IF(K$4=0,E8,1/(1.15*K$4)) -> 2.173913043 | G8: =G111 -> 0 | H8: =G112 -> 0 | I8: =H112 -> 0 | J8: t(D), min | K8: 0.1 | L8: Nth | M8: 100 | P8: 200 | Q8: 10 | R8: 10 | AG8: Gradient: Parameters for the eluent strength
AH9: φstart | AI9: Eluent strenght at injection (0-1)
A10: i | B10: Cm | C10: Cs | D10: Cm2 | E10: Cs2 | F10: Cm3 | G10: Cs3 | H10: Trace1m | I10: Trace1s | J10: Trace2m | K10: Trace2s | L10: Trace 3m | M10: Trace3s | N10: φ(x) | O10: SUM | Q10: k* 1m | R10: k* 1s | S10: k* 2m | T10: k* 2s | U10: k* 3m | V10: k* 3s | W10: Chrom1 | X10: Chrom2 | AH10: φend | AI10: Eleuent strength at end of gradient
A11: 1 | B11: 0 | C11: 0 | D11: 0 | E11: 0 | F11: 0 | G11: 0 | H11: 0 | I11: 0 | J11: 0 | K11: 0 | L11: 0 | M11: 0 | N11: 0.2 | O11: =B11+D11+F11 -> 0 | Q11: 0 | R11: 0 | S11: 0 | T11: 0 | U11: 0 | V11: 0 | W11: 0 | X11: 0 | AH11: t(G), min | AI11: Gradient time
A12: 2 | B12: 0 | C12: 0 | D12: 0 | E12: 0 | F12: 0 | G12: 0 | H12: 0 | I12: 0 | J12: 0 | K12: 0 | L12: 0 | M12: 0 | N12: 0.2 | O12: =B12+D12+F12 -> 0 | Q12: 0 | R12: 0 | S12: 0 | T12: 0 | U12: 0 | V12: 0 | W12: 0 | X12: 0 | AH12: t(D), min | AI12: Dwel time or time for an initial isochratic part of a gradient
A13: 3 | B13: 0 | C13: 0 | D13: 0 | E13: 0 | F13: 0 | G13: 0 | H13: 0 | I13: 0 | J13: 0 | K13: 0 | L13: 0 | M13: 0 | N13: 0.2 | O13: 0 | Q13: 0 | R13: 0 | S13: 0 | T13: 0 | U13: 0 | V13: 0 | W13: 0 | X13: 0
A14: 4 | B14: 0 | C14: 0 | D14: 0 | E14: 0 | F14: 0 | G14: 0 | H14: 0 | I14: 0 | J14: 0 | K14: 0 | L14: 0 | M14: 0 | N14: 0.2 | O14: 0 | Q14: 0 | R14: 0 | S14: 0 | T14: 0 | U14: 0 | V14: 0 | W14: 0 | X14: 0 | AH14: If φstart = φend isocratic elution will be simulated
A15: 5 | B15: 0 | C15: 0 | D15: 0 | E15: 0 | F15: 0 | G15: 0 | H15: 0 | I15: 0 | J15: 0 | K15: 0 | L15: 0 | M15: 0 | N15: 0.2 | O15: 0 | Q15: 0 | R15: 0 | S15: 0 | T15: 0 | U15: 0 | V15: 0 | W15: 0 | X15: 0
A16: 6 | B16: 0 | C16: 0 | D16: 0 | E16: 0 | F16: 0 | G16: 0 | H16: 0 | I16: 0 | J16: 0 | K16: 0 | L16: 0 | M16: 0 | N16: 0.2 | O16: 0 | Q16: 0 | R16: 0 | S16: 0 | T16: 0 | U16: 0 | V16: 0 | W16: 0 | X16: 0 | AG16: Zoom Y:
A17: 7 | B17: 0 | C17: 0 | D17: 0 | E17: 0 | F17: 0 | G17: 0 | H17: 0 | I17: 0 | J17: 0 | K17: 0 | L17: 0 | M17: 0 | N17: 0.2 | O17: 0 | Q17: 0 | R17: 0 | S17: 0 | T17: 0 | U17: 0 | V17: 0 | W17: 0 | X17: 0 | AH17: All 4 graphs can be scaled individually
A18: 8 | B18: 0 | C18: 0 | D18: 0 | E18: 0 | F18: 0 | G18: 0 | H18: 0 | I18: 0 | J18: 0 | K18: 0 | L18: 0 | M18: 0 | N18: 0.2 | O18: 0 | Q18: 0 | R18: 0 | S18: 0 | T18: 0 | U18: 0 | V18: 0 | W18: 0 | X18: 0 | AH18: REMEMBER to select the graph before clicking the button
A19: 9 | B19: 0 | C19: 0 | D19: 0 | E19: 0 | F19: 0 | G19: 0 | H19: 0 | I19: 0 | J19: 0 | K19: 0 | L19: 0 | M19: 0 | N19: 0.2 | O19: 0 | Q19: 0 | R19: 0 | S19: 0 | T19: 0 | U19: 0 | V19: 0 | W19: 0 | X19: 0
A20: 10 | B20: 0 | C20: 0 | D20: 0 | E20: 0 | F20: 0 | G20: 0 | H20: 0 | I20: 0 | J20: 0 | K20: 0 | L20: 0 | M20: 0 | N20: 0.2 | O20: 0 | Q20: 0 | R20: 0 | S20: 0 | T20: 0 | U20: 0 | V20: 0 | W20: 0 | X20: 0 | AG20: Sorption isotherms:
A21: 11 | B21: 0 | C21: 0 | D21: 0 | E21: 0 | F21: 0 | G21: 0 | H21: 0 | I21: 0 | J21: 0 | K21: 0 | L21: 0 | M21: 0 | N21: 0.2 | O21: 0 | Q21: 0 | R21: 0 | S21: 0 | T21: 0 | U21: 0 | V21: 0 | W21: 0 | X21: 0 | AH21: Uses the isotherm in the table in cells AG42:AJ58
A22: 12 | B22: 0 | C22: 0 | D22: 0 | E22: 0 | F22: 0 | G22: 0 | H22: 0 | I22: 0 | J22: 0 | K22: 0 | L22: 0 | M22: 0 | N22: 0.2 | O22: 0 | Q22: 0 | R22: 0 | S22: 0 | T22: 0 | U22: 0 | V22: 0 | W22: 0 | X22: 0 | AH22: C0-C1 and C2: polynomial coefficients
A23: 13 | B23: 0 | C23: 0 | D23: 0 | E23: 0 | F23: 0 | G23: 0 | H23: 0 | I23: 0 | J23: 0 | K23: 0 | L23: 0 | M23: 0 | N23: 0.2 | O23: 0 | Q23: 0 | R23: 0 | S23: 0 | T23: 0 | U23: 0 | V23: 0 | W23: 0 | X23: 0
A24: 14 | B24: 0 | C24: 0 | D24: 0 | E24: 0 | F24: 0 | G24: 0 | H24: 0 | I24: 0 | J24: 0 | K24: 0 | L24: 0 | M24: 0 | N24: 0.2 | O24: 0 | Q24: 0 | R24: 0 | S24: 0 | T24: 0 | U24: 0 | V24: 0 | W24: 0 | X24: 0 | AG24: Complex gradient:
A25: 15 | B25: 0 | C25: 0 | D25: 0 | E25: 0 | F25: 0 | G25: 0 | H25: 0 | I25: 0 | J25: 0 | K25: 0 | L25: 0 | M25: 0 | N25: 0.2 | O25: 0 | Q25: 0 | R25: 0 | S25: 0 | T25: 0 | U25: 0 | V25: 0 | W25: 0 | X25: 0 | AH25: Uses the gradient in the table in cells AG61:AJ566
A26: 16 | B26: 0 | C26: 0 | D26: 0 | E26: 0 | F26: 0 | G26: 0 | H26: 0 | I26: 0 | J26: 0 | K26: 0 | L26: 0 | M26: 0 | N26: 0.2 | O26: 0 | Q26: 0 | R26: 0 | S26: 0 | T26: 0 | U26: 0 | V26: 0 | W26: 0 | X26: 0 | AH26: The pulsed gradient in the table uses tD (cell K8) for pulse length
A27: 17 | B27: 0 | C27: 0 | D27: 0 | E27: 0 | F27: 0 | G27: 0 | H27: 0 | I27: 0 | J27: 0 | K27: 0 | L27: 0 | M27: 0 | N27: 0.2 | O27: 0 | Q27: 0 | R27: 0 | S27: 0 | T27: 0 | U27: 0 | V27: 0 | W27: 0 | X27: 0 | AH27: Use the buttons Reset complex and Continue Complex for use of the complex gradient
A28: 18 | B28: 0 | C28: 0 | D28: 0 | E28: 0 | F28: 0 | G28: 0 | H28: 0 | I28: 0 | J28: 0 | K28: 0 | L28: 0 | M28: 0 | N28: 0.2 | O28: 0 | Q28: 0 | R28: 0 | S28: 0 | T28: 0 | U28: 0 | V28: 0 | W28: 0 | X28: 0
A29: 19 | B29: 0 | C29: 0 | D29: 0 | E29: 0 | F29: 0 | G29: 0 | H29: 0 | I29: 0 | J29: 0 | K29: 0 | L29: 0 | M29: 0 | N29: 0.2 | O29: 0 | Q29: 0 | R29: 0 | S29: 0 | T29: 0 | U29: 0 | V29: 0 | W29: 0 | X29: 0 | AG29: Fixed parameters:
A30: 20 | B30: 0 | C30: 0 | D30: 0 | E30: 0 | F30: 0 | G30: 0 | H30: 0 | I30: 0 | J30: 0 | K30: 0 | L30: 0 | M30: 0 | N30: 0.2 | O30: 0 | Q30: 0 | R30: 0 | S30: 0 | T30: 0 | U30: 0 | V30: 0 | W30: 0 | X30: 0 | AH30: Number of theoretic plates Nth = 100
A31: 21 | B31: 0 | C31: 0 | D31: 0 | E31: 0 | F31: 0 | G31: 0 | H31: 0 | I31: 0 | J31: 0 | K31: 0 | L31: 0 | M31: 0 | N31: 0.2 | O31: 0 | Q31: 0 | R31: 0 | S31: 0 | T31: 0 | U31: 0 | V31: 0 | W31: 0 | X31: 0 | AH31: Dead time tM = 1.00 min
A32: 22 | B32: 0 | C32: 0 | D32: 0 | E32: 0 | F32: 0 | G32: 0 | H32: 0 | I32: 0 | J32: 0 | K32: 0 | L32: 0 | M32: 0 | N32: 0.2 | O32: 0 | Q32: 0 | R32: 0 | S32: 0 | T32: 0 | U32: 0 | V32: 0 | W32: 0 | X32: 0 | AH32: Chromatogram length = 5.00 min
A33: 23 | B33: 0 | C33: 0 | D33: 0 | E33: 0 | F33: 0 | G33: 0 | H33: 0 | I33: 0 | J33: 0 | K33: 0 | L33: 0 | M33: 0 | N33: 0.2 | O33: 0 | Q33: 0 | R33: 0 | S33: 0 | T33: 0 | U33: 0 | V33: 0 | W33: 0 | X33: 0
A34: 24 | B34: 0 | C34: 0 | D34: 0 | E34: 0 | F34: 0 | G34: 0 | H34: 0 | I34: 0 | J34: 0 | K34: 0 | L34: 0 | M34: 0 | N34: 0.2 | O34: 0 | Q34: 0 | R34: 0 | S34: 0 | T34: 0 | U34: 0 | V34: 0 | W34: 0 | X34: 0 | AG34: Run time Errors:
A35: 25 | B35: 0 | C35: 0 | D35: 0 | E35: 0 | F35: 0 | G35: 0 | H35: 0 | I35: 0 | J35: 0 | K35: 0 | L35: 0 | M35: 0 | N35: 0.2 | O35: 0 | Q35: 0 | R35: 0 | S35: 0 | T35: 0 | U35: 0 | V35: 0 | W35: 0 | X35: 0 | AH35: You'll get a run time error if you use the macros in the wrong order
A36: 26 | B36: 0 | C36: 0 | D36: 0 | E36: 0 | F36: 0 | G36: 0 | H36: 0 | I36: 0 | J36: 0 | K36: 0 | L36: 0 | M36: 0 | N36: 0.2 | O36: 0 | Q36: 0 | R36: 0 | S36: 0 | T36: 0 | U36: 0 | V36: 0 | W36: 0 | X36: 0 | AH36: To fix it:
A37: 27 | B37: 0 | C37: 0 | D37: 0 | E37: 0 | F37: 0 | G37: 0 | H37: 0 | I37: 0 | J37: 0 | K37: 0 | L37: 0 | M37: 0 | N37: 0.2 | O37: 0 | Q37: 0 | R37: 0 | S37: 0 | T37: 0 | U37: 0 | V37: 0 | W37: 0 | X37: 0 | AI37: Click on "Debug" in the message window
A38: 28 | B38: 0 | C38: 0 | D38: 0 | E38: 0 | F38: 0 | G38: 0 | H38: 0 | I38: 0 | J38: 0 | K38: 0 | L38: 0 | M38: 0 | N38: 0.2 | O38: 0 | Q38: 0 | R38: 0 | S38: 0 | T38: 0 | U38: 0 | V38: 0 | W38: 0 | X38: 0 | AI38: In the window showing the macros click on the "Reset" icon (a blue square)
A39: 29 | B39: 0 | C39: 0 | D39: 0 | E39: 0 | F39: 0 | G39: 0 | H39: 0 | I39: 0 | J39: 0 | K39: 0 | L39: 0 | M39: 0 | N39: 0.2 | O39: 0 | Q39: 0 | R39: 0 | S39: 0 | T39: 0 | U39: 0 | V39: 0 | W39: 0 | X39: 0 | AI39: (or click on "Run" and then "Reset")
A40: 30 | B40: 0 | C40: 0 | D40: 0 | E40: 0 | F40: 0 | G40: 0 | H40: 0 | I40: 0 | J40: 0 | K40: 0 | L40: 0 | M40: 0 | N40: 0.2 | O40: 0 | Q40: 0 | R40: 0 | S40: 0 | T40: 0 | U40: 0 | V40: 0 | W40: 0 | X40: 0 | AI40: Go back to the sheet and use the macros correctly
A41: 31 | B41: 0 | C41: 0 | D41: 0 | E41: 0 | F41: 0 | G41: 0 | H41: 0 | I41: 0 | J41: 0 | K41: 0 | L41: 0 | M41: 0 | N41: 0.2 | O41: 0 | Q41: 0 | R41: 0 | S41: 0 | T41: 0 | U41: 0 | V41: 0 | W41: 0 | X41: 0
A42: 32 | B42: 0 | C42: 0 | D42: 0 | E42: 0 | F42: 0 | G42: 0 | H42: 0 | I42: 0 | J42: 0 | K42: 0 | L42: 0 | M42: 0 | N42: 0.2 | O42: 0 | Q42: 0 | R42: 0 | S42: 0 | T42: 0 | U42: 0 | V42: 0 | W42: 0 | X42: 0 | AG42: Sorption Isotherms
A43: 33 | B43: 0 | C43: 0 | D43: 0 | E43: 0 | F43: 0 | G43: 0 | H43: 0 | I43: 0 | J43: 0 | K43: 0 | L43: 0 | M43: 0 | N43: 0.2 | O43: 0 | Q43: 0 | R43: 0 | S43: 0 | T43: 0 | U43: 0 | V43: 0 | W43: 0 | X43: 0 | AG43: analyte # | AH43: 1 | AI43: 2 | AJ43: 3 | AM43: Alternative isotherms
A44: 34 | B44: 0 | C44: 0 | D44: 0 | E44: 0 | F44: 0 | G44: 0 | H44: 0 | I44: 0 | J44: 0 | K44: 0 | L44: 0 | M44: 0 | N44: 0.2 | O44: 0 | Q44: 0 | R44: 0 | S44: 0 | T44: 0 | U44: 0 | V44: 0 | W44: 0 | X44: 0 | AG44: C0 | AH44: 1 | AI44: 1 | AJ44: 1 | AM44: 1 | AN44: 1 | AO44: 1
A45: 35 | B45: 0 | C45: 0 | D45: 0 | E45: 0 | F45: 0 | G45: 0 | H45: 0 | I45: 0 | J45: 0 | K45: 0 | L45: 0 | M45: 0 | N45: 0.2 | O45: 0 | Q45: 0 | R45: 0 | S45: 0 | T45: 0 | U45: 0 | V45: 0 | W45: 0 | X45: 0 | AG45: C1 | AH45: 1 | AI45: 0 | AJ45: -0.5 | AM45: 1 | AN45: 0 | AO45: -0.5
A46: 36 | B46: 0 | C46: 0 | D46: 0 | E46: 0 | F46: 0 | G46: 0 | H46: 0 | I46: 0 | J46: 0 | K46: 0 | L46: 0 | M46: 0 | N46: 0.2 | O46: 0 | Q46: 0 | R46: 0 | S46: 0 | T46: 0 | U46: 0 | V46: 0 | W46: 0 | X46: 0 | AG46: C2 | AH46: 0.1 | AI46: 0 | AJ46: -0.1 | AM46: 0.1 | AN46: 0 | AO46: -0.1
A47: 37 | B47: 0 | C47: 0 | D47: 0 | E47: 0 | F47: 0 | G47: 0 | H47: 0 | I47: 0 | J47: 0 | K47: 0 | L47: 0 | M47: 0 | N47: 0.2 | O47: 0 | Q47: 0 | R47: 0 | S47: 0 | T47: 0 | U47: 0 | V47: 0 | W47: 0 | X47: 0 | AG47: n(m) | AH47: n(S) | AI47: n(S) | AJ47: n(S)
A48: 38 | B48: 0 | C48: 0 | D48: 0 | E48: 0 | F48: 0 | G48: 0 | H48: 0 | I48: 0 | J48: 0 | K48: 0 | L48: 0 | M48: 0 | N48: 0.2 | O48: 0 | Q48: 0 | R48: 0 | S48: 0 | T48: 0 | U48: 0 | V48: 0 | W48: 0 | X48: 0 | AG48: 0 | AH48: =$AG48*(AH$44+$AG48*(AH$45+$AG48*AH$46)) -> 0 | AI48: =$AG48*(AI$44+$AG48*(AI$45+$AG48*AI$46)) -> 0 | AJ48: 0 | AN48: =$AG48*(AN$44+$AG48*(AN$45+$AG48*AN$46)) -> 0
A49: 39 | B49: 0 | C49: 0 | D49: 0 | E49: 0 | F49: 0 | G49: 0 | H49: 0 | I49: 0 | J49: 0 | K49: 0 | L49: 0 | M49: 0 | N49: 0.2 | O49: 0 | Q49: 0 | R49: 0 | S49: 0 | T49: 0 | U49: 0 | V49: 0 | W49: 0 | X49: 0 | AG49: 0.1 | AH49: =$AG49*(AH$44+$AG49*(AH$45+$AG49*AH$46)) -> 0.1101 | AI49: 0.1 | AJ49: 0.0949
A50: 40 | B50: 0 | C50: 0 | D50: 0 | E50: 0 | F50: 0 | G50: 0 | H50: 0 | I50: 0 | J50: 0 | K50: 0 | L50: 0 | M50: 0 | N50: 0.2 | O50: 0 | Q50: 0 | R50: 0 | S50: 0 | T50: 0 | U50: 0 | V50: 0 | W50: 0 | X50: 0 | AG50: 0.2 | AH50: 0.2408 | AI50: 0.2 | AJ50: 0.1792
A51: 41 | B51: 0 | C51: 0 | D51: 0 | E51: 0 | F51: 0 | G51: 0 | H51: 0 | I51: 0 | J51: 0 | K51: 0 | L51: 0 | M51: 0 | N51: 0.2 | O51: 0 | Q51: 0 | R51: 0 | S51: 0 | T51: 0 | U51: 0 | V51: 0 | W51: 0 | X51: 0 | AG51: 0.3 | AH51: 0.3927 | AI51: 0.3 | AJ51: 0.2523
A52: 42 | B52: 0 | C52: 0 | D52: 0 | E52: 0 | F52: 0 | G52: 0 | H52: 0 | I52: 0 | J52: 0 | K52: 0 | L52: 0 | M52: 0 | N52: 0.2 | O52: 0 | Q52: 0 | R52: 0 | S52: 0 | T52: 0 | U52: 0 | V52: 0 | W52: 0 | X52: 0 | AG52: 0.4 | AH52: 0.5664 | AI52: 0.4 | AJ52: 0.3136
A53: 43 | B53: 0 | C53: 0 | D53: 0 | E53: 0 | F53: 0 | G53: 0 | H53: 0 | I53: 0 | J53: 0 | K53: 0 | L53: 0 | M53: 0 | N53: 0.2 | O53: 0 | Q53: 0 | R53: 0 | S53: 0 | T53: 0 | U53: 0 | V53: 0 | W53: 0 | X53: 0 | AG53: 0.5 | AH53: 0.7625 | AI53: 0.5 | AJ53: 0.3625
A54: 44 | B54: 0 | C54: 0 | D54: 0 | E54: 0 | F54: 0 | G54: 0 | H54: 0 | I54: 0 | J54: 0 | K54: 0 | L54: 0 | M54: 0 | N54: 0.2 | O54: 0 | Q54: 0 | R54: 0 | S54: 0 | T54: 0 | U54: 0 | V54: 0 | W54: 0 | X54: 0 | AG54: 0.6 | AH54: 0.9816 | AI54: 0.6 | AJ54: 0.3984
A55: 45 | B55: 0 | C55: 0 | D55: 0 | E55: 0 | F55: 0 | G55: 0 | H55: 0 | I55: 0 | J55: 0 | K55: 0 | L55: 0 | M55: 0 | N55: 0.2 | O55: 0 | Q55: 0 | R55: 0 | S55: 0 | T55: 0 | U55: 0 | V55: 0 | W55: 0 | X55: 0 | AG55: 0.7 | AH55: 1.2243 | AI55: 0.7 | AJ55: 0.4207
A56: 46 | B56: 0 | C56: 0 | D56: 0 | E56: 0 | F56: 0 | G56: 0 | H56: 0 | I56: 0 | J56: 0 | K56: 0 | L56: 0 | M56: 0 | N56: 0.2 | O56: 0 | Q56: 0 | R56: 0 | S56: 0 | T56: 0 | U56: 0 | V56: 0 | W56: 0 | X56: 0 | AG56: 0.8 | AH56: 1.4912 | AI56: 0.8 | AJ56: 0.4288
A57: 47 | B57: 0 | C57: 0 | D57: 0 | E57: 0 | F57: 0 | G57: 0 | H57: 0 | I57: 0 | J57: 0 | K57: 0 | L57: 0 | M57: 0 | N57: 0.2 | O57: 0 | Q57: 0 | R57: 0 | S57: 0 | T57: 0 | U57: 0 | V57: 0 | W57: 0 | X57: 0 | AG57: 0.9 | AH57: 1.7829 | AI57: 0.9 | AJ57: 0.4221
A58: 48 | B58: 0 | C58: 0 | D58: 0 | E58: 0 | F58: 0 | G58: 0 | H58: 0 | I58: 0 | J58: 0 | K58: 0 | L58: 0 | M58: 0 | N58: 0.2 | O58: 0 | Q58: 0 | R58: 0 | S58: 0 | T58: 0 | U58: 0 | V58: 0 | W58: 0 | X58: 0 | AG58: 1 | AH58: 2.1 | AI58: 1 | AJ58: 0.4
A59: 49 | B59: 0 | C59: 0 | D59: 0 | E59: 0 | F59: 0 | G59: 0 | H59: 0 | I59: 0 | J59: 0 | K59: 0 | L59: 0 | M59: 0 | N59: 0.2 | O59: 0 | Q59: 0 | R59: 0 | S59: 0 | T59: 0 | U59: 0 | V59: 0 | W59: 0 | X59: 0
A60: 50 | B60: 0 | C60: 0 | D60: 0 | E60: 0 | F60: 0 | G60: 0 | H60: 0 | I60: 0 | J60: 0 | K60: 0 | L60: 0 | M60: 0 | N60: 0.2 | O60: 0 | Q60: 0 | R60: 0 | S60: 0 | T60: 0 | U60: 0 | V60: 0 | W60: 0 | X60: 0
A61: 51 | B61: 0 | C61: 0 | D61: 0 | E61: 0 | F61: 0 | G61: 0 | H61: 0 | I61: 0 | J61: 0 | K61: 0 | L61: 0 | M61: 0 | N61: 0.2 | O61: 0 | Q61: 0 | R61: 0 | S61: 0 | T61: 0 | U61: 0 | V61: 0 | W61: 0 | X61: 0 | AG61: phid | AH61: =(K6-K5)/AJ62 -> 0.01 | AI61: =0.01*(K6-K5)/K7 -> 0.001
A62: 52 | B62: 0 | C62: 0 | D62: 0 | E62: 0 | F62: 0 | G62: 0 | H62: 0 | I62: 0 | J62: 0 | K62: 0 | L62: 0 | M62: 0 | N62: 0.2 | O62: 0 | Q62: 0 | R62: 0 | S62: 0 | T62: 0 | U62: 0 | V62: 0 | W62: 0 | X62: 0 | AG62: Period | AH62: =K8 -> 0.1 | AJ62: =QUOTIENT(K7,AH62) -> 80
A63: 53 | B63: 0 | C63: 0 | D63: 0 | E63: 0 | F63: 0 | G63: 0 | H63: 0 | I63: 0 | J63: 0 | K63: 0 | L63: 0 | M63: 0 | N63: 0.2 | O63: 0 | Q63: 0 | R63: 0 | S63: 0 | T63: 0 | U63: 0 | V63: 0 | W63: 0 | X63: 0 | AG63: Ampl | AH63: 0
A64: 54 | B64: 0 | C64: 0 | D64: 0 | E64: 0 | F64: 0 | G64: 0 | H64: 0 | I64: 0 | J64: 0 | K64: 0 | L64: 0 | M64: 0 | N64: 0.2 | O64: 0 | Q64: 0 | R64: 0 | S64: 0 | T64: 0 | U64: 0 | V64: 0 | W64: 0 | X64: 0
A65: 55 | B65: 0 | C65: 0 | D65: 0 | E65: 0 | F65: 0 | G65: 0 | H65: 0 | I65: 0 | J65: 0 | K65: 0 | L65: 0 | M65: 0 | N65: 0.2 | O65: 0 | Q65: 0 | R65: 0 | S65: 0 | T65: 0 | U65: 0 | V65: 0 | W65: 0 | X65: 0 | AG65: Time | AH65: Complex | AI65: Simple | AJ65: Pulse
A66: 56 | B66: 0 | C66: 0 | D66: 0 | E66: 0 | F66: 0 | G66: 0 | H66: 0 | I66: 0 | J66: 0 | K66: 0 | L66: 0 | M66: 0 | N66: 0.2 | O66: 0 | Q66: 0 | R66: 0 | S66: 0 | T66: 0 | U66: 0 | V66: 0 | W66: 0 | X66: 0 | AG66: 0 | AH66: =IF(AG66<$K$7,IF(MOD(AJ66,2)=0,$K$5,$K$5+AJ66*AH$61),$K$6) -> 0.2 | AI66: =$K$5 -> 0.2 | AJ66: =QUOTIENT(AG66,AH$62) -> 0
A67: 57 | B67: 0 | C67: 0 | D67: 0 | E67: 0 | F67: 0 | G67: 0 | H67: 0 | I67: 0 | J67: 0 | K67: 0 | L67: 0 | M67: 0 | N67: 0.2 | O67: 0 | Q67: 0 | R67: 0 | S67: 0 | T67: 0 | U67: 0 | V67: 0 | W67: 0 | X67: 0 | AG67: 0.01 | AH67: =IF(AG67<$K$7,IF(MOD(AJ67,2)=0,$K$5,$K$5+AJ67*AH$61),$K$6) -> 0.2 | AI67: =IF(AG67<=$K$8,AI66,IF(AG67<=($K$7+$K$8),AI66+$AI$61,$K$6)) -> 0.2 | AJ67: =QUOTIENT(AG67,AH$62) -> 0
A68: 58 | B68: 0 | C68: 0 | D68: 0 | E68: 0 | F68: 0 | G68: 0 | H68: 0 | I68: 0 | J68: 0 | K68: 0 | L68: 0 | M68: 0 | N68: 0.2 | O68: 0 | Q68: 0 | R68: 0 | S68: 0 | T68: 0 | U68: 0 | V68: 0 | W68: 0 | X68: 0 | AG68: 0.02 | AH68: 0.2 | AI68: =IF(AG68<=$K$8,AI67,IF(AG68<=($K$7+$K$8),AI67+$AI$61,$K$6)) -> 0.2 | AJ68: 0
A69: 59 | B69: 0 | C69: 0 | D69: 0 | E69: 0 | F69: 0 | G69: 0 | H69: 0 | I69: 0 | J69: 0 | K69: 0 | L69: 0 | M69: 0 | N69: 0.2 | O69: 0 | Q69: 0 | R69: 0 | S69: 0 | T69: 0 | U69: 0 | V69: 0 | W69: 0 | X69: 0 | AG69: 0.03 | AH69: 0.2 | AI69: 0.2 | AJ69: 0
A70: 60 | B70: 0 | C70: 0 | D70: 0 | E70: 0 | F70: 0 | G70: 0 | H70: 0 | I70: 0 | J70: 0 | K70: 0 | L70: 0 | M70: 0 | N70: 0.2 | O70: 0 | Q70: 0 | R70: 0 | S70: 0 | T70: 0 | U70: 0 | V70: 0 | W70: 0 | X70: 0 | AG70: 0.04 | AH70: 0.2 | AI70: 0.2 | AJ70: 0
A71: 61 | B71: 0 | C71: 0 | D71: 0 | E71: 0 | F71: 0 | G71: 0 | H71: 0 | I71: 0 | J71: 0 | K71: 0 | L71: 0 | M71: 0 | N71: 0.2 | O71: 0 | Q71: 0 | R71: 0 | S71: 0 | T71: 0 | U71: 0 | V71: 0 | W71: 0 | X71: 0 | AG71: 0.05 | AH71: 0.2 | AI71: 0.2 | AJ71: 0
A72: 62 | B72: 0 | C72: 0 | D72: 0 | E72: 0 | F72: 0 | G72: 0 | H72: 0 | I72: 0 | J72: 0 | K72: 0 | L72: 0 | M72: 0 | N72: 0.2 | O72: 0 | Q72: 0 | R72: 0 | S72: 0 | T72: 0 | U72: 0 | V72: 0 | W72: 0 | X72: 0 | AG72: 0.06 | AH72: 0.2 | AI72: 0.2 | AJ72: 0
A73: 63 | B73: 0 | C73: 0 | D73: 0 | E73: 0 | F73: 0 | G73: 0 | H73: 0 | I73: 0 | J73: 0 | K73: 0 | L73: 0 | M73: 0 | N73: 0.2 | O73: 0 | Q73: 0 | R73: 0 | S73: 0 | T73: 0 | U73: 0 | V73: 0 | W73: 0 | X73: 0 | AG73: 0.07 | AH73: 0.2 | AI73: 0.2 | AJ73: 0
A74: 64 | B74: 0 | C74: 0 | D74: 0 | E74: 0 | F74: 0 | G74: 0 | H74: 0 | I74: 0 | J74: 0 | K74: 0 | L74: 0 | M74: 0 | N74: 0.2 | O74: 0 | Q74: 0 | R74: 0 | S74: 0 | T74: 0 | U74: 0 | V74: 0 | W74: 0 | X74: 0 | AG74: 0.08 | AH74: 0.2 | AI74: 0.2 | AJ74: 0
A75: 65 | B75: 0 | C75: 0 | D75: 0 | E75: 0 | F75: 0 | G75: 0 | H75: 0 | I75: 0 | J75: 0 | K75: 0 | L75: 0 | M75: 0 | N75: 0.2 | O75: 0 | Q75: 0 | R75: 0 | S75: 0 | T75: 0 | U75: 0 | V75: 0 | W75: 0 | X75: 0 | AG75: 0.09 | AH75: 0.2 | AI75: 0.2 | AJ75: 0
A76: 66 | B76: 0 | C76: 0 | D76: 0 | E76: 0 | F76: 0 | G76: 0 | H76: 0 | I76: 0 | J76: 0 | K76: 0 | L76: 0 | M76: 0 | N76: 0.2 | O76: =B76+D76+F76 -> 0 | Q76: 0 | R76: 0 | S76: 0 | T76: 0 | U76: 0 | V76: 0 | W76: 0 | X76: 0 | AG76: 0.1 | AH76: 0.21 | AI76: 0.2 | AJ76: 1
A77: 67 | B77: 0 | C77: 0 | D77: 0 | E77: 0 | F77: 0 | G77: 0 | H77: 0 | I77: 0 | J77: 0 | K77: 0 | L77: 0 | M77: 0 | N77: 0.2 | O77: 0 | Q77: 0 | R77: 0 | S77: 0 | T77: 0 | U77: 0 | V77: 0 | W77: 0 | X77: 0 | AG77: 0.11 | AH77: 0.21 | AI77: 0.201 | AJ77: 1
A78: 68 | B78: 0 | C78: 0 | D78: 0 | E78: 0 | F78: 0 | G78: 0 | H78: 0 | I78: 0 | J78: 0 | K78: 0 | L78: 0 | M78: 0 | N78: 0.2 | O78: 0 | Q78: 0 | R78: 0 | S78: 0 | T78: 0 | U78: 0 | V78: 0 | W78: 0 | X78: 0 | AG78: 0.12 | AH78: 0.21 | AI78: 0.202 | AJ78: 1
A79: 69 | B79: 0 | C79: 0 | D79: 0 | E79: 0 | F79: 0 | G79: 0 | H79: 0 | I79: 0 | J79: 0 | K79: 0 | L79: 0 | M79: 0 | N79: 0.2 | O79: 0 | Q79: 0 | R79: 0 | S79: 0 | T79: 0 | U79: 0 | V79: 0 | W79: 0 | X79: 0 | AG79: 0.13 | AH79: 0.21 | AI79: 0.203 | AJ79: 1
A80: 70 | B80: 0 | C80: 0 | D80: 0 | E80: 0 | F80: 0 | G80: 0 | H80: 0 | I80: 0 | J80: 0 | K80: 0 | L80: 0 | M80: 0 | N80: 0.2 | O80: 0 | Q80: 0 | R80: 0 | S80: 0 | T80: 0 | U80: 0 | V80: 0 | W80: 0 | X80: 0 | AG80: 0.14 | AH80: 0.21 | AI80: 0.204 | AJ80: 1
A81: 71 | B81: 0 | C81: 0 | D81: 0 | E81: 0 | F81: 0 | G81: 0 | H81: 0 | I81: 0 | J81: 0 | K81: 0 | L81: 0 | M81: 0 | N81: 0.2 | O81: 0 | Q81: 0 | R81: 0 | S81: 0 | T81: 0 | U81: 0 | V81: 0 | W81: 0 | X81: 0 | AG81: 0.15 | AH81: 0.21 | AI81: 0.205 | AJ81: 1
A82: 72 | B82: 0 | C82: 0 | D82: 0 | E82: 0 | F82: 0 | G82: 0 | H82: 0 | I82: 0 | J82: 0 | K82: 0 | L82: 0 | M82: 0 | N82: 0.2 | O82: 0 | Q82: 0 | R82: 0 | S82: 0 | T82: 0 | U82: 0 | V82: 0 | W82: 0 | X82: 0 | AG82: 0.16 | AH82: 0.21 | AI82: 0.206 | AJ82: 1
A83: 73 | B83: 0 | C83: 0 | D83: 0 | E83: 0 | F83: 0 | G83: 0 | H83: 0 | I83: 0 | J83: 0 | K83: 0 | L83: 0 | M83: 0 | N83: 0.2 | O83: 0 | Q83: 0 | R83: 0 | S83: 0 | T83: 0 | U83: 0 | V83: 0 | W83: 0 | X83: 0 | AG83: 0.17 | AH83: 0.21 | AI83: 0.207 | AJ83: 1
A84: 74 | B84: 0 | C84: 0 | D84: 0 | E84: 0 | F84: 0 | G84: 0 | H84: 0 | I84: 0 | J84: 0 | K84: 0 | L84: 0 | M84: 0 | N84: 0.2 | O84: 0 | Q84: 0 | R84: 0 | S84: 0 | T84: 0 | U84: 0 | V84: 0 | W84: 0 | X84: 0 | AG84: 0.18 | AH84: 0.21 | AI84: 0.208 | AJ84: 1
A85: 75 | B85: 0 | C85: 0 | D85: 0 | E85: 0 | F85: 0 | G85: 0 | H85: 0 | I85: 0 | J85: 0 | K85: 0 | L85: 0 | M85: 0 | N85: 0.2 | O85: 0 | Q85: 0 | R85: 0 | S85: 0 | T85: 0 | U85: 0 | V85: 0 | W85: 0 | X85: 0 | AG85: 0.19 | AH85: 0.21 | AI85: 0.209 | AJ85: 1
A86: 76 | B86: 0 | C86: 0 | D86: 0 | E86: 0 | F86: 0 | G86: 0 | H86: 0 | I86: 0 | J86: 0 | K86: 0 | L86: 0 | M86: 0 | N86: 0.2 | O86: 0 | Q86: 0 | R86: 0 | S86: 0 | T86: 0 | U86: 0 | V86: 0 | W86: 0 | X86: 0 | AG86: 0.2 | AH86: 0.2 | AI86: 0.21 | AJ86: 2
A87: 77 | B87: 0 | C87: 0 | D87: 0 | E87: 0 | F87: 0 | G87: 0 | H87: 0 | I87: 0 | J87: 0 | K87: 0 | L87: 0 | M87: 0 | N87: 0.2 | O87: 0 | Q87: 0 | R87: 0 | S87: 0 | T87: 0 | U87: 0 | V87: 0 | W87: 0 | X87: 0 | AG87: 0.21 | AH87: 0.2 | AI87: 0.211 | AJ87: 2
A88: 78 | B88: 0 | C88: 0 | D88: 0 | E88: 0 | F88: 0 | G88: 0 | H88: 0 | I88: 0 | J88: 0 | K88: 0 | L88: 0 | M88: 0 | N88: 0.2 | O88: 0 | Q88: 0 | R88: 0 | S88: 0 | T88: 0 | U88: 0 | V88: 0 | W88: 0 | X88: 0 | AG88: 0.22 | AH88: 0.2 | AI88: 0.212 | AJ88: 2
A89: 79 | B89: 0 | C89: 0 | D89: 0 | E89: 0 | F89: 0 | G89: 0 | H89: 0 | I89: 0 | J89: 0 | K89: 0 | L89: 0 | M89: 0 | N89: 0.2 | O89: 0 | Q89: 0 | R89: 0 | S89: 0 | T89: 0 | U89: 0 | V89: 0 | W89: 0 | X89: 0 | AG89: 0.23 | AH89: 0.2 | AI89: 0.213 | AJ89: 2
A90: 80 | B90: 0 | C90: 0 | D90: 0 | E90: 0 | F90: 0 | G90: 0 | H90: 0 | I90: 0 | J90: 0 | K90: 0 | L90: 0 | M90: 0 | N90: 0.2 | O90: 0 | Q90: 0 | R90: 0 | S90: 0 | T90: 0 | U90: 0 | V90: 0 | W90: 0 | X90: 0 | AG90: 0.24 | AH90: 0.2 | AI90: 0.214 | AJ90: 2
A91: 81 | B91: 0 | C91: 0 | D91: 0 | E91: 0 | F91: 0 | G91: 0 | H91: 0 | I91: 0 | J91: 0 | K91: 0 | L91: 0 | M91: 0 | N91: 0.2 | O91: 0 | Q91: 0 | R91: 0 | S91: 0 | T91: 0 | U91: 0 | V91: 0 | W91: 0 | X91: 0 | AG91: 0.25 | AH91: 0.2 | AI91: 0.215 | AJ91: 2
A92: 82 | B92: 0 | C92: 0 | D92: 0 | E92: 0 | F92: 0 | G92: 0 | H92: 0 | I92: 0 | J92: 0 | K92: 0 | L92: 0 | M92: 0 | N92: 0.2 | O92: 0 | Q92: 0 | R92: 0 | S92: 0 | T92: 0 | U92: 0 | V92: 0 | W92: 0 | X92: 0 | AG92: 0.26 | AH92: 0.2 | AI92: 0.216 | AJ92: 2
A93: 83 | B93: 0 | C93: 0 | D93: 0 | E93: 0 | F93: 0 | G93: 0 | H93: 0 | I93: 0 | J93: 0 | K93: 0 | L93: 0 | M93: 0 | N93: 0.2 | O93: 0 | Q93: 0 | R93: 0 | S93: 0 | T93: 0 | U93: 0 | V93: 0 | W93: 0 | X93: 0 | AG93: 0.27 | AH93: 0.2 | AI93: 0.217 | AJ93: 2
A94: 84 | B94: 0 | C94: 0 | D94: 0 | E94: 0 | F94: 0 | G94: 0 | H94: 0 | I94: 0 | J94: 0 | K94: 0 | L94: 0 | M94: 0 | N94: 0.2 | O94: 0 | Q94: 0 | R94: 0 | S94: 0 | T94: 0 | U94: 0 | V94: 0 | W94: 0 | X94: 0 | AG94: 0.28 | AH94: 0.2 | AI94: 0.218 | AJ94: 2
A95: 85 | B95: 0 | C95: 0 | D95: 0 | E95: 0 | F95: 0 | G95: 0 | H95: 0 | I95: 0 | J95: 0 | K95: 0 | L95: 0 | M95: 0 | N95: 0.2 | O95: 0 | Q95: 0 | R95: 0 | S95: 0 | T95: 0 | U95: 0 | V95: 0 | W95: 0 | X95: 0 | AG95: 0.29 | AH95: 0.2 | AI95: 0.219 | AJ95: 2
A96: 86 | B96: 0 | C96: 0 | D96: 0 | E96: 0 | F96: 0 | G96: 0 | H96: 0 | I96: 0 | J96: 0 | K96: 0 | L96: 0 | M96: 0 | N96: 0.2 | O96: 0 | Q96: 0 | R96: 0 | S96: 0 | T96: 0 | U96: 0 | V96: 0 | W96: 0 | X96: 0 | AG96: 0.3 | AH96: 0.2 | AI96: 0.22 | AJ96: 2
A97: 87 | B97: 0 | C97: 0 | D97: 0 | E97: 0 | F97: 0 | G97: 0 | H97: 0 | I97: 0 | J97: 0 | K97: 0 | L97: 0 | M97: 0 | N97: 0.2 | O97: 0 | Q97: 0 | R97: 0 | S97: 0 | T97: 0 | U97: 0 | V97: 0 | W97: 0 | X97: 0 | AG97: 0.31 | AH97: 0.23 | AI97: 0.221 | AJ97: 3
A98: 88 | B98: 0 | C98: 0 | D98: 0 | E98: 0 | F98: 0 | G98: 0 | H98: 0 | I98: 0 | J98: 0 | K98: 0 | L98: 0 | M98: 0 | N98: 0.2 | O98: 0 | Q98: 0 | R98: 0 | S98: 0 | T98: 0 | U98: 0 | V98: 0 | W98: 0 | X98: 0 | AG98: 0.32 | AH98: 0.23 | AI98: 0.222 | AJ98: 3
A99: 89 | B99: 0 | C99: 0 | D99: 0 | E99: 0 | F99: 0 | G99: 0 | H99: 0 | I99: 0 | J99: 0 | K99: 0 | L99: 0 | M99: 0 | N99: 0.2 | O99: 0 | Q99: 0 | R99: 0 | S99: 0 | T99: 0 | U99: 0 | V99: 0 | W99: 0 | X99: 0 | AG99: 0.33 | AH99: 0.23 | AI99: 0.223 | AJ99: 3
A100: 90 | B100: 0 | C100: 0 | D100: 0 | E100: 0 | F100: 0 | G100: 0 | H100: 0 | I100: 0 | J100: 0 | K100: 0 | L100: 0 | M100: 0 | N100: 0.2 | O100: 0 | Q100: 0 | R100: 0 | S100: 0 | T100: 0 | U100: 0 | V100: 0 | W100: 0 | X100: 0 | AG100: 0.34 | AH100: 0.23 | AI100: 0.224 | AJ100: 3
A101: 91 | B101: 0 | C101: 0 | D101: 0 | E101: 0 | F101: 0 | G101: 0 | H101: 0 | I101: 0 | J101: 0 | K101: 0 | L101: 0 | M101: 0 | N101: 0.2 | O101: 0 | Q101: 0 | R101: 0 | S101: 0 | T101: 0 | U101: 0 | V101: 0 | W101: 0 | X101: 0 | AG101: 0.35 | AH101: 0.23 | AI101: 0.225 | AJ101: 3
A102: 92 | B102: 0 | C102: 0 | D102: 0 | E102: 0 | F102: 0 | G102: 0 | H102: 0 | I102: 0 | J102: 0 | K102: 0 | L102: 0 | M102: 0 | N102: 0.2 | O102: 0 | Q102: 0 | R102: 0 | S102: 0 | T102: 0 | U102: 0 | V102: 0 | W102: 0 | X102: 0 | AG102: 0.36 | AH102: 0.23 | AI102: 0.226 | AJ102: 3
A103: 93 | B103: 0 | C103: 0 | D103: 0 | E103: 0 | F103: 0 | G103: 0 | H103: 0 | I103: 0 | J103: 0 | K103: 0 | L103: 0 | M103: 0 | N103: 0.2 | O103: 0 | Q103: 0 | R103: 0 | S103: 0 | T103: 0 | U103: 0 | V103: 0 | W103: 0 | X103: 0 | AG103: 0.37 | AH103: 0.23 | AI103: 0.227 | AJ103: 3
A104: 94 | B104: 0 | C104: 0 | D104: 0 | E104: 0 | F104: 0 | G104: 0 | H104: 0 | I104: 0 | J104: 0 | K104: 0 | L104: 0 | M104: 0 | N104: 0.2 | O104: 0 | Q104: 0 | R104: 0 | S104: 0 | T104: 0 | U104: 0 | V104: 0 | W104: 0 | X104: 0 | AG104: 0.38 | AH104: 0.23 | AI104: 0.228 | AJ104: 3
A105: 95 | B105: 0 | C105: 0 | D105: 0 | E105: 0 | F105: 0 | G105: 0 | H105: 0 | I105: 0 | J105: 0 | K105: 0 | L105: 0 | M105: 0 | N105: 0.2 | O105: 0 | Q105: 0 | R105: 0 | S105: 0 | T105: 0 | U105: 0 | V105: 0 | W105: 0 | X105: 0 | AG105: 0.39 | AH105: 0.23 | AI105: 0.229 | AJ105: 3
A106: 96 | B106: 0 | C106: 0 | D106: 0 | E106: 0 | F106: 0 | G106: 0 | H106: 0 | I106: 0 | J106: 0 | K106: 0 | L106: 0 | M106: 0 | N106: 0.2 | O106: 0 | Q106: 0 | R106: 0 | S106: 0 | T106: 0 | U106: 0 | V106: 0 | W106: 0 | X106: 0 | AG106: 0.4 | AH106: 0.2 | AI106: 0.23 | AJ106: 4
A107: 97 | B107: 0 | C107: 0 | D107: 0 | E107: 0 | F107: 0 | G107: 0 | H107: 0 | I107: 0 | J107: 0 | K107: 0 | L107: 0 | M107: 0 | N107: 0.2 | O107: 0 | Q107: 0 | R107: 0 | S107: 0 | T107: 0 | U107: 0 | V107: 0 | W107: 0 | X107: 0 | AG107: 0.41 | AH107: 0.2 | AI107: 0.231 | AJ107: 4
A108: 98 | B108: 0 | C108: 0 | D108: 0 | E108: 0 | F108: 0 | G108: 0 | H108: 0 | I108: 0 | J108: 0 | K108: 0 | L108: 0 | M108: 0 | N108: 0.2 | O108: 0 | Q108: 0 | R108: 0 | S108: 0 | T108: 0 | U108: 0 | V108: 0 | W108: 0 | X108: 0 | AG108: 0.42 | AH108: 0.2 | AI108: 0.232 | AJ108: 4
A109: 99 | B109: 0 | C109: 0 | D109: 0 | E109: 0 | F109: 0 | G109: 0 | H109: 0 | I109: 0 | J109: 0 | K109: 0 | L109: 0 | M109: 0 | N109: 0.2 | O109: 0 | Q109: 0 | R109: 0 | S109: 0 | T109: 0 | U109: 0 | V109: 0 | W109: 0 | X109: 0 | AG109: 0.43 | AH109: 0.2 | AI109: 0.233 | AJ109: 4
A110: 100 | B110: 0 | C110: 0 | D110: 0 | E110: 0 | F110: 0 | G110: 0 | H110: 0 | I110: 0 | J110: 0 | K110: 0 | L110: 0 | M110: 0 | N110: 0.2 | O110: 0 | Q110: 0 | R110: 0 | S110: 0 | T110: 0 | U110: 0 | V110: 0 | W110: 0 | X110: 0 | AG110: 0.44 | AH110: 0.2 | AI110: 0.234 | AJ110: 4
A111: k* | B111: 0 | C111: 0 | D111: 0 | E111: 0 | F111: 0 | G111: 0 | H111: 0 | I111: 0 | J111: 0 | K111: 0 | L111: 0 | M111: 0 | N111: 0 | O111: 0 | Q111: 0 | R111: 0 | S111: 0 | T111: 0 | U111: 0 | V111: 0 | W111: 0 | X111: 0 | AG111: 0.45 | AH111: 0.2 | AI111: 0.235 | AJ111: 4
A112: tR,h | B112: 0 | C112: 0 | D112: 0 | E112: 0 | F112: 0 | G112: 0 | H112: 0 | I112: 0.2 | J112: 0 | K112: 0 | L112: 0 | M112: 0 | N112: 0 | O112: 0 | Q112: 0 | R112: 0 | S112: 0 | T112: 0 | U112: 0 | V112: 0 | W112: 0 | X112: 0 | AG112: 0.46 | AH112: 0.2 | AI112: 0.236 | AJ112: 4
W113: 0 | X113: 0 | AG113: 0.47 | AH113: 0.2 | AI113: 0.237 | AJ113: 4
W114: 0 | X114: 0 | AG114: 0.48 | AH114: 0.2 | AI114: 0.238 | AJ114: 4
W115: 0 | X115: 0 | AG115: 0.49 | AH115: 0.2 | AI115: 0.239 | AJ115: 4
W116: 0 | X116: 0 | AG116: 0.5 | AH116: 0.25 | AI116: 0.24 | AJ116: 5
W117: 0 | X117: 0 | AG117: 0.51 | AH117: 0.25 | AI117: 0.241 | AJ117: 5
W118: 0 | X118: 0 | AG118: 0.52 | AH118: 0.25 | AI118: 0.242 | AJ118: 5
W119: 0 | X119: 0 | AG119: 0.53 | AH119: 0.25 | AI119: 0.243 | AJ119: 5
W120: 0 | X120: 0 | AG120: 0.54 | AH120: 0.25 | AI120: 0.244 | AJ120: 5
W121: 0 | X121: 0 | AG121: 0.55 | AH121: 0.25 | AI121: 0.245 | AJ121: 5
W122: 0 | X122: 0 | AG122: 0.56 | AH122: 0.25 | AI122: 0.246 | AJ122: 5
W123: 0 | X123: 0 | AG123: 0.57 | AH123: 0.25 | AI123: 0.247 | AJ123: 5
W124: 0 | X124: 0 | AG124: 0.58 | AH124: 0.25 | AI124: 0.248 | AJ124: 5
W125: 0 | X125: 0 | AG125: 0.59 | AH125: 0.25 | AI125: 0.249 | AJ125: 5
W126: 0 | X126: 0 | AG126: 0.6 | AH126: 0.25 | AI126: 0.25 | AJ126: 5
W127: 0 | X127: 0 | AG127: 0.61 | AH127: 0.2 | AI127: 0.251 | AJ127: 6
W128: 0 | X128: 0 | AG128: 0.62 | AH128: 0.2 | AI128: 0.252 | AJ128: 6
W129: 0 | X129: 0 | AG129: 0.63 | AH129: 0.2 | AI129: 0.253 | AJ129: 6
W130: 0 | X130: 0 | AG130: 0.64 | AH130: 0.2 | AI130: 0.254 | AJ130: 6
W131: 0 | X131: 0 | AG131: 0.65 | AH131: =IF(AG131<$K$7,IF(MOD(AJ131,2)=0,$K$5,$K$5+AJ131*AH$61),$K$6) -> 0.2 | AI131: 0.255 | AJ131: =QUOTIENT(AG131,AH$62) -> 6
W132: 0 | X132: 0 | AG132: 0.66 | AH132: 0.2 | AI132: =IF(AG132<=$K$8,AI131,IF(AG132<=($K$7+$K$8),AI131+$AI$61,$K$6)) -> 0.256 | AJ132: 6
W133: 0 | X133: 0 | AG133: 0.67 | AH133: 0.2 | AI133: 0.257 | AJ133: 6
W134: 0 | X134: 0 | AG134: 0.68 | AH134: 0.2 | AI134: 0.258 | AJ134: 6
W135: 0 | X135: 0 | AG135: 0.69 | AH135: 0.2 | AI135: 0.259 | AJ135: 6
W136: 0 | X136: 0 | AG136: 0.7 | AH136: 0.2 | AI136: 0.26 | AJ136: 6
W137: 0 | X137: 0 | AG137: 0.71 | AH137: 0.27 | AI137: 0.261 | AJ137: 7
W138: 0 | X138: 0 | AG138: 0.72 | AH138: 0.27 | AI138: 0.262 | AJ138: 7
W139: 0 | X139: 0 | AG139: 0.73 | AH139: 0.27 | AI139: 0.263 | AJ139: 7
W140: 0 | X140: 0 | AG140: 0.74 | AH140: 0.27 | AI140: 0.264 | AJ140: 7
W141: 0 | X141: 0 | AG141: 0.75 | AH141: 0.27 | AI141: 0.265 | AJ141: 7
W142: 0 | X142: 0 | AG142: 0.76 | AH142: 0.27 | AI142: 0.266 | AJ142: 7
W143: 0 | X143: 0 | AG143: 0.77 | AH143: 0.27 | AI143: 0.267 | AJ143: 7
W144: 0 | X144: 0 | AG144: 0.78 | AH144: 0.27 | AI144: 0.268 | AJ144: 7
W145: 0 | X145: 0 | AG145: 0.79 | AH145: 0.27 | AI145: 0.269 | AJ145: 7
W146: 0 | X146: 0 | AG146: 0.8 | AH146: 0.2 | AI146: 0.27 | AJ146: 8
W147: 0 | X147: 0 | AG147: 0.81 | AH147: 0.2 | AI147: 0.271 | AJ147: 8
W148: 0 | X148: 0 | AG148: 0.82 | AH148: 0.2 | AI148: 0.272 | AJ148: 8
W149: 0 | X149: 0 | AG149: 0.83 | AH149: 0.2 | AI149: 0.273 | AJ149: 8
W150: 0 | X150: 0 | AG150: 0.84 | AH150: 0.2 | AI150: 0.274 | AJ150: 8
W151: 0 | X151: 0 | AG151: 0.85 | AH151: 0.2 | AI151: 0.275 | AJ151: 8
W152: 0 | X152: 0 | AG152: 0.86 | AH152: 0.2 | AI152: 0.276 | AJ152: 8
W153: 0 | X153: 0 | AG153: 0.87 | AH153: 0.2 | AI153: 0.277 | AJ153: 8
W154: 0 | X154: 0 | AG154: 0.88 | AH154: 0.2 | AI154: 0.278 | AJ154: 8
W155: 0 | X155: 0 | AG155: 0.89 | AH155: 0.2 | AI155: 0.279 | AJ155: 8
W156: 0 | X156: 0 | AG156: 0.9 | AH156: 0.29 | AI156: 0.28 | AJ156: 9
W157: 0 | X157: 0 | AG157: 0.91 | AH157: 0.29 | AI157: 0.281 | AJ157: 9
W158: 0 | X158: 0 | AG158: 0.92 | AH158: 0.29 | AI158: 0.282 | AJ158: 9
W159: 0 | X159: 0 | AG159: 0.93 | AH159: 0.29 | AI159: 0.283 | AJ159: 9
W160: 0 | X160: 0 | AG160: 0.94 | AH160: 0.29 | AI160: 0.284 | AJ160: 9
W161: 0 | X161: 0 | AG161: 0.95 | AH161: 0.29 | AI161: 0.285 | AJ161: 9
W162: 0 | X162: 0 | AG162: 0.96 | AH162: 0.29 | AI162: 0.286 | AJ162: 9
W163: 0 | X163: 0 | AG163: 0.97 | AH163: 0.29 | AI163: 0.287 | AJ163: 9
W164: 0 | X164: 0 | AG164: 0.98 | AH164: 0.29 | AI164: 0.288 | AJ164: 9
W165: 0 | X165: 0 | AG165: 0.99 | AH165: 0.29 | AI165: 0.289 | AJ165: 9
W166: 0 | X166: 0 | AG166: 1 | AH166: 0.2 | AI166: 0.29 | AJ166: 10
W167: 0 | X167: 0 | AG167: 1.01 | AH167: 0.2 | AI167: 0.291 | AJ167: 10
W168: 0 | X168: 0 | AG168: 1.02 | AH168: 0.2 | AI168: 0.292 | AJ168: 10
W169: 0 | X169: 0 | AG169: 1.03 | AH169: 0.2 | AI169: 0.293 | AJ169: 10
W170: 0 | X170: 0 | AG170: 1.04 | AH170: 0.2 | AI170: 0.294 | AJ170: 10
W171: 0 | X171: 0 | AG171: 1.05 | AH171: 0.2 | AI171: 0.295 | AJ171: 10
W172: 0 | X172: 0 | AG172: 1.06 | AH172: 0.2 | AI172: 0.296 | AJ172: 10
W173: 0 | X173: 0 | AG173: 1.07 | AH173: 0.2 | AI173: 0.297 | AJ173: 10
W174: 0 | X174: 0 | AG174: 1.08 | AH174: 0.2 | AI174: 0.298 | AJ174: 10
W175: 0 | X175: 0 | AG175: 1.09 | AH175: 0.2 | AI175: 0.299 | AJ175: 10
W176: 0 | X176: 0 | AG176: 1.1 | AH176: 0.31 | AI176: 0.3 | AJ176: 11
W177: 0 | X177: 0 | AG177: 1.11 | AH177: 0.31 | AI177: 0.301 | AJ177: 11
W178: 0 | X178: 0 | AG178: 1.12 | AH178: 0.31 | AI178: 0.302 | AJ178: 11
W179: 0 | X179: 0 | AG179: 1.13 | AH179: 0.31 | AI179: 0.303 | AJ179: 11
W180: 0 | X180: 0 | AG180: 1.14 | AH180: 0.31 | AI180: 0.304 | AJ180: 11
W181: 0 | X181: 0 | AG181: 1.15 | AH181: 0.31 | AI181: 0.305 | AJ181: 11
W182: 0 | X182: 0 | AG182: 1.16 | AH182: 0.31 | AI182: 0.306 | AJ182: 11
W183: 0 | X183: 0 | AG183: 1.17 | AH183: 0.31 | AI183: 0.307 | AJ183: 11
W184: 0 | X184: 0 | AG184: 1.18 | AH184: 0.31 | AI184: 0.308 | AJ184: 11
W185: 0 | X185: 0 | AG185: 1.19 | AH185: 0.31 | AI185: 0.309 | AJ185: 11
W186: 0 | X186: 0 | AG186: 1.2 | AH186: 0.31 | AI186: 0.31 | AJ186: 11
W187: 0 | X187: 0 | AG187: 1.21 | AH187: 0.2 | AI187: 0.311 | AJ187: 12
W188: 0 | X188: 0 | AG188: 1.22 | AH188: 0.2 | AI188: 0.312 | AJ188: 12
W189: 0 | X189: 0 | AG189: 1.23 | AH189: 0.2 | AI189: 0.313 | AJ189: 12
W190: 0 | X190: 0 | AG190: 1.24 | AH190: 0.2 | AI190: 0.314 | AJ190: 12
W191: 0 | X191: 0 | AG191: 1.25 | AH191: 0.2 | AI191: 0.315 | AJ191: 12
W192: 0 | X192: 0 | AG192: 1.26 | AH192: 0.2 | AI192: 0.316 | AJ192: 12
W193: 0 | X193: 0 | AG193: 1.27 | AH193: 0.2 | AI193: 0.317 | AJ193: 12
W194: 0 | X194: 0 | AG194: 1.28 | AH194: 0.2 | AI194: 0.318 | AJ194: 12
W195: 0 | X195: 0 | AG195: 1.29 | AH195: =IF(AG195<$K$7,IF(MOD(AJ195,2)=0,$K$5,$K$5+AJ195*AH$61),$K$6) -> 0.2 | AI195: 0.319 | AJ195: =QUOTIENT(AG195,AH$62) -> 12
W196: 0 | X196: 0 | AG196: 1.3 | AH196: 0.33 | AI196: =IF(AG196<=$K$8,AI195,IF(AG196<=($K$7+$K$8),AI195+$AI$61,$K$6)) -> 0.32 | AJ196: 13
W197: 0 | X197: 0 | AG197: 1.31 | AH197: 0.33 | AI197: 0.321 | AJ197: 13
W198: 0 | X198: 0 | AG198: 1.32 | AH198: 0.33 | AI198: 0.322 | AJ198: 13
W199: 0 | X199: 0 | AG199: 1.33 | AH199: 0.33 | AI199: 0.323 | AJ199: 13
W200: 0 | X200: 0 | AG200: 1.34 | AH200: 0.33 | AI200: 0.324 | AJ200: 13
... 866 more rows

Sheet ChromSim (101)
A1: ='Plate Theory'!A1 -> ChromSimLSS_2.2 | D1: Simulation of chromatography and plate theory | K1: ='Plate Theory'!K1 -> Author: Bo Svensmark, svensmark@plen.ku.dk, Analytcal Chemistry, PLEN, University of Copenhagen, 2020 - 2025 | AF1: Manual: | AO1: *
AG2: Works essentially as the simulation in Sheet "Plate Theory"
B3: Analyte LSS parameters | G3: Results | J3: Gradient | L3: Runtime | T3: Click on the graph | AH3: Try the simulation in "Plate Theosy" first - and see the manual in cell X1+
J4: b(1) | K4: =M7*(K6-K5)*C6/K7 -> 0.4 | T4: Then click Zoom
A5: Analyte | B5: Logkw | C5: S | D5: Conc | E5: ko | F5: =IF(K4=0,"k","k*") -> k* | G5: =IF(K4=0,"k(obs)","k*(obs)") -> k*(obs) | H5: tR | I5: h | J5: φstart | K5: 0.2 | L5: Time, min | M5: =I111 -> 0 | P5: N runs | Q5: Delay, ms | AG5: Analyte LSS parameters:
A6: #1 | B6: 2.3 | C6: 4 | D6: 100 | E6: =10^(B6-C6*$K$5) -> 31.6227766 | F6: =IF(K$4=0,E6,1/(1.15*K$4)) -> 2.173913043 | G6: =C111 -> 0 | H6: =C112 -> 0 | I6: =D112 -> 0 | J6: φend | K6: 1 | L6: φ(t) | M6: =I112 -> 0.2 | P6: 1 | Q6: 1000 | R6: Max | S6: 10 | AH6: Linear Solvent Strengths parameters for 3 analytes
A7: #2 | B7: 2.8 | C7: 4 | D7: 100 | E7: =10^(B7-C7*$K$5) -> 100 | F7: =IF(K$4=0,E7,1/(1.15*K$4)) -> 2.173913043 | G7: =E111 -> 0 | H7: =E112 -> 0 | I7: =F112 -> 0 | J7: t(G), min | K7: 8 | L7: tM, min | M7: 1 | P7: N runs | Q7: Delay, ms | R7: Loops
A8: #3 | B8: 3.2 | C8: 4 | D8: 100 | E8: =10^(B8-C8*$K$5) -> 251.1886432 | F8: =IF(K$4=0,E8,1/(1.15*K$4)) -> 2.173913043 | G8: =G111 -> 0 | H8: =G112 -> 0 | I8: =H112 -> 0 | J8: t(D), min | K8: 0.1 | L8: Nth | M8: 100 | P8: 200 | Q8: 10 | R8: 10 | AG8: Gradient: Parameters for the eluent strength
AH9: φstart | AI9: Eluent strenght at injection (0-1)
A10: i | B10: Cm | C10: Cs | D10: Cm2 | E10: Cs2 | F10: Cm3 | G10: Cs3 | H10: Trace1m | I10: Trace1s | J10: Trace2m | K10: Trace2s | L10: Trace 3m | M10: Trace3s | N10: φ(x) | O10: SUM | Q10: k* 1m | R10: k* 1s | S10: k* 2m | T10: k* 2s | U10: k* 3m | V10: k* 3s | W10: Chrom1 | X10: Chrom2 | AH10: φend | AI10: Eleuent strength at end of gradient
A11: 1 | B11: 0 | C11: 0 | D11: 0 | E11: 0 | F11: 0 | G11: 0 | H11: 0 | I11: 0 | J11: 0 | K11: 0 | L11: 0 | M11: 0 | N11: 0.2 | O11: =B11+D11+F11 -> 0 | Q11: 0 | R11: 0 | S11: 0 | T11: 0 | U11: 0 | V11: 0 | W11: 0 | X11: 0 | AH11: t(G), min | AI11: Gradient time
A12: 2 | B12: 0 | C12: 0 | D12: 0 | E12: 0 | F12: 0 | G12: 0 | H12: 0 | I12: 0 | J12: 0 | K12: 0 | L12: 0 | M12: 0 | N12: 0.2 | O12: =B12+D12+F12 -> 0 | Q12: 0 | R12: 0 | S12: 0 | T12: 0 | U12: 0 | V12: 0 | W12: 0 | X12: 0 | AH12: t(D), min | AI12: Dwel time or time for an initial isochratic part of a gradient
A13: 3 | B13: 0 | C13: 0 | D13: 0 | E13: 0 | F13: 0 | G13: 0 | H13: 0 | I13: 0 | J13: 0 | K13: 0 | L13: 0 | M13: 0 | N13: 0.2 | O13: 0 | Q13: 0 | R13: 0 | S13: 0 | T13: 0 | U13: 0 | V13: 0 | W13: 0 | X13: 0
A14: 4 | B14: 0 | C14: 0 | D14: 0 | E14: 0 | F14: 0 | G14: 0 | H14: 0 | I14: 0 | J14: 0 | K14: 0 | L14: 0 | M14: 0 | N14: 0.2 | O14: 0 | Q14: 0 | R14: 0 | S14: 0 | T14: 0 | U14: 0 | V14: 0 | W14: 0 | X14: 0 | AH14: If φstart = φend isocratic elution will be simulated
A15: 5 | B15: 0 | C15: 0 | D15: 0 | E15: 0 | F15: 0 | G15: 0 | H15: 0 | I15: 0 | J15: 0 | K15: 0 | L15: 0 | M15: 0 | N15: 0.2 | O15: 0 | Q15: 0 | R15: 0 | S15: 0 | T15: 0 | U15: 0 | V15: 0 | W15: 0 | X15: 0
A16: 6 | B16: 0 | C16: 0 | D16: 0 | E16: 0 | F16: 0 | G16: 0 | H16: 0 | I16: 0 | J16: 0 | K16: 0 | L16: 0 | M16: 0 | N16: 0.2 | O16: 0 | Q16: 0 | R16: 0 | S16: 0 | T16: 0 | U16: 0 | V16: 0 | W16: 0 | X16: 0 | AG16: Zoom Y:
A17: 7 | B17: 0 | C17: 0 | D17: 0 | E17: 0 | F17: 0 | G17: 0 | H17: 0 | I17: 0 | J17: 0 | K17: 0 | L17: 0 | M17: 0 | N17: 0.2 | O17: 0 | Q17: 0 | R17: 0 | S17: 0 | T17: 0 | U17: 0 | V17: 0 | W17: 0 | X17: 0 | AH17: All 4 graphs can be scaled individually
A18: 8 | B18: 0 | C18: 0 | D18: 0 | E18: 0 | F18: 0 | G18: 0 | H18: 0 | I18: 0 | J18: 0 | K18: 0 | L18: 0 | M18: 0 | N18: 0.2 | O18: 0 | Q18: 0 | R18: 0 | S18: 0 | T18: 0 | U18: 0 | V18: 0 | W18: 0 | X18: 0 | AH18: REMEMBER to select the graph before clicking the button
A19: 9 | B19: 0 | C19: 0 | D19: 0 | E19: 0 | F19: 0 | G19: 0 | H19: 0 | I19: 0 | J19: 0 | K19: 0 | L19: 0 | M19: 0 | N19: 0.2 | O19: 0 | Q19: 0 | R19: 0 | S19: 0 | T19: 0 | U19: 0 | V19: 0 | W19: 0 | X19: 0
A20: 10 | B20: 0 | C20: 0 | D20: 0 | E20: 0 | F20: 0 | G20: 0 | H20: 0 | I20: 0 | J20: 0 | K20: 0 | L20: 0 | M20: 0 | N20: 0.2 | O20: 0 | Q20: 0 | R20: 0 | S20: 0 | T20: 0 | U20: 0 | V20: 0 | W20: 0 | X20: 0 | AG20: Sorption isotherms:
A21: 11 | B21: 0 | C21: 0 | D21: 0 | E21: 0 | F21: 0 | G21: 0 | H21: 0 | I21: 0 | J21: 0 | K21: 0 | L21: 0 | M21: 0 | N21: 0.2 | O21: 0 | Q21: 0 | R21: 0 | S21: 0 | T21: 0 | U21: 0 | V21: 0 | W21: 0 | X21: 0 | AH21: Uses the isotherm in the table in cells AG42:AJ58
A22: 12 | B22: 0 | C22: 0 | D22: 0 | E22: 0 | F22: 0 | G22: 0 | H22: 0 | I22: 0 | J22: 0 | K22: 0 | L22: 0 | M22: 0 | N22: 0.2 | O22: 0 | Q22: 0 | R22: 0 | S22: 0 | T22: 0 | U22: 0 | V22: 0 | W22: 0 | X22: 0 | AH22: C0-C1 and C2: polynomial coefficients
A23: 13 | B23: 0 | C23: 0 | D23: 0 | E23: 0 | F23: 0 | G23: 0 | H23: 0 | I23: 0 | J23: 0 | K23: 0 | L23: 0 | M23: 0 | N23: 0.2 | O23: 0 | Q23: 0 | R23: 0 | S23: 0 | T23: 0 | U23: 0 | V23: 0 | W23: 0 | X23: 0
A24: 14 | B24: 0 | C24: 0 | D24: 0 | E24: 0 | F24: 0 | G24: 0 | H24: 0 | I24: 0 | J24: 0 | K24: 0 | L24: 0 | M24: 0 | N24: 0.2 | O24: 0 | Q24: 0 | R24: 0 | S24: 0 | T24: 0 | U24: 0 | V24: 0 | W24: 0 | X24: 0 | AG24: Complex gradient:
A25: 15 | B25: 0 | C25: 0 | D25: 0 | E25: 0 | F25: 0 | G25: 0 | H25: 0 | I25: 0 | J25: 0 | K25: 0 | L25: 0 | M25: 0 | N25: 0.2 | O25: 0 | Q25: 0 | R25: 0 | S25: 0 | T25: 0 | U25: 0 | V25: 0 | W25: 0 | X25: 0 | AH25: Uses the gradient in the table in cells AG61:AJ566
A26: 16 | B26: 0 | C26: 0 | D26: 0 | E26: 0 | F26: 0 | G26: 0 | H26: 0 | I26: 0 | J26: 0 | K26: 0 | L26: 0 | M26: 0 | N26: 0.2 | O26: 0 | Q26: 0 | R26: 0 | S26: 0 | T26: 0 | U26: 0 | V26: 0 | W26: 0 | X26: 0 | AH26: The pulsed gradient in the table uses tD (cell K8) for pulse length
A27: 17 | B27: 0 | C27: 0 | D27: 0 | E27: 0 | F27: 0 | G27: 0 | H27: 0 | I27: 0 | J27: 0 | K27: 0 | L27: 0 | M27: 0 | N27: 0.2 | O27: 0 | Q27: 0 | R27: 0 | S27: 0 | T27: 0 | U27: 0 | V27: 0 | W27: 0 | X27: 0 | AH27: Use the buttons Reset complex and Continue Complex for use of the complex gradient
A28: 18 | B28: 0 | C28: 0 | D28: 0 | E28: 0 | F28: 0 | G28: 0 | H28: 0 | I28: 0 | J28: 0 | K28: 0 | L28: 0 | M28: 0 | N28: 0.2 | O28: 0 | Q28: 0 | R28: 0 | S28: 0 | T28: 0 | U28: 0 | V28: 0 | W28: 0 | X28: 0
A29: 19 | B29: 0 | C29: 0 | D29: 0 | E29: 0 | F29: 0 | G29: 0 | H29: 0 | I29: 0 | J29: 0 | K29: 0 | L29: 0 | M29: 0 | N29: 0.2 | O29: 0 | Q29: 0 | R29: 0 | S29: 0 | T29: 0 | U29: 0 | V29: 0 | W29: 0 | X29: 0 | AG29: Fixed parameters:
A30: 20 | B30: 0 | C30: 0 | D30: 0 | E30: 0 | F30: 0 | G30: 0 | H30: 0 | I30: 0 | J30: 0 | K30: 0 | L30: 0 | M30: 0 | N30: 0.2 | O30: 0 | Q30: 0 | R30: 0 | S30: 0 | T30: 0 | U30: 0 | V30: 0 | W30: 0 | X30: 0 | AH30: Number of theoretic plates Nth = 100
A31: 21 | B31: 0 | C31: 0 | D31: 0 | E31: 0 | F31: 0 | G31: 0 | H31: 0 | I31: 0 | J31: 0 | K31: 0 | L31: 0 | M31: 0 | N31: 0.2 | O31: 0 | Q31: 0 | R31: 0 | S31: 0 | T31: 0 | U31: 0 | V31: 0 | W31: 0 | X31: 0 | AH31: Dead time tM = 1.00 min
A32: 22 | B32: 0 | C32: 0 | D32: 0 | E32: 0 | F32: 0 | G32: 0 | H32: 0 | I32: 0 | J32: 0 | K32: 0 | L32: 0 | M32: 0 | N32: 0.2 | O32: 0 | Q32: 0 | R32: 0 | S32: 0 | T32: 0 | U32: 0 | V32: 0 | W32: 0 | X32: 0 | AH32: Chromatogram length = 5.00 min
A33: 23 | B33: 0 | C33: 0 | D33: 0 | E33: 0 | F33: 0 | G33: 0 | H33: 0 | I33: 0 | J33: 0 | K33: 0 | L33: 0 | M33: 0 | N33: 0.2 | O33: 0 | Q33: 0 | R33: 0 | S33: 0 | T33: 0 | U33: 0 | V33: 0 | W33: 0 | X33: 0
A34: 24 | B34: 0 | C34: 0 | D34: 0 | E34: 0 | F34: 0 | G34: 0 | H34: 0 | I34: 0 | J34: 0 | K34: 0 | L34: 0 | M34: 0 | N34: 0.2 | O34: 0 | Q34: 0 | R34: 0 | S34: 0 | T34: 0 | U34: 0 | V34: 0 | W34: 0 | X34: 0 | AG34: Run time Errors:
A35: 25 | B35: 0 | C35: 0 | D35: 0 | E35: 0 | F35: 0 | G35: 0 | H35: 0 | I35: 0 | J35: 0 | K35: 0 | L35: 0 | M35: 0 | N35: 0.2 | O35: 0 | Q35: 0 | R35: 0 | S35: 0 | T35: 0 | U35: 0 | V35: 0 | W35: 0 | X35: 0 | AH35: You'll get a run time error if you use the macros in the wrong order
A36: 26 | B36: 0 | C36: 0 | D36: 0 | E36: 0 | F36: 0 | G36: 0 | H36: 0 | I36: 0 | J36: 0 | K36: 0 | L36: 0 | M36: 0 | N36: 0.2 | O36: 0 | Q36: 0 | R36: 0 | S36: 0 | T36: 0 | U36: 0 | V36: 0 | W36: 0 | X36: 0 | AH36: To fix it:
A37: 27 | B37: 0 | C37: 0 | D37: 0 | E37: 0 | F37: 0 | G37: 0 | H37: 0 | I37: 0 | J37: 0 | K37: 0 | L37: 0 | M37: 0 | N37: 0.2 | O37: 0 | Q37: 0 | R37: 0 | S37: 0 | T37: 0 | U37: 0 | V37: 0 | W37: 0 | X37: 0 | AI37: Click on "Debug" in the message window
A38: 28 | B38: 0 | C38: 0 | D38: 0 | E38: 0 | F38: 0 | G38: 0 | H38: 0 | I38: 0 | J38: 0 | K38: 0 | L38: 0 | M38: 0 | N38: 0.2 | O38: 0 | Q38: 0 | R38: 0 | S38: 0 | T38: 0 | U38: 0 | V38: 0 | W38: 0 | X38: 0 | AI38: In the window showing the macros click on the "Reset" icon (a blue square)
A39: 29 | B39: 0 | C39: 0 | D39: 0 | E39: 0 | F39: 0 | G39: 0 | H39: 0 | I39: 0 | J39: 0 | K39: 0 | L39: 0 | M39: 0 | N39: 0.2 | O39: 0 | Q39: 0 | R39: 0 | S39: 0 | T39: 0 | U39: 0 | V39: 0 | W39: 0 | X39: 0 | AI39: (or click on "Run" and then "Reset")
A40: 30 | B40: 0 | C40: 0 | D40: 0 | E40: 0 | F40: 0 | G40: 0 | H40: 0 | I40: 0 | J40: 0 | K40: 0 | L40: 0 | M40: 0 | N40: 0.2 | O40: 0 | Q40: 0 | R40: 0 | S40: 0 | T40: 0 | U40: 0 | V40: 0 | W40: 0 | X40: 0 | AI40: Go back to the sheet and use the macros correctly
A41: 31 | B41: 0 | C41: 0 | D41: 0 | E41: 0 | F41: 0 | G41: 0 | H41: 0 | I41: 0 | J41: 0 | K41: 0 | L41: 0 | M41: 0 | N41: 0.2 | O41: 0 | Q41: 0 | R41: 0 | S41: 0 | T41: 0 | U41: 0 | V41: 0 | W41: 0 | X41: 0
A42: 32 | B42: 0 | C42: 0 | D42: 0 | E42: 0 | F42: 0 | G42: 0 | H42: 0 | I42: 0 | J42: 0 | K42: 0 | L42: 0 | M42: 0 | N42: 0.2 | O42: 0 | Q42: 0 | R42: 0 | S42: 0 | T42: 0 | U42: 0 | V42: 0 | W42: 0 | X42: 0 | AG42: Sorption Isotherms
A43: 33 | B43: 0 | C43: 0 | D43: 0 | E43: 0 | F43: 0 | G43: 0 | H43: 0 | I43: 0 | J43: 0 | K43: 0 | L43: 0 | M43: 0 | N43: 0.2 | O43: 0 | Q43: 0 | R43: 0 | S43: 0 | T43: 0 | U43: 0 | V43: 0 | W43: 0 | X43: 0 | AG43: analyte # | AH43: 1 | AI43: 2 | AJ43: 3 | AM43: Alternative isotherms
A44: 34 | B44: 0 | C44: 0 | D44: 0 | E44: 0 | F44: 0 | G44: 0 | H44: 0 | I44: 0 | J44: 0 | K44: 0 | L44: 0 | M44: 0 | N44: 0.2 | O44: 0 | Q44: 0 | R44: 0 | S44: 0 | T44: 0 | U44: 0 | V44: 0 | W44: 0 | X44: 0 | AG44: C0 | AH44: 1 | AI44: 1 | AJ44: 1 | AM44: 1 | AN44: 1 | AO44: 1
A45: 35 | B45: 0 | C45: 0 | D45: 0 | E45: 0 | F45: 0 | G45: 0 | H45: 0 | I45: 0 | J45: 0 | K45: 0 | L45: 0 | M45: 0 | N45: 0.2 | O45: 0 | Q45: 0 | R45: 0 | S45: 0 | T45: 0 | U45: 0 | V45: 0 | W45: 0 | X45: 0 | AG45: C1 | AH45: 0 | AI45: 0 | AJ45: 0 | AM45: 1 | AN45: 0 | AO45: -0.5
A46: 36 | B46: 0 | C46: 0 | D46: 0 | E46: 0 | F46: 0 | G46: 0 | H46: 0 | I46: 0 | J46: 0 | K46: 0 | L46: 0 | M46: 0 | N46: 0.2 | O46: 0 | Q46: 0 | R46: 0 | S46: 0 | T46: 0 | U46: 0 | V46: 0 | W46: 0 | X46: 0 | AG46: C2 | AH46: 0 | AI46: 0 | AJ46: 0 | AM46: 0.1 | AN46: 0 | AO46: -0.1
A47: 37 | B47: 0 | C47: 0 | D47: 0 | E47: 0 | F47: 0 | G47: 0 | H47: 0 | I47: 0 | J47: 0 | K47: 0 | L47: 0 | M47: 0 | N47: 0.2 | O47: 0 | Q47: 0 | R47: 0 | S47: 0 | T47: 0 | U47: 0 | V47: 0 | W47: 0 | X47: 0 | AG47: n(m) | AH47: n(S) | AI47: n(S) | AJ47: n(S)
A48: 38 | B48: 0 | C48: 0 | D48: 0 | E48: 0 | F48: 0 | G48: 0 | H48: 0 | I48: 0 | J48: 0 | K48: 0 | L48: 0 | M48: 0 | N48: 0.2 | O48: 0 | Q48: 0 | R48: 0 | S48: 0 | T48: 0 | U48: 0 | V48: 0 | W48: 0 | X48: 0 | AG48: 0 | AH48: =$AG48*(AH$44+$AG48*(AH$45+$AG48*AH$46)) -> 0 | AI48: =$AG48*(AI$44+$AG48*(AI$45+$AG48*AI$46)) -> 0 | AJ48: 0
A49: 39 | B49: 0 | C49: 0 | D49: 0 | E49: 0 | F49: 0 | G49: 0 | H49: 0 | I49: 0 | J49: 0 | K49: 0 | L49: 0 | M49: 0 | N49: 0.2 | O49: 0 | Q49: 0 | R49: 0 | S49: 0 | T49: 0 | U49: 0 | V49: 0 | W49: 0 | X49: 0 | AG49: 0.1 | AH49: =$AG49*(AH$44+$AG49*(AH$45+$AG49*AH$46)) -> 0.1 | AI49: 0.1 | AJ49: 0.1
A50: 40 | B50: 0 | C50: 0 | D50: 0 | E50: 0 | F50: 0 | G50: 0 | H50: 0 | I50: 0 | J50: 0 | K50: 0 | L50: 0 | M50: 0 | N50: 0.2 | O50: 0 | Q50: 0 | R50: 0 | S50: 0 | T50: 0 | U50: 0 | V50: 0 | W50: 0 | X50: 0 | AG50: 0.2 | AH50: 0.2 | AI50: 0.2 | AJ50: 0.2
A51: 41 | B51: 0 | C51: 0 | D51: 0 | E51: 0 | F51: 0 | G51: 0 | H51: 0 | I51: 0 | J51: 0 | K51: 0 | L51: 0 | M51: 0 | N51: 0.2 | O51: 0 | Q51: 0 | R51: 0 | S51: 0 | T51: 0 | U51: 0 | V51: 0 | W51: 0 | X51: 0 | AG51: 0.3 | AH51: 0.3 | AI51: 0.3 | AJ51: 0.3
A52: 42 | B52: 0 | C52: 0 | D52: 0 | E52: 0 | F52: 0 | G52: 0 | H52: 0 | I52: 0 | J52: 0 | K52: 0 | L52: 0 | M52: 0 | N52: 0.2 | O52: 0 | Q52: 0 | R52: 0 | S52: 0 | T52: 0 | U52: 0 | V52: 0 | W52: 0 | X52: 0 | AG52: 0.4 | AH52: 0.4 | AI52: 0.4 | AJ52: 0.4
A53: 43 | B53: 0 | C53: 0 | D53: 0 | E53: 0 | F53: 0 | G53: 0 | H53: 0 | I53: 0 | J53: 0 | K53: 0 | L53: 0 | M53: 0 | N53: 0.2 | O53: 0 | Q53: 0 | R53: 0 | S53: 0 | T53: 0 | U53: 0 | V53: 0 | W53: 0 | X53: 0 | AG53: 0.5 | AH53: 0.5 | AI53: 0.5 | AJ53: 0.5
A54: 44 | B54: 0 | C54: 0 | D54: 0 | E54: 0 | F54: 0 | G54: 0 | H54: 0 | I54: 0 | J54: 0 | K54: 0 | L54: 0 | M54: 0 | N54: 0.2 | O54: 0 | Q54: 0 | R54: 0 | S54: 0 | T54: 0 | U54: 0 | V54: 0 | W54: 0 | X54: 0 | AG54: 0.6 | AH54: 0.6 | AI54: 0.6 | AJ54: 0.6
A55: 45 | B55: 0 | C55: 0 | D55: 0 | E55: 0 | F55: 0 | G55: 0 | H55: 0 | I55: 0 | J55: 0 | K55: 0 | L55: 0 | M55: 0 | N55: 0.2 | O55: 0 | Q55: 0 | R55: 0 | S55: 0 | T55: 0 | U55: 0 | V55: 0 | W55: 0 | X55: 0 | AG55: 0.7 | AH55: 0.7 | AI55: 0.7 | AJ55: 0.7
A56: 46 | B56: 0 | C56: 0 | D56: 0 | E56: 0 | F56: 0 | G56: 0 | H56: 0 | I56: 0 | J56: 0 | K56: 0 | L56: 0 | M56: 0 | N56: 0.2 | O56: 0 | Q56: 0 | R56: 0 | S56: 0 | T56: 0 | U56: 0 | V56: 0 | W56: 0 | X56: 0 | AG56: 0.8 | AH56: 0.8 | AI56: 0.8 | AJ56: 0.8
A57: 47 | B57: 0 | C57: 0 | D57: 0 | E57: 0 | F57: 0 | G57: 0 | H57: 0 | I57: 0 | J57: 0 | K57: 0 | L57: 0 | M57: 0 | N57: 0.2 | O57: 0 | Q57: 0 | R57: 0 | S57: 0 | T57: 0 | U57: 0 | V57: 0 | W57: 0 | X57: 0 | AG57: 0.9 | AH57: 0.9 | AI57: 0.9 | AJ57: 0.9
A58: 48 | B58: 0 | C58: 0 | D58: 0 | E58: 0 | F58: 0 | G58: 0 | H58: 0 | I58: 0 | J58: 0 | K58: 0 | L58: 0 | M58: 0 | N58: 0.2 | O58: 0 | Q58: 0 | R58: 0 | S58: 0 | T58: 0 | U58: 0 | V58: 0 | W58: 0 | X58: 0 | AG58: 1 | AH58: 1 | AI58: 1 | AJ58: 1
A59: 49 | B59: 0 | C59: 0 | D59: 0 | E59: 0 | F59: 0 | G59: 0 | H59: 0 | I59: 0 | J59: 0 | K59: 0 | L59: 0 | M59: 0 | N59: 0.2 | O59: 0 | Q59: 0 | R59: 0 | S59: 0 | T59: 0 | U59: 0 | V59: 0 | W59: 0 | X59: 0
A60: 50 | B60: 0 | C60: 0 | D60: 0 | E60: 0 | F60: 0 | G60: 0 | H60: 0 | I60: 0 | J60: 0 | K60: 0 | L60: 0 | M60: 0 | N60: 0.2 | O60: 0 | Q60: 0 | R60: 0 | S60: 0 | T60: 0 | U60: 0 | V60: 0 | W60: 0 | X60: 0
A61: 51 | B61: 0 | C61: 0 | D61: 0 | E61: 0 | F61: 0 | G61: 0 | H61: 0 | I61: 0 | J61: 0 | K61: 0 | L61: 0 | M61: 0 | N61: 0.2 | O61: 0 | Q61: 0 | R61: 0 | S61: 0 | T61: 0 | U61: 0 | V61: 0 | W61: 0 | X61: 0 | AG61: phid | AH61: =(K6-K5)/AJ62 -> 0.01 | AI61: =0.01*(K6-K5)/K7 -> 0.001
A62: 52 | B62: 0 | C62: 0 | D62: 0 | E62: 0 | F62: 0 | G62: 0 | H62: 0 | I62: 0 | J62: 0 | K62: 0 | L62: 0 | M62: 0 | N62: 0.2 | O62: 0 | Q62: 0 | R62: 0 | S62: 0 | T62: 0 | U62: 0 | V62: 0 | W62: 0 | X62: 0 | AG62: Period | AH62: =K8 -> 0.1 | AJ62: =QUOTIENT(K7,AH62) -> 80
A63: 53 | B63: 0 | C63: 0 | D63: 0 | E63: 0 | F63: 0 | G63: 0 | H63: 0 | I63: 0 | J63: 0 | K63: 0 | L63: 0 | M63: 0 | N63: 0.2 | O63: 0 | Q63: 0 | R63: 0 | S63: 0 | T63: 0 | U63: 0 | V63: 0 | W63: 0 | X63: 0 | AG63: Ampl | AH63: 0
A64: 54 | B64: 0 | C64: 0 | D64: 0 | E64: 0 | F64: 0 | G64: 0 | H64: 0 | I64: 0 | J64: 0 | K64: 0 | L64: 0 | M64: 0 | N64: 0.2 | O64: 0 | Q64: 0 | R64: 0 | S64: 0 | T64: 0 | U64: 0 | V64: 0 | W64: 0 | X64: 0
A65: 55 | B65: 0 | C65: 0 | D65: 0 | E65: 0 | F65: 0 | G65: 0 | H65: 0 | I65: 0 | J65: 0 | K65: 0 | L65: 0 | M65: 0 | N65: 0.2 | O65: 0 | Q65: 0 | R65: 0 | S65: 0 | T65: 0 | U65: 0 | V65: 0 | W65: 0 | X65: 0 | AG65: Time | AH65: Complex | AI65: Simple | AJ65: Pulse
A66: 56 | B66: 0 | C66: 0 | D66: 0 | E66: 0 | F66: 0 | G66: 0 | H66: 0 | I66: 0 | J66: 0 | K66: 0 | L66: 0 | M66: 0 | N66: 0.2 | O66: 0 | Q66: 0 | R66: 0 | S66: 0 | T66: 0 | U66: 0 | V66: 0 | W66: 0 | X66: 0 | AG66: 0 | AH66: =IF(AG66<$K$7,IF(MOD(AJ66,2)=0,$K$5,$K$5+AJ66*AH$61),$K$6) -> 0.2 | AI66: =$K$5 -> 0.2 | AJ66: =QUOTIENT(AG66,AH$62) -> 0
A67: 57 | B67: 0 | C67: 0 | D67: 0 | E67: 0 | F67: 0 | G67: 0 | H67: 0 | I67: 0 | J67: 0 | K67: 0 | L67: 0 | M67: 0 | N67: 0.2 | O67: 0 | Q67: 0 | R67: 0 | S67: 0 | T67: 0 | U67: 0 | V67: 0 | W67: 0 | X67: 0 | AG67: 0.01 | AH67: =IF(AG67<$K$7,IF(MOD(AJ67,2)=0,$K$5,$K$5+AJ67*AH$61),$K$6) -> 0.2 | AI67: =IF(AG67<=$K$8,AI66,IF(AG67<=($K$7+$K$8),AI66+$AI$61,$K$6)) -> 0.2 | AJ67: =QUOTIENT(AG67,AH$62) -> 0
A68: 58 | B68: 0 | C68: 0 | D68: 0 | E68: 0 | F68: 0 | G68: 0 | H68: 0 | I68: 0 | J68: 0 | K68: 0 | L68: 0 | M68: 0 | N68: 0.2 | O68: 0 | Q68: 0 | R68: 0 | S68: 0 | T68: 0 | U68: 0 | V68: 0 | W68: 0 | X68: 0 | AG68: 0.02 | AH68: 0.2 | AI68: =IF(AG68<=$K$8,AI67,IF(AG68<=($K$7+$K$8),AI67+$AI$61,$K$6)) -> 0.2 | AJ68: 0
A69: 59 | B69: 0 | C69: 0 | D69: 0 | E69: 0 | F69: 0 | G69: 0 | H69: 0 | I69: 0 | J69: 0 | K69: 0 | L69: 0 | M69: 0 | N69: 0.2 | O69: 0 | Q69: 0 | R69: 0 | S69: 0 | T69: 0 | U69: 0 | V69: 0 | W69: 0 | X69: 0 | AG69: 0.03 | AH69: 0.2 | AI69: 0.2 | AJ69: 0
A70: 60 | B70: 0 | C70: 0 | D70: 0 | E70: 0 | F70: 0 | G70: 0 | H70: 0 | I70: 0 | J70: 0 | K70: 0 | L70: 0 | M70: 0 | N70: 0.2 | O70: 0 | Q70: 0 | R70: 0 | S70: 0 | T70: 0 | U70: 0 | V70: 0 | W70: 0 | X70: 0 | AG70: 0.04 | AH70: 0.2 | AI70: 0.2 | AJ70: 0
A71: 61 | B71: 0 | C71: 0 | D71: 0 | E71: 0 | F71: 0 | G71: 0 | H71: 0 | I71: 0 | J71: 0 | K71: 0 | L71: 0 | M71: 0 | N71: 0.2 | O71: 0 | Q71: 0 | R71: 0 | S71: 0 | T71: 0 | U71: 0 | V71: 0 | W71: 0 | X71: 0 | AG71: 0.05 | AH71: 0.2 | AI71: 0.2 | AJ71: 0
A72: 62 | B72: 0 | C72: 0 | D72: 0 | E72: 0 | F72: 0 | G72: 0 | H72: 0 | I72: 0 | J72: 0 | K72: 0 | L72: 0 | M72: 0 | N72: 0.2 | O72: 0 | Q72: 0 | R72: 0 | S72: 0 | T72: 0 | U72: 0 | V72: 0 | W72: 0 | X72: 0 | AG72: 0.06 | AH72: 0.2 | AI72: 0.2 | AJ72: 0
A73: 63 | B73: 0 | C73: 0 | D73: 0 | E73: 0 | F73: 0 | G73: 0 | H73: 0 | I73: 0 | J73: 0 | K73: 0 | L73: 0 | M73: 0 | N73: 0.2 | O73: 0 | Q73: 0 | R73: 0 | S73: 0 | T73: 0 | U73: 0 | V73: 0 | W73: 0 | X73: 0 | AG73: 0.07 | AH73: 0.2 | AI73: 0.2 | AJ73: 0
A74: 64 | B74: 0 | C74: 0 | D74: 0 | E74: 0 | F74: 0 | G74: 0 | H74: 0 | I74: 0 | J74: 0 | K74: 0 | L74: 0 | M74: 0 | N74: 0.2 | O74: 0 | Q74: 0 | R74: 0 | S74: 0 | T74: 0 | U74: 0 | V74: 0 | W74: 0 | X74: 0 | AG74: 0.08 | AH74: 0.2 | AI74: 0.2 | AJ74: 0
A75: 65 | B75: 0 | C75: 0 | D75: 0 | E75: 0 | F75: 0 | G75: 0 | H75: 0 | I75: 0 | J75: 0 | K75: 0 | L75: 0 | M75: 0 | N75: 0.2 | O75: 0 | Q75: 0 | R75: 0 | S75: 0 | T75: 0 | U75: 0 | V75: 0 | W75: 0 | X75: 0 | AG75: 0.09 | AH75: 0.2 | AI75: 0.2 | AJ75: 0
A76: 66 | B76: 0 | C76: 0 | D76: 0 | E76: 0 | F76: 0 | G76: 0 | H76: 0 | I76: 0 | J76: 0 | K76: 0 | L76: 0 | M76: 0 | N76: 0.2 | O76: =B76+D76+F76 -> 0 | Q76: 0 | R76: 0 | S76: 0 | T76: 0 | U76: 0 | V76: 0 | W76: 0 | X76: 0 | AG76: 0.1 | AH76: 0.21 | AI76: 0.2 | AJ76: 1
A77: 67 | B77: 0 | C77: 0 | D77: 0 | E77: 0 | F77: 0 | G77: 0 | H77: 0 | I77: 0 | J77: 0 | K77: 0 | L77: 0 | M77: 0 | N77: 0.2 | O77: 0 | Q77: 0 | R77: 0 | S77: 0 | T77: 0 | U77: 0 | V77: 0 | W77: 0 | X77: 0 | AG77: 0.11 | AH77: 0.21 | AI77: 0.201 | AJ77: 1
A78: 68 | B78: 0 | C78: 0 | D78: 0 | E78: 0 | F78: 0 | G78: 0 | H78: 0 | I78: 0 | J78: 0 | K78: 0 | L78: 0 | M78: 0 | N78: 0.2 | O78: 0 | Q78: 0 | R78: 0 | S78: 0 | T78: 0 | U78: 0 | V78: 0 | W78: 0 | X78: 0 | AG78: 0.12 | AH78: 0.21 | AI78: 0.202 | AJ78: 1
A79: 69 | B79: 0 | C79: 0 | D79: 0 | E79: 0 | F79: 0 | G79: 0 | H79: 0 | I79: 0 | J79: 0 | K79: 0 | L79: 0 | M79: 0 | N79: 0.2 | O79: 0 | Q79: 0 | R79: 0 | S79: 0 | T79: 0 | U79: 0 | V79: 0 | W79: 0 | X79: 0 | AG79: 0.13 | AH79: 0.21 | AI79: 0.203 | AJ79: 1
A80: 70 | B80: 0 | C80: 0 | D80: 0 | E80: 0 | F80: 0 | G80: 0 | H80: 0 | I80: 0 | J80: 0 | K80: 0 | L80: 0 | M80: 0 | N80: 0.2 | O80: 0 | Q80: 0 | R80: 0 | S80: 0 | T80: 0 | U80: 0 | V80: 0 | W80: 0 | X80: 0 | AG80: 0.14 | AH80: 0.21 | AI80: 0.204 | AJ80: 1
A81: 71 | B81: 0 | C81: 0 | D81: 0 | E81: 0 | F81: 0 | G81: 0 | H81: 0 | I81: 0 | J81: 0 | K81: 0 | L81: 0 | M81: 0 | N81: 0.2 | O81: 0 | Q81: 0 | R81: 0 | S81: 0 | T81: 0 | U81: 0 | V81: 0 | W81: 0 | X81: 0 | AG81: 0.15 | AH81: 0.21 | AI81: 0.205 | AJ81: 1
A82: 72 | B82: 0 | C82: 0 | D82: 0 | E82: 0 | F82: 0 | G82: 0 | H82: 0 | I82: 0 | J82: 0 | K82: 0 | L82: 0 | M82: 0 | N82: 0.2 | O82: 0 | Q82: 0 | R82: 0 | S82: 0 | T82: 0 | U82: 0 | V82: 0 | W82: 0 | X82: 0 | AG82: 0.16 | AH82: 0.21 | AI82: 0.206 | AJ82: 1
A83: 73 | B83: 0 | C83: 0 | D83: 0 | E83: 0 | F83: 0 | G83: 0 | H83: 0 | I83: 0 | J83: 0 | K83: 0 | L83: 0 | M83: 0 | N83: 0.2 | O83: 0 | Q83: 0 | R83: 0 | S83: 0 | T83: 0 | U83: 0 | V83: 0 | W83: 0 | X83: 0 | AG83: 0.17 | AH83: 0.21 | AI83: 0.207 | AJ83: 1
A84: 74 | B84: 0 | C84: 0 | D84: 0 | E84: 0 | F84: 0 | G84: 0 | H84: 0 | I84: 0 | J84: 0 | K84: 0 | L84: 0 | M84: 0 | N84: 0.2 | O84: 0 | Q84: 0 | R84: 0 | S84: 0 | T84: 0 | U84: 0 | V84: 0 | W84: 0 | X84: 0 | AG84: 0.18 | AH84: 0.21 | AI84: 0.208 | AJ84: 1
A85: 75 | B85: 0 | C85: 0 | D85: 0 | E85: 0 | F85: 0 | G85: 0 | H85: 0 | I85: 0 | J85: 0 | K85: 0 | L85: 0 | M85: 0 | N85: 0.2 | O85: 0 | Q85: 0 | R85: 0 | S85: 0 | T85: 0 | U85: 0 | V85: 0 | W85: 0 | X85: 0 | AG85: 0.19 | AH85: 0.21 | AI85: 0.209 | AJ85: 1
A86: 76 | B86: 0 | C86: 0 | D86: 0 | E86: 0 | F86: 0 | G86: 0 | H86: 0 | I86: 0 | J86: 0 | K86: 0 | L86: 0 | M86: 0 | N86: 0.2 | O86: 0 | Q86: 0 | R86: 0 | S86: 0 | T86: 0 | U86: 0 | V86: 0 | W86: 0 | X86: 0 | AG86: 0.2 | AH86: 0.2 | AI86: 0.21 | AJ86: 2
A87: 77 | B87: 0 | C87: 0 | D87: 0 | E87: 0 | F87: 0 | G87: 0 | H87: 0 | I87: 0 | J87: 0 | K87: 0 | L87: 0 | M87: 0 | N87: 0.2 | O87: 0 | Q87: 0 | R87: 0 | S87: 0 | T87: 0 | U87: 0 | V87: 0 | W87: 0 | X87: 0 | AG87: 0.21 | AH87: 0.2 | AI87: 0.211 | AJ87: 2
A88: 78 | B88: 0 | C88: 0 | D88: 0 | E88: 0 | F88: 0 | G88: 0 | H88: 0 | I88: 0 | J88: 0 | K88: 0 | L88: 0 | M88: 0 | N88: 0.2 | O88: 0 | Q88: 0 | R88: 0 | S88: 0 | T88: 0 | U88: 0 | V88: 0 | W88: 0 | X88: 0 | AG88: 0.22 | AH88: 0.2 | AI88: 0.212 | AJ88: 2
A89: 79 | B89: 0 | C89: 0 | D89: 0 | E89: 0 | F89: 0 | G89: 0 | H89: 0 | I89: 0 | J89: 0 | K89: 0 | L89: 0 | M89: 0 | N89: 0.2 | O89: 0 | Q89: 0 | R89: 0 | S89: 0 | T89: 0 | U89: 0 | V89: 0 | W89: 0 | X89: 0 | AG89: 0.23 | AH89: 0.2 | AI89: 0.213 | AJ89: 2
A90: 80 | B90: 0 | C90: 0 | D90: 0 | E90: 0 | F90: 0 | G90: 0 | H90: 0 | I90: 0 | J90: 0 | K90: 0 | L90: 0 | M90: 0 | N90: 0.2 | O90: 0 | Q90: 0 | R90: 0 | S90: 0 | T90: 0 | U90: 0 | V90: 0 | W90: 0 | X90: 0 | AG90: 0.24 | AH90: 0.2 | AI90: 0.214 | AJ90: 2
A91: 81 | B91: 0 | C91: 0 | D91: 0 | E91: 0 | F91: 0 | G91: 0 | H91: 0 | I91: 0 | J91: 0 | K91: 0 | L91: 0 | M91: 0 | N91: 0.2 | O91: 0 | Q91: 0 | R91: 0 | S91: 0 | T91: 0 | U91: 0 | V91: 0 | W91: 0 | X91: 0 | AG91: 0.25 | AH91: 0.2 | AI91: 0.215 | AJ91: 2
A92: 82 | B92: 0 | C92: 0 | D92: 0 | E92: 0 | F92: 0 | G92: 0 | H92: 0 | I92: 0 | J92: 0 | K92: 0 | L92: 0 | M92: 0 | N92: 0.2 | O92: 0 | Q92: 0 | R92: 0 | S92: 0 | T92: 0 | U92: 0 | V92: 0 | W92: 0 | X92: 0 | AG92: 0.26 | AH92: 0.2 | AI92: 0.216 | AJ92: 2
A93: 83 | B93: 0 | C93: 0 | D93: 0 | E93: 0 | F93: 0 | G93: 0 | H93: 0 | I93: 0 | J93: 0 | K93: 0 | L93: 0 | M93: 0 | N93: 0.2 | O93: 0 | Q93: 0 | R93: 0 | S93: 0 | T93: 0 | U93: 0 | V93: 0 | W93: 0 | X93: 0 | AG93: 0.27 | AH93: 0.2 | AI93: 0.217 | AJ93: 2
A94: 84 | B94: 0 | C94: 0 | D94: 0 | E94: 0 | F94: 0 | G94: 0 | H94: 0 | I94: 0 | J94: 0 | K94: 0 | L94: 0 | M94: 0 | N94: 0.2 | O94: 0 | Q94: 0 | R94: 0 | S94: 0 | T94: 0 | U94: 0 | V94: 0 | W94: 0 | X94: 0 | AG94: 0.28 | AH94: 0.2 | AI94: 0.218 | AJ94: 2
A95: 85 | B95: 0 | C95: 0 | D95: 0 | E95: 0 | F95: 0 | G95: 0 | H95: 0 | I95: 0 | J95: 0 | K95: 0 | L95: 0 | M95: 0 | N95: 0.2 | O95: 0 | Q95: 0 | R95: 0 | S95: 0 | T95: 0 | U95: 0 | V95: 0 | W95: 0 | X95: 0 | AG95: 0.29 | AH95: 0.2 | AI95: 0.219 | AJ95: 2
A96: 86 | B96: 0 | C96: 0 | D96: 0 | E96: 0 | F96: 0 | G96: 0 | H96: 0 | I96: 0 | J96: 0 | K96: 0 | L96: 0 | M96: 0 | N96: 0.2 | O96: 0 | Q96: 0 | R96: 0 | S96: 0 | T96: 0 | U96: 0 | V96: 0 | W96: 0 | X96: 0 | AG96: 0.3 | AH96: 0.2 | AI96: 0.22 | AJ96: 2
A97: 87 | B97: 0 | C97: 0 | D97: 0 | E97: 0 | F97: 0 | G97: 0 | H97: 0 | I97: 0 | J97: 0 | K97: 0 | L97: 0 | M97: 0 | N97: 0.2 | O97: 0 | Q97: 0 | R97: 0 | S97: 0 | T97: 0 | U97: 0 | V97: 0 | W97: 0 | X97: 0 | AG97: 0.31 | AH97: 0.23 | AI97: 0.221 | AJ97: 3
A98: 88 | B98: 0 | C98: 0 | D98: 0 | E98: 0 | F98: 0 | G98: 0 | H98: 0 | I98: 0 | J98: 0 | K98: 0 | L98: 0 | M98: 0 | N98: 0.2 | O98: 0 | Q98: 0 | R98: 0 | S98: 0 | T98: 0 | U98: 0 | V98: 0 | W98: 0 | X98: 0 | AG98: 0.32 | AH98: 0.23 | AI98: 0.222 | AJ98: 3
A99: 89 | B99: 0 | C99: 0 | D99: 0 | E99: 0 | F99: 0 | G99: 0 | H99: 0 | I99: 0 | J99: 0 | K99: 0 | L99: 0 | M99: 0 | N99: 0.2 | O99: 0 | Q99: 0 | R99: 0 | S99: 0 | T99: 0 | U99: 0 | V99: 0 | W99: 0 | X99: 0 | AG99: 0.33 | AH99: 0.23 | AI99: 0.223 | AJ99: 3
A100: 90 | B100: 0 | C100: 0 | D100: 0 | E100: 0 | F100: 0 | G100: 0 | H100: 0 | I100: 0 | J100: 0 | K100: 0 | L100: 0 | M100: 0 | N100: 0.2 | O100: 0 | Q100: 0 | R100: 0 | S100: 0 | T100: 0 | U100: 0 | V100: 0 | W100: 0 | X100: 0 | AG100: 0.34 | AH100: 0.23 | AI100: 0.224 | AJ100: 3
A101: 91 | B101: 0 | C101: 0 | D101: 0 | E101: 0 | F101: 0 | G101: 0 | H101: 0 | I101: 0 | J101: 0 | K101: 0 | L101: 0 | M101: 0 | N101: 0.2 | O101: 0 | Q101: 0 | R101: 0 | S101: 0 | T101: 0 | U101: 0 | V101: 0 | W101: 0 | X101: 0 | AG101: 0.35 | AH101: 0.23 | AI101: 0.225 | AJ101: 3
A102: 92 | B102: 0 | C102: 0 | D102: 0 | E102: 0 | F102: 0 | G102: 0 | H102: 0 | I102: 0 | J102: 0 | K102: 0 | L102: 0 | M102: 0 | N102: 0.2 | O102: 0 | Q102: 0 | R102: 0 | S102: 0 | T102: 0 | U102: 0 | V102: 0 | W102: 0 | X102: 0 | AG102: 0.36 | AH102: 0.23 | AI102: 0.226 | AJ102: 3
A103: 93 | B103: 0 | C103: 0 | D103: 0 | E103: 0 | F103: 0 | G103: 0 | H103: 0 | I103: 0 | J103: 0 | K103: 0 | L103: 0 | M103: 0 | N103: 0.2 | O103: 0 | Q103: 0 | R103: 0 | S103: 0 | T103: 0 | U103: 0 | V103: 0 | W103: 0 | X103: 0 | AG103: 0.37 | AH103: 0.23 | AI103: 0.227 | AJ103: 3
A104: 94 | B104: 0 | C104: 0 | D104: 0 | E104: 0 | F104: 0 | G104: 0 | H104: 0 | I104: 0 | J104: 0 | K104: 0 | L104: 0 | M104: 0 | N104: 0.2 | O104: 0 | Q104: 0 | R104: 0 | S104: 0 | T104: 0 | U104: 0 | V104: 0 | W104: 0 | X104: 0 | AG104: 0.38 | AH104: 0.23 | AI104: 0.228 | AJ104: 3
A105: 95 | B105: 0 | C105: 0 | D105: 0 | E105: 0 | F105: 0 | G105: 0 | H105: 0 | I105: 0 | J105: 0 | K105: 0 | L105: 0 | M105: 0 | N105: 0.2 | O105: 0 | Q105: 0 | R105: 0 | S105: 0 | T105: 0 | U105: 0 | V105: 0 | W105: 0 | X105: 0 | AG105: 0.39 | AH105: 0.23 | AI105: 0.229 | AJ105: 3
A106: 96 | B106: 0 | C106: 0 | D106: 0 | E106: 0 | F106: 0 | G106: 0 | H106: 0 | I106: 0 | J106: 0 | K106: 0 | L106: 0 | M106: 0 | N106: 0.2 | O106: 0 | Q106: 0 | R106: 0 | S106: 0 | T106: 0 | U106: 0 | V106: 0 | W106: 0 | X106: 0 | AG106: 0.4 | AH106: 0.2 | AI106: 0.23 | AJ106: 4
A107: 97 | B107: 0 | C107: 0 | D107: 0 | E107: 0 | F107: 0 | G107: 0 | H107: 0 | I107: 0 | J107: 0 | K107: 0 | L107: 0 | M107: 0 | N107: 0.2 | O107: 0 | Q107: 0 | R107: 0 | S107: 0 | T107: 0 | U107: 0 | V107: 0 | W107: 0 | X107: 0 | AG107: 0.41 | AH107: 0.2 | AI107: 0.231 | AJ107: 4
A108: 98 | B108: 0 | C108: 0 | D108: 0 | E108: 0 | F108: 0 | G108: 0 | H108: 0 | I108: 0 | J108: 0 | K108: 0 | L108: 0 | M108: 0 | N108: 0.2 | O108: 0 | Q108: 0 | R108: 0 | S108: 0 | T108: 0 | U108: 0 | V108: 0 | W108: 0 | X108: 0 | AG108: 0.42 | AH108: 0.2 | AI108: 0.232 | AJ108: 4
A109: 99 | B109: 0 | C109: 0 | D109: 0 | E109: 0 | F109: 0 | G109: 0 | H109: 0 | I109: 0 | J109: 0 | K109: 0 | L109: 0 | M109: 0 | N109: 0.2 | O109: 0 | Q109: 0 | R109: 0 | S109: 0 | T109: 0 | U109: 0 | V109: 0 | W109: 0 | X109: 0 | AG109: 0.43 | AH109: 0.2 | AI109: 0.233 | AJ109: 4
A110: 100 | B110: 0 | C110: 0 | D110: 0 | E110: 0 | F110: 0 | G110: 0 | H110: 0 | I110: 0 | J110: 0 | K110: 0 | L110: 0 | M110: 0 | N110: 0.2 | O110: 0 | Q110: 0 | R110: 0 | S110: 0 | T110: 0 | U110: 0 | V110: 0 | W110: 0 | X110: 0 | AG110: 0.44 | AH110: 0.2 | AI110: 0.234 | AJ110: 4
A111: k* | B111: 0 | C111: 0 | D111: 0 | E111: 0 | F111: 0 | G111: 0 | H111: 0 | I111: 0 | J111: 0 | K111: 0 | L111: 0 | M111: 0 | N111: 0 | O111: 0 | Q111: 0 | R111: 0 | S111: 0 | T111: 0 | U111: 0 | V111: 0 | W111: 0 | X111: 0 | AG111: 0.45 | AH111: 0.2 | AI111: 0.235 | AJ111: 4
A112: tR,h | B112: 0 | C112: 0 | D112: 0 | E112: 0 | F112: 0 | G112: 0 | H112: 0 | I112: 0.2 | J112: 0 | K112: 0 | L112: 0 | M112: 0 | N112: 0 | O112: 0 | Q112: 0 | R112: 0 | S112: 0 | T112: 0 | U112: 0 | V112: 0 | W112: 0 | X112: 0 | AG112: 0.46 | AH112: 0.2 | AI112: 0.236 | AJ112: 4
W113: 0 | X113: 0 | AG113: 0.47 | AH113: 0.2 | AI113: 0.237 | AJ113: 4
W114: 0 | X114: 0 | AG114: 0.48 | AH114: 0.2 | AI114: 0.238 | AJ114: 4
W115: 0 | X115: 0 | AG115: 0.49 | AH115: 0.2 | AI115: 0.239 | AJ115: 4
W116: 0 | X116: 0 | AG116: 0.5 | AH116: 0.25 | AI116: 0.24 | AJ116: 5
W117: 0 | X117: 0 | AG117: 0.51 | AH117: 0.25 | AI117: 0.241 | AJ117: 5
W118: 0 | X118: 0 | AG118: 0.52 | AH118: 0.25 | AI118: 0.242 | AJ118: 5
W119: 0 | X119: 0 | AG119: 0.53 | AH119: 0.25 | AI119: 0.243 | AJ119: 5
W120: 0 | X120: 0 | AG120: 0.54 | AH120: 0.25 | AI120: 0.244 | AJ120: 5
W121: 0 | X121: 0 | AG121: 0.55 | AH121: 0.25 | AI121: 0.245 | AJ121: 5
W122: 0 | X122: 0 | AG122: 0.56 | AH122: 0.25 | AI122: 0.246 | AJ122: 5
W123: 0 | X123: 0 | AG123: 0.57 | AH123: 0.25 | AI123: 0.247 | AJ123: 5
W124: 0 | X124: 0 | AG124: 0.58 | AH124: 0.25 | AI124: 0.248 | AJ124: 5
W125: 0 | X125: 0 | AG125: 0.59 | AH125: 0.25 | AI125: 0.249 | AJ125: 5
W126: 0 | X126: 0 | AG126: 0.6 | AH126: 0.25 | AI126: 0.25 | AJ126: 5
W127: 0 | X127: 0 | AG127: 0.61 | AH127: 0.2 | AI127: 0.251 | AJ127: 6
W128: 0 | X128: 0 | AG128: 0.62 | AH128: 0.2 | AI128: 0.252 | AJ128: 6
W129: 0 | X129: 0 | AG129: 0.63 | AH129: 0.2 | AI129: 0.253 | AJ129: 6
W130: 0 | X130: 0 | AG130: 0.64 | AH130: 0.2 | AI130: 0.254 | AJ130: 6
W131: 0 | X131: 0 | AG131: 0.65 | AH131: =IF(AG131<$K$7,IF(MOD(AJ131,2)=0,$K$5,$K$5+AJ131*AH$61),$K$6) -> 0.2 | AI131: 0.255 | AJ131: =QUOTIENT(AG131,AH$62) -> 6
W132: 0 | X132: 0 | AG132: 0.66 | AH132: 0.2 | AI132: =IF(AG132<=$K$8,AI131,IF(AG132<=($K$7+$K$8),AI131+$AI$61,$K$6)) -> 0.256 | AJ132: 6
W133: 0 | X133: 0 | AG133: 0.67 | AH133: 0.2 | AI133: 0.257 | AJ133: 6
W134: 0 | X134: 0 | AG134: 0.68 | AH134: 0.2 | AI134: 0.258 | AJ134: 6
W135: 0 | X135: 0 | AG135: 0.69 | AH135: 0.2 | AI135: 0.259 | AJ135: 6
W136: 0 | X136: 0 | AG136: 0.7 | AH136: 0.2 | AI136: 0.26 | AJ136: 6
W137: 0 | X137: 0 | AG137: 0.71 | AH137: 0.27 | AI137: 0.261 | AJ137: 7
W138: 0 | X138: 0 | AG138: 0.72 | AH138: 0.27 | AI138: 0.262 | AJ138: 7
W139: 0 | X139: 0 | AG139: 0.73 | AH139: 0.27 | AI139: 0.263 | AJ139: 7
W140: 0 | X140: 0 | AG140: 0.74 | AH140: 0.27 | AI140: 0.264 | AJ140: 7
W141: 0 | X141: 0 | AG141: 0.75 | AH141: 0.27 | AI141: 0.265 | AJ141: 7
W142: 0 | X142: 0 | AG142: 0.76 | AH142: 0.27 | AI142: 0.266 | AJ142: 7
W143: 0 | X143: 0 | AG143: 0.77 | AH143: 0.27 | AI143: 0.267 | AJ143: 7
W144: 0 | X144: 0 | AG144: 0.78 | AH144: 0.27 | AI144: 0.268 | AJ144: 7
W145: 0 | X145: 0 | AG145: 0.79 | AH145: 0.27 | AI145: 0.269 | AJ145: 7
W146: 0 | X146: 0 | AG146: 0.8 | AH146: 0.2 | AI146: 0.27 | AJ146: 8
W147: 0 | X147: 0 | AG147: 0.81 | AH147: 0.2 | AI147: 0.271 | AJ147: 8
W148: 0 | X148: 0 | AG148: 0.82 | AH148: 0.2 | AI148: 0.272 | AJ148: 8
W149: 0 | X149: 0 | AG149: 0.83 | AH149: 0.2 | AI149: 0.273 | AJ149: 8
W150: 0 | X150: 0 | AG150: 0.84 | AH150: 0.2 | AI150: 0.274 | AJ150: 8
W151: 0 | X151: 0 | AG151: 0.85 | AH151: 0.2 | AI151: 0.275 | AJ151: 8
W152: 0 | X152: 0 | AG152: 0.86 | AH152: 0.2 | AI152: 0.276 | AJ152: 8
W153: 0 | X153: 0 | AG153: 0.87 | AH153: 0.2 | AI153: 0.277 | AJ153: 8
W154: 0 | X154: 0 | AG154: 0.88 | AH154: 0.2 | AI154: 0.278 | AJ154: 8
W155: 0 | X155: 0 | AG155: 0.89 | AH155: 0.2 | AI155: 0.279 | AJ155: 8
W156: 0 | X156: 0 | AG156: 0.9 | AH156: 0.29 | AI156: 0.28 | AJ156: 9
W157: 0 | X157: 0 | AG157: 0.91 | AH157: 0.29 | AI157: 0.281 | AJ157: 9
W158: 0 | X158: 0 | AG158: 0.92 | AH158: 0.29 | AI158: 0.282 | AJ158: 9
W159: 0 | X159: 0 | AG159: 0.93 | AH159: 0.29 | AI159: 0.283 | AJ159: 9
W160: 0 | X160: 0 | AG160: 0.94 | AH160: 0.29 | AI160: 0.284 | AJ160: 9
W161: 0 | X161: 0 | AG161: 0.95 | AH161: 0.29 | AI161: 0.285 | AJ161: 9
W162: 0 | X162: 0 | AG162: 0.96 | AH162: 0.29 | AI162: 0.286 | AJ162: 9
W163: 0 | X163: 0 | AG163: 0.97 | AH163: 0.29 | AI163: 0.287 | AJ163: 9
W164: 0 | X164: 0 | AG164: 0.98 | AH164: 0.29 | AI164: 0.288 | AJ164: 9
W165: 0 | X165: 0 | AG165: 0.99 | AH165: 0.29 | AI165: 0.289 | AJ165: 9
W166: 0 | X166: 0 | AG166: 1 | AH166: 0.2 | AI166: 0.29 | AJ166: 10
W167: 0 | X167: 0 | AG167: 1.01 | AH167: 0.2 | AI167: 0.291 | AJ167: 10
W168: 0 | X168: 0 | AG168: 1.02 | AH168: 0.2 | AI168: 0.292 | AJ168: 10
W169: 0 | X169: 0 | AG169: 1.03 | AH169: 0.2 | AI169: 0.293 | AJ169: 10
W170: 0 | X170: 0 | AG170: 1.04 | AH170: 0.2 | AI170: 0.294 | AJ170: 10
W171: 0 | X171: 0 | AG171: 1.05 | AH171: 0.2 | AI171: 0.295 | AJ171: 10
W172: 0 | X172: 0 | AG172: 1.06 | AH172: 0.2 | AI172: 0.296 | AJ172: 10
W173: 0 | X173: 0 | AG173: 1.07 | AH173: 0.2 | AI173: 0.297 | AJ173: 10
W174: 0 | X174: 0 | AG174: 1.08 | AH174: 0.2 | AI174: 0.298 | AJ174: 10
W175: 0 | X175: 0 | AG175: 1.09 | AH175: 0.2 | AI175: 0.299 | AJ175: 10
W176: 0 | X176: 0 | AG176: 1.1 | AH176: 0.31 | AI176: 0.3 | AJ176: 11
W177: 0 | X177: 0 | AG177: 1.11 | AH177: 0.31 | AI177: 0.301 | AJ177: 11
W178: 0 | X178: 0 | AG178: 1.12 | AH178: 0.31 | AI178: 0.302 | AJ178: 11
W179: 0 | X179: 0 | AG179: 1.13 | AH179: 0.31 | AI179: 0.303 | AJ179: 11
W180: 0 | X180: 0 | AG180: 1.14 | AH180: 0.31 | AI180: 0.304 | AJ180: 11
W181: 0 | X181: 0 | AG181: 1.15 | AH181: 0.31 | AI181: 0.305 | AJ181: 11
W182: 0 | X182: 0 | AG182: 1.16 | AH182: 0.31 | AI182: 0.306 | AJ182: 11
W183: 0 | X183: 0 | AG183: 1.17 | AH183: 0.31 | AI183: 0.307 | AJ183: 11
W184: 0 | X184: 0 | AG184: 1.18 | AH184: 0.31 | AI184: 0.308 | AJ184: 11
W185: 0 | X185: 0 | AG185: 1.19 | AH185: 0.31 | AI185: 0.309 | AJ185: 11
W186: 0 | X186: 0 | AG186: 1.2 | AH186: 0.31 | AI186: 0.31 | AJ186: 11
W187: 0 | X187: 0 | AG187: 1.21 | AH187: 0.2 | AI187: 0.311 | AJ187: 12
W188: 0 | X188: 0 | AG188: 1.22 | AH188: 0.2 | AI188: 0.312 | AJ188: 12
W189: 0 | X189: 0 | AG189: 1.23 | AH189: 0.2 | AI189: 0.313 | AJ189: 12
W190: 0 | X190: 0 | AG190: 1.24 | AH190: 0.2 | AI190: 0.314 | AJ190: 12
W191: 0 | X191: 0 | AG191: 1.25 | AH191: 0.2 | AI191: 0.315 | AJ191: 12
W192: 0 | X192: 0 | AG192: 1.26 | AH192: 0.2 | AI192: 0.316 | AJ192: 12
W193: 0 | X193: 0 | AG193: 1.27 | AH193: 0.2 | AI193: 0.317 | AJ193: 12
W194: 0 | X194: 0 | AG194: 1.28 | AH194: 0.2 | AI194: 0.318 | AJ194: 12
W195: 0 | X195: 0 | AG195: 1.29 | AH195: =IF(AG195<$K$7,IF(MOD(AJ195,2)=0,$K$5,$K$5+AJ195*AH$61),$K$6) -> 0.2 | AI195: 0.319 | AJ195: =QUOTIENT(AG195,AH$62) -> 12
W196: 0 | X196: 0 | AG196: 1.3 | AH196: 0.33 | AI196: =IF(AG196<=$K$8,AI195,IF(AG196<=($K$7+$K$8),AI195+$AI$61,$K$6)) -> 0.32 | AJ196: 13
W197: 0 | X197: 0 | AG197: 1.31 | AH197: 0.33 | AI197: 0.321 | AJ197: 13
W198: 0 | X198: 0 | AG198: 1.32 | AH198: 0.33 | AI198: 0.322 | AJ198: 13
W199: 0 | X199: 0 | AG199: 1.33 | AH199: 0.33 | AI199: 0.323 | AJ199: 13
W200: 0 | X200: 0 | AG200: 1.34 | AH200: 0.33 | AI200: 0.324 | AJ200: 13
... 866 more rows

Sheet PowerPoints
